Workbook

Sheet Introduction
B2: Informing Interventions to reduce health Inequalities ('Triple I'):
B3: Smoking Cessation Services
B7: Informing Interventions to reduce health Inequalities ('Triple I') is a collaboration between NHS Health Scotland and the Scottish Public Health Observatory (ScotPHO).
B8: Triple I provides national and local decision makers with practical tools and interpreted results about investing in interventions to reduce health inequalities in Scotland.
B9: It does this by modelling the potential impact of different interventions and policies on overall population health and health inequalities.
B10: This tool is part of a set of 9 spreadsheets and associated documentation, produced as an update and extension of our 2014 Triple I work.
B11: Data and evidence have been updated where applicable, new interventions have been included, and presentation of the results has been improved.
B12: The tool can be used to produce detailed results for different geographies (Scotland, Local Authorities, Health Boards, City Regions, or Integrated Joint Boards).
B13: Results are provided for three health outcomes: premature mortality, years of life lost, and hospital stays.
B15: The interventions:
B16: The interventions were chosen based on the highest quality and most generalisable evidence linking them to changes in all-cause mortality and hospital admissions.
B17: The topics addressed by the interventions span the determinants of health (including ‘upstream’, ‘downstream’, individual-level and population-wide).
B18: There are 9 Triple I spreadsheet tools (corresponding to the topic areas below).
C20: Individual-level interventions: | H20: Population-wide interventions:
C21: (N.B. modelled as being implemented in year 1 only) | H21: (N.B. permanent: modelled as remaining
C22: Topic | D22: Intervention(s) | H22: in place after implementation in year 1)
C23: Mental Health | D23: Interventions for depression | H23: Topic | J23: Intervention(s)
C24: Obesity | D24: Weight management service | H24: Physical Environment | J24: 20 mph speed limits
C25: Physical inactivity | D25: Physical activity interventions | H25: Smoking | J25: Tobacco taxation
C26: Smoking | D26: Smoking cessation | H26: Income | J26: Income-based policies
C27: Alcohol consumption | D27: Alcohol Brief Interventions (ABIs)
C28: Unemployment | D28: Job provision
B30: Pages in this spreadsheet tool:
C31: Introduction | E31: >> | F31: Information about the Triple I project
C32: User guide | E32: >> | F32: How to use this spreadsheet tool
C33: Options | E33: >> | F33: Where users can change the model options, and see high-level results
C34: Results | E34: >> | F34: Full results for the chosen model options
C35: Evidence | E35: >> | F35: Summary of the evidence underpinning the model, and definitions of the policies/interventions
B37: Further information is available on the Triple I website: | G37: Triple I website
C38: Interactive results browser | E38: >> | F38: An online interactive results browser for comparing different interventions (April 2019)
C39: National Overview Report | E39: >> | F39: A summary report of the national-level findings (April 2019)
C40: Technical Report | E40: >> | F40: Details of Triple I's methods and data sources (April 2019)
C41: Frequently Asked Questions | E41: >> | F41: Answers to frequently-asked questions about Triple I (April 2019)
C42: Income-based policies | E42: >> | F42: Report and Supplementary Information about the income-based policies work (October 2018)
C43: nhs.triple.i@nhs.net | E43: >> | F43: Email us for more information.
B45: Abbreviations used
B46: IJB | C46: Integrated Joint Board
B47: LA | C47: Local Authority
B48: RII | C48: Relative Index of Inequality
B49: SII | C49: Slope Index of Inequality
B50: SIMD | C50: Scottish Index of Multiple Deprivation
B51: Q1 - Q5 | C51: Quintiles of the SIMD: Q1 contains the 20% most deprived areas, and Q5 contains the 20% least deprived areas.

Sheet User Guide
B2: User Guide
B4: Please note: Macros need to be enabled for the tools to work properly.
B5: How to do this in a recent version of Excel: File > Options > Trust Center > Trust Center Settings > Macro Settings > "Enable all macros"
B6: How to do this in an older version of Excel: Tools > Options > Security > Macro Security > "Medium"
B8: Changing the intervention details:
B9: You can interact with the Triple I model from the Options tab.
B10: Any changes made to the shaded cells (blue) on this tab will cause Excel to recalculate the model and present new results.
B11: Below are the options available (N.B. not every spreadsheet will have all of these options):
B13: Intervention:
B14: Choose the intervention of interest (only relevant for tools covering more than one intervention: Mental health, Physical activity, and Income-based interventions)
B16: Area:
B17: Choose the area to run the model for. The available geographies are listed below.
C18: 1. Health Boards: | F18: The 14 territorial NHS health boards responsible for delivery of frontline healthcare services in Scotland (2014 boundaries).
C19: 2. Local Authorities: | F19: The 32 elected councils that provide a range of services to local people, including education and care.
F20: The Gaelic name of Eilean Siar is used for the local authority covering the Western Isles.
C21: 3. Integrated Joint Boards: | F21: 31 integration authorities were created by The Public Bodies (Joint Working) Act 2014, in order to integrate the health and
F22: social care functions of health boards and local authorities. These Integrated Joint Boards (IJBs) or Partnerships
F23: correspond to local authority areas, with the exception of Clackmannanshire and Stirling IJB which combines two local
F24: authorities. The Gaelic name of Eilean Siar is used for the IJB covering the Western Isles.
C25: 4. City Region Deals: | F25: City Region Deals are agreements between the Scottish Government, the UK Government and local government.
F26: They have been designed to bring about long-term strategic approaches to improving regional economies.
F27: The following 6 city regions are included:
F29: City Region: | J29: Local Authorities (LAs) included:
F30: Aberdeen City Region Deal | J30: Aberdeen and Aberdeenshire
F31: Edinburgh & Southeast Scotland City Region Deal | J31: Edinburgh, Fife, East Lothian, Midlothian, West Lothian, Borders
F32: Glasgow City Region Deal | J32: East Dunbartonshire, East Renfrewshire, Glasgow City, Inverclyde,
J33: North Lanarkshire, Renfrewshire, South Lanarkshire, and West Dunbartonshire
F34: Inverness & Highland City Region Deal | J34: Highland
F35: Stirling and Clackmannanshire City Region Deal | J35: Stirling and Clackmannanshire
F36: Tay Cities Region Deal | J36: Dundee, Perth & Kinross, Angus, Fife
B38: Targeting strategy:
B39: The strategy for delivering the individual-level* interventions can be altered by the user.
B40: *Interventions delivered to individuals: mental health, weight management, physical activity, smoking cessation, alcohol brief interventions, and job provision.
B41: Four options are available:
B42: · Even distribution: treat the same proportion of the eligible population in each subgroup (i.e., age group, sex and SIMD 2016 quintile).
B43: · Proportionate to need: the proportion of each subgroup treated is proportionate to the subgroup's prevalence of the exposure (e.g., smoking or depression).
B44: · Most deprived 20% only**: treat only those in SIMD quintile 1 (even distribution within this quintile).
B45: · Most deprived 40% only: treat only those in SIMD quintiles 1 and 2 (even distribution within these quintiles).
B46: **The Orkney Islands, Shetland Islands and the Western Isles do not have population in SIMD 2016 quintile 1, so targeting to quintile 1 will produce an error message.
B48: Number to treat:
B49: For individual-level interventions you can choose the number of people to be treated.
B50: · For information the maximum number of people who are eligible to be treated will be calculated in the preceding cell.
B51: · If a higher number is entered an error message will prevent the calculation from occurring.
B52: · Be aware that the model will run and produce results if changes to another cell mean that the number of people then exceeds the new maximum number.
B54: Number of years:
B55: The interventions are delivered in year 1.
B56: Their effects can be modelled from year 2 (the first year of follow-up) to year 20.
B57: N.B. Individual-level interventions are delivered for a single year, while the population-level interventions are modelled as remaining in place after year 1.
B59: Viewing the results:
B60: Options tab | D60: A summary of the results is shown on the Options tab.
B61: Results tab | D61: More detailed results are shown on the Results tab.
B62: Technical Report | D62: Further information about how the results are calculated, and how to interpret them, can be found in the Triple I Technical Report.
B64: For advanced users: How to make more advanced changes to the model
B65: The inner workings of the Triple I tools are described in the Technical Report. We recommend you consult the report before making any advanced changes.
B66: The model data and calculations can be found in a number of 'hidden' tabs.
B67: These are hidden to simplify the spreadsheet for users.
B68: To see the hidden tabs, right-click on any tab, select 'Unhide', then select the tab you want to unhide.
B69: The hidden tabs include population data, prevalence data, targeting calculations, and result calculations.
B70: VBA (Visual Basic for Applications) code has been written to create bespoke functions for the calculations.
B71: The code can be found from the Developer tab > Visual Basic.
B72: If the Developer tab is not shown in your version of Excel go to File > Options > Customize Ribbon and switch on the Developer tab (recent Excel versions only).

Sheet Options
B2: Options for changing the model: | E2: Results summary:
B4: Change the shaded cells (blue) to recalculate. | E4: Check the Results tab for a detailed breakdown of the results
B5: N.B. Results may take a few seconds to change. | E5: Results shown as cumulative difference from baseline over the follow-up period (% difference in brackets).
B7: Intervention: (defined on Evidence tab) | E7: POLICY IMPACT ON HEALTH* | F7: Whole population | G7: SIMD Q1 & Q2 | H7: SIMD Q1
B8: Smoking cessation services | E8: Hospital stays prevented | F8: =CONCATENATE(FIXED(Results!E16,0)," (",FIXED(Results!F16,2),"%)") -> 2,672 (0.23%) | G8: =CONCATENATE(FIXED(Results!E17,0)," (",FIXED(Results!F17,2),"%)") -> 1,224 (0.23%) | H8: =IF(OR(Calculations!$E$2="Orkney Health Board",Calculations!$E$2="Orkney Islands Local Authority",Calculations!$E$2="Shetland Health Board",Calculations!$E$2="Western Isles Health Board",Calculations!$E$2="Shetland Islands Local Authority",Calculations!$E$2="Eilean Siar Local Authority"),"N/A", CONCATENATE(FIXED(Results!E18,0)," (",FIXED(Results!F18,2),"%)")) -> 640 (0.22%)
E9: Premature deaths prevented | F9: =CONCATENATE(FIXED(Results!E20,0)," (",FIXED(Results!F20,2),"%)") -> 76 (0.35%) | G9: =CONCATENATE(FIXED(Results!E21,0)," (",FIXED(Results!F21,2),"%)") -> 38 (0.33%) | H9: =IF(OR(Calculations!$E$2="Orkney Health Board",Calculations!$E$2="Orkney Islands Local Authority",Calculations!$E$2="Shetland Health Board",Calculations!$E$2="Western Isles Health Board",Calculations!$E$2="Shetland Islands Local Authority",Calculations!$E$2="Eilean Siar Local Authority"),"N/A", CONCATENATE(FIXED(Results!E22,0)," (",FIXED(Results!F22,2),"%)")) -> 21 (0.32%)
B10: Choose the area to run the model for: | E10: Years of life saved | F10: =CONCATENATE(FIXED(Results!E24,0)," (",FIXED(Results!F24,2),"%)") -> 2,132 (0.36%) | G10: =CONCATENATE(FIXED(Results!E25,0)," (",FIXED(Results!F25,2),"%)") -> 1,078 (0.34%) | H10: =IF(OR(Calculations!$E$2="Orkney Health Board",Calculations!$E$2="Orkney Islands Local Authority",Calculations!$E$2="Shetland Health Board",Calculations!$E$2="Western Isles Health Board",Calculations!$E$2="Shetland Islands Local Authority",Calculations!$E$2="Eilean Siar Local Authority"),"N/A", CONCATENATE(FIXED(Results!E26,0)," (",FIXED(Results!F26,2),"%)")) -> 590 (0.33%)
B11: Scotland | E11: *N.B. a positive figure indicates an improvement in health outcomes.
B13: Choose the targeting strategy: | E13: POLICY IMPACT ON HEALTH INEQUALITIES**
B14: Even distribution | E14: Gap between most and least deprived | F14: Absolute | G14: Relative
E15: Hospital stays | F15: =CONCATENATE(FIXED(Results!E29,0)," (",FIXED(Results!F29,3),"%)") -> -25 (-0.188%) | G15: =CONCATENATE(FIXED(Results!E33,4)," (",FIXED(Results!F33,3),"%)") -> 0.0005 (0.025%)
B16: Max no. people available to be treated: | E16: Premature deaths | F16: =CONCATENATE(FIXED(Results!E30,0)," (",FIXED(Results!F30,3),"%)") -> -1 (-0.283%) | G16: =CONCATENATE(FIXED(Results!E34,4)," (",FIXED(Results!F34,3),"%)") -> 0.0021 (0.069%)
B17: =ROUNDDOWN(IF(OR($B$14="Even distribution",$B$14="Proportionate to need"),HLOOKUP(Calculations!$E$2,'Population at Risk'!$C$3:$BC$257,'Population at Risk'!BD255,FALSE),IF($B$14="Targeting to SIMD Q1",HLOOKUP(Calculations!$E$2,'Population at Risk'!$C$3:$BC$257,'Population at Risk'!BD256,FALSE),IF($B$14="Targeting to SIMD Q1 & Q2",HLOOKUP(Calculations!$E$2,'Population at Risk'!$C$3:$BC$257,'Population at Risk'!BD257,FALSE),"error"))),0) -> 691607 | E17: Years of life lost | F17: =CONCATENATE(FIXED(Results!E31,0)," (",FIXED(Results!F31,3),"%)") -> -36 (-0.291%) | G17: =CONCATENATE(FIXED(Results!E35,4)," (",FIXED(Results!F35,3),"%)") -> 0.0020 (0.067%)
E18: Population-wide inequalities slope | F18: Absolute (SII) | G18: Relative (RII)
B19: Choose the number of people to treat: | E19: Hospital stays | F19: =CONCATENATE(FIXED(Results!E37,0)," (",FIXED(Results!F37,3),"%)") -> -30 (-0.189%) | G19: =CONCATENATE(FIXED(Results!E41,4)," (",FIXED(Results!F41,3),"%)") -> 0.0003 (0.042%)
B20: (in addition to current number treated) | E20: Premature deaths | F20: =CONCATENATE(FIXED(Results!E38,0)," (",FIXED(Results!F38,3),"%)") -> -2 (-0.283%) | G20: =CONCATENATE(FIXED(Results!E42,4)," (",FIXED(Results!F42,3),"%)") -> 0.0008 (0.063%)
B21: 691607 | E21: Years of life lost | F21: =CONCATENATE(FIXED(Results!E39,0)," (",FIXED(Results!F39,3),"%)") -> -43 (-0.291%) | G21: =CONCATENATE(FIXED(Results!E43,4)," (",FIXED(Results!F43,3),"%)") -> 0.0008 (0.061%)
B22: =IF(AND(OR(Calculations!$E$2="Orkney Health Board",Calculations!$E$2="Orkney Islands Local Authority",Calculations!$E$2="Shetland Health Board",Calculations!$E$2="Western Isles Health Board",Calculations!$E$2="Shetland Islands Local Authority",Calculations!$E$2="Eilean Siar Local Authority"),B14="Targeting to SIMD Q1"),"Error: No Q1 population for this area", IF(B21>B17,"Too high: please check and re-enter","")) ->  | E22: **N.B. Based on rates per 100,000. A negative figure indicates reduced inequalities / narrowing of the gap.
B23: Calculate health impact after this many years:
B24: 2 | E24: SELECTED COSTS AND SAVINGS*** | G24: £
E25: Direct financial cost of the intervention (£): | G25: =Results!D50 -> 71927128
E26: Direct financial savings from reduced hospitalisations (£):
F27: Whole population | G27: =CONCATENATE(FIXED(Results!E54,0)," (",FIXED(Results!F54,3),"%)") -> 6,711,169 (0.234%)
F28: SIMD Q1 & Q2 | G28: =CONCATENATE(FIXED(Results!E55,0)," (",FIXED(Results!F55,3),"%)") -> 3,074,021 (0.226%)
F29: SIMD Q1 | G29: =IF(OR(Calculations!$E$2="Orkney Health Board",Calculations!$E$2="Orkney Islands Local Authority",Calculations!$E$2="Shetland Health Board",Calculations!$E$2="Western Isles Health Board",Calculations!$E$2="Shetland Islands Local Authority",Calculations!$E$2="Eilean Siar Local Authority"),"N/A", CONCATENATE(FIXED(Results!E56,0)," (",FIXED(Results!F56,3),"%)")) -> 1,606,655 (0.222%)
E30: ***Costs/savings from changes to other health outcomes and to health inequalities have not been estimated.

Sheet Results
B2: Detailed results for intervention: | D2: =Options!B8 -> Smoking cessation services
B4: Area of interest: | C4: =Options!B11 -> Scotland | D4: Targeting strategy: | E4: =Options!B14 -> Even distribution
B5: Age group: | C5: 16+ years | D5: Additional people to be treated: | E5: =Options!B21 -> 691607
B6: Baseline year (prevalence and population data): | C6: 2016 | D6: Health impact calculated after: | E6: =CONCATENATE(Options!B24," years") -> 2 years
B8: Baseline situation (2016): | C8: No. smokers | D8: No. available for intervention | E8: No. all-cause hospital stays | F8: No. all-cause deaths | G8: No. premature all-cause deaths | H8: Years of life lost (all causes)
B9: Whole population | C9: =HLOOKUP(Calculations!$E$2,'Population at Risk'!$C$3:$BC$257,'Population at Risk'!BD251,FALSE) -> 990842.2113 | D9: =ROUNDDOWN(HLOOKUP(Calculations!$E$2,'Population at Risk'!$C$3:$BC$257,'Population at Risk'!BD255,FALSE),0) -> 691607 | E9: =HLOOKUP(Calculations!$E$2,'Health outcome totals 2016'!$C$3:$BC$17,'Health outcome totals 2016'!$BD6,FALSE) -> 1125093 | F9: =HLOOKUP(Calculations!$E$2,'Health outcome totals 2016'!$C$3:$BC$17,'Health outcome totals 2016'!$BD9,FALSE) -> 56725 | G9: =HLOOKUP(Calculations!$E$2,'Health outcome totals 2016'!$C$3:$BC$17,'Health outcome totals 2016'!$BD12,FALSE) -> 21313 | H9: =HLOOKUP(Calculations!$E$2,'Health outcome totals 2016'!$C$3:$BC$17,'Health outcome totals 2016'!$BD15,FALSE) -> 708624.0484
B10: Most deprived 40% (Q1 & Q2) | C10: =HLOOKUP(Calculations!$E$2,'Population at Risk'!$C$3:$BC$257,'Population at Risk'!BD253,FALSE) -> 561679.8749 | D10: =ROUNDDOWN(HLOOKUP(Calculations!$E$2,'Population at Risk'!$C$3:$BC$257,'Population at Risk'!BD257,FALSE),0) -> 392052 | E10: =HLOOKUP(Calculations!$E$2,'Health outcome totals 2016'!$C$3:$BC$17,'Health outcome totals 2016'!$BD8,FALSE) -> 534382 | F10: =HLOOKUP(Calculations!$E$2,'Health outcome totals 2016'!$C$3:$BC$17,'Health outcome totals 2016'!$BD11,FALSE) -> 26567 | G10: =HLOOKUP(Calculations!$E$2,'Health outcome totals 2016'!$C$3:$BC$17,'Health outcome totals 2016'!$BD14,FALSE) -> 11618 | H10: =HLOOKUP(Calculations!$E$2,'Health outcome totals 2016'!$C$3:$BC$17,'Health outcome totals 2016'!$BD17,FALSE) -> 372328.9705
B11: Most deprived 20% (Q1) | C11: =IF(OR(Calculations!$E$2="Orkney Health Board",Calculations!$E$2="Orkney Islands Local Authority",Calculations!$E$2="Shetland Health Board",Calculations!$E$2="Western Isles Health Board",Calculations!$E$2="Shetland Islands Local Authority",Calculations!$E$2="Eilean Siar Local Authority"),"N/A", HLOOKUP(Calculations!$E$2,'Population at Risk'!$C$3:$BC$257,'Population at Risk'!BD252,FALSE)) -> 316301.9712 | D11: =IF(OR(Calculations!$E$2="Orkney Health Board",Calculations!$E$2="Orkney Islands Local Authority",Calculations!$E$2="Shetland Health Board",Calculations!$E$2="Western Isles Health Board",Calculations!$E$2="Shetland Islands Local Authority",Calculations!$E$2="Eilean Siar Local Authority"),"N/A", ROUNDDOWN(HLOOKUP(Calculations!$E$2,'Population at Risk'!$C$3:$BC$257,'Population at Risk'!BD256,FALSE),0)) -> 220778 | E11: =IF(OR(Calculations!$E$2="Orkney Health Board",Calculations!$E$2="Orkney Islands Local Authority",Calculations!$E$2="Shetland Health Board",Calculations!$E$2="Western Isles Health Board",Calculations!$E$2="Shetland Islands Local Authority",Calculations!$E$2="Eilean Siar Local Authority"),"N/A", HLOOKUP(Calculations!$E$2,'Health outcome totals 2016'!$C$3:$BC$17,'Health outcome totals 2016'!$BD7,FALSE)) -> 283718 | F11: =IF(OR(Calculations!$E$2="Orkney Health Board",Calculations!$E$2="Orkney Islands Local Authority",Calculations!$E$2="Shetland Health Board",Calculations!$E$2="Western Isles Health Board",Calculations!$E$2="Shetland Islands Local Authority",Calculations!$E$2="Eilean Siar Local Authority"),"N/A", HLOOKUP(Calculations!$E$2,'Health outcome totals 2016'!$C$3:$BC$17,'Health outcome totals 2016'!$BD10,FALSE)) -> 13665 | G11: =IF(OR(Calculations!$E$2="Orkney Health Board",Calculations!$E$2="Orkney Islands Local Authority",Calculations!$E$2="Shetland Health Board",Calculations!$E$2="Western Isles Health Board",Calculations!$E$2="Shetland Islands Local Authority",Calculations!$E$2="Eilean Siar Local Authority"),"N/A", HLOOKUP(Calculations!$E$2,'Health outcome totals 2016'!$C$3:$BC$17,'Health outcome totals 2016'!$BD13,FALSE)) -> 6443 | H11: =IF(OR(Calculations!$E$2="Orkney Health Board",Calculations!$E$2="Orkney Islands Local Authority",Calculations!$E$2="Shetland Health Board",Calculations!$E$2="Western Isles Health Board",Calculations!$E$2="Shetland Islands Local Authority",Calculations!$E$2="Eilean Siar Local Authority"),"N/A", HLOOKUP(Calculations!$E$2,'Health outcome totals 2016'!$C$3:$BC$17,'Health outcome totals 2016'!$BD16,FALSE)) -> 203545.7107
B13: Health impact | C13: Without intervention | D13: With intervention | E13: Difference | F13: Difference | G13: Interpretation
B14: HEALTH OUTCOMES | C14: n | D14: n | E14: n | F14: %
B15: Hospital stays | F15: % prevented
B16: Whole population | C16: =Calculations!O5 -> 1143855.727 | D16: =Calculations!P5 -> 1141184.083 | E16: =C16-D16 -> 2671.643902 | F16: =E16*100/C16 -> 0.2335647615 | G16: Hospital stays prevented
B17: Q1 & Q2 | C17: =Calculations!O6 -> 542278.7308 | D17: =Calculations!P6 -> 541054.9963 | E17: =C17-D17 -> 1223.734464 | F17: =E17*100/C17 -> 0.2256652151 | G17: (N.B. positive difference =
B18: Q1 | C18: =IF(OR(Calculations!$E$2="Orkney Health Board",Calculations!$E$2="Orkney Islands Local Authority",Calculations!$E$2="Shetland Health Board",Calculations!$E$2="Western Isles Health Board",Calculations!$E$2="Shetland Islands Local Authority",Calculations!$E$2="Eilean Siar Local Authority"),"N/A", Calculations!O7) -> 288715.8401 | D18: =IF(OR(Calculations!$E$2="Orkney Health Board",Calculations!$E$2="Orkney Islands Local Authority",Calculations!$E$2="Shetland Health Board",Calculations!$E$2="Western Isles Health Board",Calculations!$E$2="Shetland Islands Local Authority",Calculations!$E$2="Eilean Siar Local Authority"),"N/A", Calculations!P7) -> 288076.248 | E18: =IF(OR(Calculations!$E$2="Orkney Health Board",Calculations!$E$2="Orkney Islands Local Authority",Calculations!$E$2="Shetland Health Board",Calculations!$E$2="Western Isles Health Board",Calculations!$E$2="Shetland Islands Local Authority",Calculations!$E$2="Eilean Siar Local Authority"),"N/A", C18-D18) -> 639.5920172 | F18: =IF(OR(Calculations!$E$2="Orkney Health Board",Calculations!$E$2="Orkney Islands Local Authority",Calculations!$E$2="Shetland Health Board",Calculations!$E$2="Western Isles Health Board",Calculations!$E$2="Shetland Islands Local Authority",Calculations!$E$2="Eilean Siar Local Authority"),"N/A", E18*100/C18) -> 0.2215299365 | G18: fewer stays)
B19: Premature deaths (<75 years) | F19: % prevented
B20: Whole population | C20: =Calculations!Q5 -> 21611.41313 | D20: =Calculations!R5 -> 21535.83187 | E20: =C20-D20 -> 75.58125334 | F20: =E20*100/C20 -> 0.3497284185 | G20: Premature deaths prevented
B21: Q1 & Q2 | C21: =Calculations!Q6 -> 11396.36468 | D21: =Calculations!R6 -> 11358.77137 | E21: =C21-D21 -> 37.5933105 | F21: =E21*100/C21 -> 0.3298710735 | G21: (N.B. positive difference =
B22: Q1 | C22: =IF(OR(Calculations!$E$2="Orkney Health Board",Calculations!$E$2="Orkney Islands Local Authority",Calculations!$E$2="Shetland Health Board",Calculations!$E$2="Western Isles Health Board",Calculations!$E$2="Shetland Islands Local Authority",Calculations!$E$2="Eilean Siar Local Authority"),"N/A", Calculations!Q7) -> 6418.203214 | D22: =IF(OR(Calculations!$E$2="Orkney Health Board",Calculations!$E$2="Orkney Islands Local Authority",Calculations!$E$2="Shetland Health Board",Calculations!$E$2="Western Isles Health Board",Calculations!$E$2="Shetland Islands Local Authority",Calculations!$E$2="Eilean Siar Local Authority"),"N/A", Calculations!R7) -> 6397.675241 | E22: =IF(OR(Calculations!$E$2="Orkney Health Board",Calculations!$E$2="Orkney Islands Local Authority",Calculations!$E$2="Shetland Health Board",Calculations!$E$2="Western Isles Health Board",Calculations!$E$2="Shetland Islands Local Authority",Calculations!$E$2="Eilean Siar Local Authority"),"N/A", C22-D22) -> 20.52797375 | F22: =IF(OR(Calculations!$E$2="Orkney Health Board",Calculations!$E$2="Orkney Islands Local Authority",Calculations!$E$2="Shetland Health Board",Calculations!$E$2="Western Isles Health Board",Calculations!$E$2="Shetland Islands Local Authority",Calculations!$E$2="Eilean Siar Local Authority"),"N/A", E22*100/C22) -> 0.3198398845 | G22: fewer premature deaths)
B23: Years of life lost | F23: % saved
B24: Whole population | C24: =Calculations!M5 -> 595251.8803 | D24: =Calculations!N5 -> 593120.3275 | E24: =C24-D24 -> 2131.552797 | F24: =E24*100/C24 -> 0.3580925769 | G24: Years of life saved
B25: Q1 & Q2 | C25: =Calculations!M6 -> 317747.9065 | D25: =Calculations!N6 -> 316669.4757 | E25: =C25-D25 -> 1078.430859 | F25: =E25*100/C25 -> 0.3393982578 | G25: (N.B. positive difference =
B26: Q1 | C26: =IF(OR(Calculations!$E$2="Orkney Health Board",Calculations!$E$2="Orkney Islands Local Authority",Calculations!$E$2="Shetland Health Board",Calculations!$E$2="Western Isles Health Board",Calculations!$E$2="Shetland Islands Local Authority",Calculations!$E$2="Eilean Siar Local Authority"),"N/A", Calculations!M7) -> 179391.5396 | D26: =IF(OR(Calculations!$E$2="Orkney Health Board",Calculations!$E$2="Orkney Islands Local Authority",Calculations!$E$2="Shetland Health Board",Calculations!$E$2="Western Isles Health Board",Calculations!$E$2="Shetland Islands Local Authority",Calculations!$E$2="Eilean Siar Local Authority"),"N/A", Calculations!N7) -> 178801.2981 | E26: =IF(OR(Calculations!$E$2="Orkney Health Board",Calculations!$E$2="Orkney Islands Local Authority",Calculations!$E$2="Shetland Health Board",Calculations!$E$2="Western Isles Health Board",Calculations!$E$2="Shetland Islands Local Authority",Calculations!$E$2="Eilean Siar Local Authority"),"N/A", C26-D26) -> 590.2414356 | F26: =IF(OR(Calculations!$E$2="Orkney Health Board",Calculations!$E$2="Orkney Islands Local Authority",Calculations!$E$2="Shetland Health Board",Calculations!$E$2="Western Isles Health Board",Calculations!$E$2="Shetland Islands Local Authority",Calculations!$E$2="Eilean Siar Local Authority"),"N/A", E26*100/C26) -> 0.3290241207 | G26: years of life saved)
B27: HEALTH INEQUALITIES | C27: rate* | D27: rate* | E27: rate* | F27: %
B28: Absolute gap (Q1 minus Q5**) | F28: % increase
B29: Hospital stays | C29: =Inequalities!H17 -> 13347.3262 | D29: =Inequalities!J17 -> 13322.17741 | E29: =D29-C29 -> -25.14878461 | F29: =E29*100/C29 -> -0.1884181464 | G29: Change in the absolute gap
B30: Premature deaths | C30: =Inequalities!N17 -> 452.8597277 | D30: =Inequalities!P17 -> 451.5776458 | E30: =D30-C30 -> -1.282081926 | F30: =E30*100/C30 -> -0.2831079577 | G30: (N.B. negative = narrower gap)
B31: YLL | C31: =Inequalities!T17 -> 12467.78861 | D31: =Inequalities!V17 -> 12431.48125 | E31: =D31-C31 -> -36.30736317 | F31: =E31*100/C31 -> -0.291209326
B32: Relative gap Q1 to Q5** | F32: % increase
B33: Hospital stays | C33: =Inequalities!H18 -> 1.813617171 | D33: =Inequalities!J18 -> 1.814068623 | E33: =D33-C33 -> 0.0004514524797 | F33: =E33*100/C33 -> 0.0248923801 | G33: Change in the relative gap
B34: Premature deaths | C34: =Inequalities!N18 -> 3.002146027 | D34: =Inequalities!P18 -> 3.004232402 | E34: =D34-C34 -> 0.002086375252 | F34: =E34*100/C34 -> 0.0694961282 | G34: (N.B. negative = narrower gap)
B35: YLL | C35: =Inequalities!T18 -> 2.98905031 | D35: =Inequalities!V18 -> 2.991055388 | E35: =D35-C35 -> 0.002005078061 | F35: =E35*100/C35 -> 0.06708077325
B36: Slope Index of Inequality (SII) | F36: % increase
B37: Hospital stays | C37: =Inequalities!H15 -> 16090.34056 | D37: =Inequalities!J15 -> 16059.9628 | E37: =D37-C37 -> -30.37775272 | F37: =E37*100/C37 -> -0.1887949643 | G37: Change in absolute inequalities
B38: Premature deaths | C38: =Inequalities!N15 -> 533.4684817 | D38: =Inequalities!P15 -> 531.9592706 | E38: =D38-C38 -> -1.509211131 | F38: =E38*100/C38 -> -0.282905398 | G38: (N.B. negative = decreased inequalities)
B39: YLL | C39: =Inequalities!T15 -> 14690.30452 | D39: =Inequalities!V15 -> 14647.48763 | E39: =D39-C39 -> -42.8168885 | F39: =E39*100/C39 -> -0.2914635871
B40: Relative Index of Inequality (RII) | F40: % increase
B41: Hospital stays | C41: =Inequalities!H16 -> 0.7333895263 | D41: =Inequalities!J16 -> 0.7336975065 | E41: =D41-C41 -> 0.0003079802716 | F41: =E41*100/C41 -> 0.04199409189 | G41: Change in relative inequalities
B42: Premature deaths | C42: =Inequalities!N16 -> 1.284938004 | D42: =Inequalities!P16 -> 1.28575021 | E42: =D42-C42 -> 0.0008122058561 | F42: =E42*100/C42 -> 0.06320973103 | G42: (N.B. negative = decreased inequalities)
B43: YLL | C43: =Inequalities!T16 -> 1.279828615 | D43: =Inequalities!V16 -> 1.28061373 | E43: =D43-C43 -> 0.0007851146873 | F43: =E43*100/C43 -> 0.06134529873
B45: * European age-standardised rate per 100,000
B46: ** or the most and least deprived quintiles in the area
B48: Economic impact | C48: Without intervention | D48: With intervention | E48: Difference | F48: Difference | G48: Interpretation
C49: £ | D49: £ | E49: £
B50: Direct financial cost: | C50: 0 | D50: =Evidence!D165*Results!E5 -> 71927128 | E50: =D50-C50 -> 71927128 | G50: Positive difference = net cost incurred
B52: Direct financial savings: | C52: £ | D52: £ | E52: £ | F52: % saved
B53: Hospital stays
B54: Whole population | C54: =Evidence!$D$173*Results!C16 -> 2873365587 | D54: =Evidence!$D$173*Results!D16 -> 2866654418 | E54: =C54-D54 -> 6711169.481 | F54: =E54*100/C54 -> 0.2335647615 | G54: Reduction in hospital stay costs
B55: Q1 & Q2 | C55: =Evidence!$D$173*Results!C17 -> 1362204172 | D55: =Evidence!$D$173*Results!D17 -> 1359130151 | E55: =C55-D55 -> 3074020.973 | F55: =E55*100/C55 -> 0.2256652151 | G55: (N.B. positive difference =
B56: Q1 | C56: =IF(OR(Calculations!$E$2="Orkney Health Board",Calculations!$E$2="Orkney Islands Local Authority",Calculations!$E$2="Shetland Health Board",Calculations!$E$2="Western Isles Health Board",Calculations!$E$2="Shetland Islands Local Authority",Calculations!$E$2="Eilean Siar Local Authority"),"N/A", Evidence!$D$173*Results!C18) -> 725254190.2 | D56: =IF(OR(Calculations!$E$2="Orkney Health Board",Calculations!$E$2="Orkney Islands Local Authority",Calculations!$E$2="Shetland Health Board",Calculations!$E$2="Western Isles Health Board",Calculations!$E$2="Shetland Islands Local Authority",Calculations!$E$2="Eilean Siar Local Authority"),"N/A", Evidence!$D$173*Results!D18) -> 723647535.1 | E56: =IF(OR(Calculations!$E$2="Orkney Health Board",Calculations!$E$2="Orkney Islands Local Authority",Calculations!$E$2="Shetland Health Board",Calculations!$E$2="Western Isles Health Board",Calculations!$E$2="Shetland Islands Local Authority",Calculations!$E$2="Eilean Siar Local Authority"),"N/A", C56-D56) -> 1606655.147 | F56: =IF(OR(Calculations!$E$2="Orkney Health Board",Calculations!$E$2="Orkney Islands Local Authority",Calculations!$E$2="Shetland Health Board",Calculations!$E$2="Western Isles Health Board",Calculations!$E$2="Shetland Islands Local Authority",Calculations!$E$2="Eilean Siar Local Authority"),"N/A", E56*100/C56) -> 0.2215299365 | G56: money saved)
B57: Premature deaths (<75 years) | E57: Savings not estimated
B58: Years of life lost | E58: Savings not estimated
B59: Inequalities | E59: Savings not estimated

Sheet Evidence
B2: The intervention
B4: The intervention to be modelled is the NHS Smoking cessation services (Scotland) program (NHS Health Scotland et al 2017):
B5: ● Brief interventions – opportunistic advice, discussion, negotiation or encouragement, and referral to more intensive treatment where appropriate.
B6: ● Specialist smoking services – NHS-supported services that provide an enhanced level of smoking cessation support from that provided through brief interventions,
B7: to particular standards, and are staffed by specialists or advisers who have undertaken nationally recognised training to the appropriate national standards.
B8: These services provide intensive group and 1:1 support for a series of planned sessions throughout the quit attempt, in conjunction with pharmacotherapy, and
B9: follow up the client beyond the quit date.
B11: Exposure Rate Ratios (ERR): likelihood of outcomes for smokers compared to non-smokers
B13: Outcome | C13: Sex | D13: ERR (relative to non-smokers) | E13: Source | F13: Quoted/calculated?
B14: All-cause hospitalisation | C14: Men | D14: 1.48 | E14: Lawder et al., 2007 | F14: Quoted
C15: Women | D15: 1.55 | E15: Lawder et al., 2007 | F15: Quoted
B17: All-cause mortality | C17: Men | D17: 1.9 | E17: Gellert et al., 2012 | F17: Quoted
C18: Women | D18: 1.8 | E18: Gellert et al., 2012 | F18: Quoted
B21: Hospitalisation
B22: The relative risk of hospitalisation in current smokers compared with never smokers is 1.48 (Hazard Ratio, 'HR') for males and 1.55 (HR) for females as reported in the
B23: Linked Scottish Health Survey to Predict Hospitalization and Deaths (Lawder et al, 2007). The hazard ratios are based on individuals who smoke 10-20
B24: cigarettes per day.
B26: Mortality
B27: Based on a systematic review and meta-analysis of association of smoking with all-cause mortality in people 60 years and older (Gellert et al 2012).
B28: The study included 17 cohort studies from 7 countries (including England) published before 2011.
B29: Age and sex were adjusted for in all studies that were not restricted to single age group or sex.
B30: Other factors controlled for were systolic blood pressure, alcohol consumption, and physical activity.
B33: Intervention Rate Ratios (IRR) likelihood of outcomes for those undergoing successful smoking cessation intervention
B35: Outcome | C35: Sex | D35: IRR for ex-smokers relative to current smokers | E35: Sources | F35: Quoted/calculated?
B36: All-cause hospitalisation | C36: Men | D36: 0.82 | E36: Lawder et al, 2007 | F36: Calculated
C37: Women | D37: 0.76 | E37: Lawder et al, 2007 | F37: Calculated
B39: All-cause mortality | C39: Men | D39: 0.76 | E39: Hart et al, 2013 | F39: Quoted
C40: Women | D40: 0.64 | E40: Hart et al, 2013 | F40: Quoted
B42: Hospitalisation
B43: We found no direct evidence for the effect of giving up smoking on hospitalisation risks.
B44: We therefore calculated these from the HRs given by Lawder et al (2007), for the risk of hospitalisation for former smokers and moderate smokers, relative to
B45: never smokers. The hospitalisation IRR for was calculated as the HR for former smokers divided by the HR for moderate smokers.
B46: For males this was 1.21/1.48 = 0.82 and for females it was 1.18/1.55 = 0.76.
B49: Change in intervention effect over time
B51: Intervention | C51: Success rate (%) | D51: Measured at | E51: Sources | F51: Quoted/calculated?
B52: NHS smoking cessation services in Scotland (5 year average 2009 - 2013) | C52: 5.8 | D52: 12 months | E52: NHS Information Services Division (2014) | F52: Quoted
B54: We used averages for NHS-delivered smoking cessation services in Scotland (2009-2013).
B55: Of those being treated 5.80% reported successfully giving up smoking (within 12 months).
B56: After the intervention year we assumed that 30.00% of those who had successfully given up smoking relapsed over the next 8 years.
B57: This was based on a meta-analysis of nicotine-replacement therapy (Etter and Stapleton, 2006).
B58: This relapse rate was applied linearly (0.25% of the treated population per annum).
F60: Rate ratio (see above)
F61: Hospitalisation | H61: Mortality
F62: male | G62: female | H62: male | I62: female
D63: Ex-smoker relative to current smoker: | F63: =D36 -> 0.82 | G63: =D37 -> 0.76 | H63: =D39 -> 0.76 | I63: =D40 -> 0.64
D64: Current smoker relative to ex-smoker: | F64: =1/F63 -> 1.219512195 | G64: =1/G63 -> 1.315789474 | H64: =1/H63 -> 1.315789474 | I64: =1/I63 -> 1.5625
C65: Smoking prevalence | F65: IRR for treated group (relative to untreated)
C66: Treated group | E66: Untreated | F66: Hospitalisation | H66: Mortality
B67: Year | C67: % smokers | D67: % non-smokers | E67: % smokers | F67: male | G67: female | H67: male | I67: female
B68: 0 (pre-intervention) | C68: 100 | D68: 0 | E68: 100
B69: 1 (intervention) | C69: 94.2 | D69: 5.8 | E69: 100 | F69: =(($C69/100)*F$64 + ($D69/100))/(1*F$64) -> 0.98956 | G69: =(($C69/100)*G$64 + ($D69/100))/(1*G$64) -> 0.98608 | H69: 0.98608 | I69: 0.97912
B70: 2 | C70: 94.44857143 | D70: 5.551428571 | E70: 100 | F70: 0.9900074286 | G70: 0.9866765714 | H70: 0.9866765714 | I70: 0.9800148571
B71: 3 | C71: 94.69714286 | D71: 5.302857143 | E71: 100 | F71: 0.9904548571 | G71: 0.9872731429 | H71: 0.9872731429 | I71: 0.9809097143
B72: 4 | C72: 94.94571429 | D72: 5.054285714 | E72: 100 | F72: 0.9909022857 | G72: 0.9878697143 | H72: 0.9878697143 | I72: 0.9818045714
B73: 5 | C73: 95.19428571 | D73: 4.805714286 | E73: 100 | F73: 0.9913497143 | G73: 0.9884662857 | H73: 0.9884662857 | I73: 0.9826994286
B74: 6 | C74: 95.44285714 | D74: 4.557142857 | E74: 100 | F74: 0.9917971429 | G74: 0.9890628571 | H74: 0.9890628571 | I74: 0.9835942857
B75: 7 | C75: 95.69142857 | D75: 4.308571429 | E75: 100 | F75: 0.9922445714 | G75: 0.9896594286 | H75: 0.9896594286 | I75: 0.9844891429
B76: 8 | C76: 95.94 | D76: 4.06 | E76: 100 | F76: 0.992692 | G76: 0.990256 | H76: 0.990256 | I76: 0.985384
B77: 9 | C77: 95.94 | D77: 4.06 | E77: 100 | F77: 0.992692 | G77: 0.990256 | H77: 0.990256 | I77: 0.985384
B78: 10 | C78: 95.94 | D78: 4.06 | E78: 100 | F78: 0.992692 | G78: 0.990256 | H78: 0.990256 | I78: 0.985384
B79: 11 | C79: 95.94 | D79: 4.06 | E79: 100 | F79: 0.992692 | G79: 0.990256 | H79: 0.990256 | I79: 0.985384
B80: 12 | C80: 95.94 | D80: 4.06 | E80: 100 | F80: 0.992692 | G80: 0.990256 | H80: 0.990256 | I80: 0.985384
B81: 13 | C81: 95.94 | D81: 4.06 | E81: 100 | F81: 0.992692 | G81: 0.990256 | H81: 0.990256 | I81: 0.985384
B82: 14 | C82: 95.94 | D82: 4.06 | E82: 100 | F82: 0.992692 | G82: 0.990256 | H82: 0.990256 | I82: 0.985384
B83: 15 | C83: 95.94 | D83: 4.06 | E83: 100 | F83: 0.992692 | G83: 0.990256 | H83: 0.990256 | I83: 0.985384
B84: 16 | C84: 95.94 | D84: 4.06 | E84: 100 | F84: 0.992692 | G84: 0.990256 | H84: 0.990256 | I84: 0.985384
B85: 17 | C85: 95.94 | D85: 4.06 | E85: 100 | F85: 0.992692 | G85: 0.990256 | H85: 0.990256 | I85: 0.985384
B86: 18 | C86: 95.94 | D86: 4.06 | E86: 100 | F86: 0.992692 | G86: 0.990256 | H86: 0.990256 | I86: 0.985384
B87: 19 | C87: 95.94 | D87: 4.06 | E87: 100 | F87: 0.992692 | G87: 0.990256 | H87: 0.990256 | I87: 0.985384
B88: 20 | C88: 95.94 | D88: 4.06 | E88: 100 | F88: 0.992692 | G88: 0.990256 | H88: 0.990256 | I88: 0.985384
B89: 21 | C89: 95.94 | D89: 4.06 | E89: 100 | F89: 0.992692 | G89: 0.990256 | H89: 0.990256 | I89: 0.985384
B92: Prevalence of smoking
B94: The prevalence data (proportion of the population that smoke) were extracted from the Scottish Surveys Core Questions. Prevalence for local areas (by sex) was
B95: taken from the 2015 dataset, and national prevalence (by age group, sex and SIMD) was taken from the 2012-2015 combined data.
B97: Prevalence by Area (proportion) | F97: Prevalence by deprivation quintile (proportion)
B98: Area | C98: Females | D98: Males | F98: SIMD 2016 quintile | G98: age group | H98: Females | I98: Males
B99: SCOTLAND | C99: 0.188 | D99: 0.2266 | F99: Q1 (most deprived) | G99: 16-24 | H99: 0.2768 | I99: 0.3326
B100: Ayrshire & Arran Health Board | C100: 0.1901 | D100: 0.2357 | G100: 25-34 | H100: 0.3587 | I100: 0.4096
B101: Borders Health Board | C101: 0.1921 | D101: 0.1669 | G101: 35-44 | H101: 0.3929 | I101: 0.4741
B102: Dumfries & Galloway Health Board | C102: 0.2236 | D102: 0.2341 | G102: 45-54 | H102: 0.4315 | I102: 0.4347
B103: Fife Health Board | C103: 0.1938 | D103: 0.2481 | G103: 55-64 | H103: 0.3953 | I103: 0.4326
B104: Forth Valley Health Board | C104: 0.1385 | D104: 0.1935 | G104: 65-74 | H104: 0.2737 | I104: 0.3095
B105: Grampian Health Board | C105: 0.166 | D105: 0.2376 | G105: 75+ | H105: 0.149 | I105: 0.1705
B106: Greater Glasgow & Clyde Health Board | C106: 0.21 | D106: 0.2432 | F106: Q2 | G106: 16-24 | H106: 0.2637 | I106: 0.2858
B107: Highland Health Board | C107: 0.1787 | D107: 0.2402 | G107: 25-34 | H107: 0.2801 | I107: 0.3198
B108: Lanarkshire Health Board | C108: 0.2192 | D108: 0.2164 | G108: 35-44 | H108: 0.303 | I108: 0.3409
B109: Lothian Health Board | C109: 0.1709 | D109: 0.2011 | G109: 45-54 | H109: 0.3128 | I109: 0.367
B110: Orkney Health Board | C110: 0.188 | D110: 0.2266 | G110: 55-64 | H110: 0.293 | I110: 0.2838
B111: Shetland Health Board | C111: 0.188 | D111: 0.2266 | G111: 65-74 | H111: 0.211 | I111: 0.2184
B112: Tayside Health Board | C112: 0.1686 | D112: 0.2381 | G112: 75+ | H112: 0.0965 | I112: 0.1005
B113: Western Isles Health Board | C113: 0.188 | D113: 0.2266 | F113: Q3 | G113: 16-24 | H113: 0.1986 | I113: 0.2051
B114: Aberdeen City Local Authority | C114: 0.1666 | D114: 0.2563 | G114: 25-34 | H114: 0.2312 | I114: 0.2873
B115: Aberdeenshire Local Authority | C115: 0.1415 | D115: 0.2177 | G115: 35-44 | H115: 0.2222 | I115: 0.3101
B116: Angus Local Authority | C116: 0.0983 | D116: 0.2617 | G116: 45-54 | H116: 0.2312 | I116: 0.2486
B117: Argyll & Bute Local Authority | C117: 0.188 | D117: 0.2266 | G117: 55-64 | H117: 0.1841 | I117: 0.2095
B118: Clackmannanshire Local Authority | C118: 0.188 | D118: 0.2266 | G118: 65-74 | H118: 0.1651 | I118: 0.1629
B119: Dumfries & Galloway Local Authority | C119: 0.2236 | D119: 0.2341 | G119: 75+ | H119: 0.0737 | I119: 0.074
B120: Dundee City Local Authority | C120: 0.2443 | D120: 0.2577 | F120: Q4 | G120: 16-24 | H120: 0.1918 | I120: 0.2054
B121: East Ayrshire Local Authority | C121: 0.1919 | D121: 0.2306 | G121: 25-34 | H121: 0.1872 | I121: 0.2365
B122: East Dunbartonshire Local Authority | C122: 0.1425 | D122: 0.1952 | G122: 35-44 | H122: 0.1567 | I122: 0.2083
B123: East Lothian Local Authority | C123: 0.2117 | D123: 0.2169 | G123: 45-54 | H123: 0.1495 | I123: 0.2069
B124: East Renfrewshire Local Authority | C124: 0.0815 | D124: 0.1306 | G124: 55-64 | H124: 0.1377 | I124: 0.1494
B125: Edinburgh, City of Local Authority | C125: 0.1428 | D125: 0.1935 | G125: 65-74 | H125: 0.1156 | I125: 0.1132
B126: Eilean Siar Local Authority | C126: 0.188 | D126: 0.2266 | G126: 75+ | H126: 0.0614 | I126: 0.0407
B127: Falkirk Local Authority | C127: 0.1248 | D127: 0.2111 | F127: Q5 (least deprived) | G127: 16-24 | H127: 0.0983 | I127: 0.1351
B128: Fife Local Authority | C128: 0.1938 | D128: 0.2481 | G128: 25-34 | H128: 0.1003 | I128: 0.1926
B129: Glasgow City Local Authority | C129: 0.2281 | D129: 0.2658 | G129: 35-44 | H129: 0.0922 | I129: 0.1286
B130: Highland Local Authority | C130: 0.1766 | D130: 0.245 | G130: 45-54 | H130: 0.0998 | I130: 0.1229
B131: Inverclyde Local Authority | C131: 0.188 | D131: 0.2266 | G131: 55-64 | H131: 0.1084 | I131: 0.1136
B132: Midlothian Local Authority | C132: 0.188 | D132: 0.2266 | G132: 65-74 | H132: 0.0726 | I132: 0.0762
B133: Moray Local Authority | C133: 0.2303 | D133: 0.2446 | G133: 75+ | H133: 0.0506 | I133: 0.04
B134: North Ayrshire Local Authority | C134: 0.1837 | D134: 0.2882
B135: North Lanarkshire Local Authority | C135: 0.2586 | D135: 0.2189
B136: Orkney Islands Local Authority | C136: 0.188 | D136: 0.2266
B137: Perth & Kinross Local Authority | C137: 0.1471 | D137: 0.2007
B138: Renfrewshire Local Authority | C138: 0.2174 | D138: 0.2378
B139: Scottish Borders Local Authority | C139: 0.1921 | D139: 0.1669
B140: Shetland Islands Local Authority | C140: 0.188 | D140: 0.2266
B141: South Ayrshire Local Authority | C141: 0.1958 | D141: 0.179
B142: South Lanarkshire Local Authority | C142: 0.1778 | D142: 0.2138
B143: Stirling Local Authority | C143: 0.188 | D143: 0.2266
B144: West Dunbartonshire Local Authority | C144: 0.2507 | D144: 0.261
B145: West Lothian Local Authority | C145: 0.2024 | D145: 0.1833
B146: Aberdeen City Region Deal | C146: 0.09016472358 | D146: 0.09016472358
B147: Edinburgh & SE Scotland City Region Deal | C147: 0.133805666 | D147: 0.133805666
B148: Glasgow City Region Deal | C148: 0.07915554109 | D148: 0.07915554109
B149: Inverness & Highland City Region Deal | C149: 0.09434782609 | D149: 0.09434782609
B150: Tay Cities Region Deal | C150: 0.1071890422 | D150: 0.1071890422
B151: Clackmannanshire & Stirling IJB | C151: 0.188 | D151: 0.2266
B155: Proportion who seek help
B157: Description | C157: Gender | D157: Value | E157: Sources | F157: Quoted/calculated?
B158: Proportion of smokers who want to give up smoking | C158: All | D158: 0.698 | E158: Scottish Health Survey (SHeS) 2016 | F158: Quoted
B160: The proportion of smokers who want to give up smoking (69.1% male, 70.4% female) is taken from the Scottish Health Survey 2016.
B163: Intervention costs
B165: Cost of providing smoking cessation advice | D165: 104
B166: The figure is based on the work of Ormston et al (2012), and inflated to financial year 2015/16 using the Hospital and Community Health Service (HCHS) inflation index.
B169: Hospitalisation costs
B171: The cost of a continuous inpatient stay was estimated to be £2,113 in 2006/07 (Geue et al 2012; based on healthcare resource groups and the English tariff).
B172: This was inflated to £2,512 for 2015/16 using the Hospital and Community Health Service (HCHS) inflation index.
B173: Cost of continuous Inpatient stay | D173: 2512
B175: References
B177: Etter & Stapleton 2006 | C177: Nicotine replacement therapy for long-term smoking cessation: a meta-analysis. Tobacco Control 15(4): 280-285. https://www.ncbi.nlm.nih.gov/pmc/articles/PMC2563611/
B178: Gellert et al., 2012 | C178: Smoking and all-cause mortality in older people. Arch Intern Med 172(11): 837-844. https://jamanetwork.com/journals/jamainternalmedicine/fullarticle/1182214
B179: Geue et al 2012 | C179: Spoilt for choice: implications of using alternative methods of costing hospital episode statistics. Health Economics 21: 1201-1216. https://onlinelibrary.wiley.com/doi/abs/10.1002/hec.1785
B180: Hart et al., 2013 | C180: Does smoking reduction in midlife reduce mortality risk? Results of 2 long-term prospective cohort studies of men and women in Scotland. Am J Epidemiol 178(5): 770-779. http://doi.org/10.1093/aje/kwt038
B181: Lawder et al., 2007 | C181: Using the linked Scottish Health Survey to predict hospitalisation and death: an analysis of the link between behavioural, biological and social risk factors and subsequent hospital admission and death in Scotland. http://www.scotpho.org.uk/publications/reports-and-papers/using-the-linked-scottish-health-survey-to-predict-hospitalisation-and-death/
B182: NHS Health Scotland et al 2017 | C182: A guide to smoking cessation services in Scotland 2010. http://www.healthscotland.scot/media/1096/a-guide-to-smoking-cessation-in-scotland-2017.pdf
B183: NHS Information Services Division 2014 | C183: NHS Smoking Cessation Service Statistics (Scotland) 1 January to 31 December 2014. https://www.isdscotland.org/Health-Topics/Public-Health/Publications/2015-06-30/2015-06-30-SmokingCessation-Tables.xlsx?34279579
B184: Ormston et al 2012 | C184: Evaluation of quit4u. Report to NHS Health Scotland. http://www.healthscotland.com/documents/5827.aspx
B185: Scottish Health Survey 2016 | C185: Supplementary Tables. Part 10: Smoking. http://www.gov.scot/Topics/Statistics/Browse/Health/scottish-health-survey/Publications/Supplementary2015/Supplementary2016

Sheet SHEETS TO BE HIDDEN -> (hidden)

Sheet Calculations (hidden)
A1: Calculating the deaths, years of life lost, hospital stays, and premature deaths for each group | K1: COUNTS | AJ1: EUROPEAN AGE-STANDARDISED RATE (EASR) PER 100000
A2: AREA: | B2: =Options!B11 -> Scotland | C2: EQUIVALENT AREA: | E2: =VLOOKUP(B2,Lists!D2:E85,2) -> Scotland | K2: CUMULATIVE INCIDENCE (DEATHS) | M2: YEARS OF LIFE LOST | O2: HOSPITALISATIONS | Q2: PREMATURE MORTALITY | S2: AGE STANDARDISED RATE (ASR) | AA2: ASR*EUROPEAN STANDARD POPULATION (ESP2013) | AJ2: CUMULATIVE INCIDENCE (DEATHS) | AL2: YEARS OF LIFE LOST | AN2: HOSPITALISATIONS | AP2: PREMATURE MORTALITY
A3: SIMD | B3: group | C3: mean age (2016) | D3: life exp (2014-16) | E3: sex | F3: SIMD | G3: prevalence exposure | H3: population (2016) | I3: no. treated at base | J3: additional no. treated under policy | K3: Baseline | L3: Policy | M3: Baseline | N3: Policy | O3: Baseline | P3: Policy | Q3: Baseline | R3: Policy | S3: CI_BASE | T3: CI_POLICY | U3: YLL_BASE | V3: YLL_POLICY | W3: HOSP_BASE | X3: HOSP_POLICY | Y3: PREM_BASE | Z3: PREM_POLICY | AA3: CI_BASE | AB3: CI_POLICY | AC3: YLL_BASE | AD3: YLL_POLICY | AE3: HOSP_BASE | AF3: HOSP_POLICY | AG3: PREM_BASE | AH3: PREM_POLICY | AI3: ESP2013 | AJ3: Baseline | AK3: Policy | AL3: Baseline | AM3: Policy | AN3: Baseline | AO3: Policy | AP3: Baseline | AQ3: Policy
A5: All quintiles | B5: 16+ Males and Females | C5: N/A | E5: BOTH | F5: ALL | H5: =SUM(H7:H11) -> 4488783 | I5: =SUM(I7:I11) -> 0 | J5: =SUM(J7:J11) -> 691611 | K5: =SUMIF(K7:K11,">0") -> 44470.02431 | L5: 44306.89203 | M5: 595251.8803 | N5: 593120.3275 | O5: 1143855.727 | P5: 1141184.083 | Q5: 21611.41313 | R5: 21535.83187 | AA5: =SUMIF(AA7:AA11,">0") -> 905253480.2 | AB5: =SUMIF(AB7:AB11,">0") -> 902035158.1 | AC5: 1.147833729e+10 | AD5: 1.143786552e+10 | AE5: 2.193969232e+10 | AF5: 2.188907916e+10 | AG5: 415170599.8 | AH5: 413734539.3 | AI5: =SUM(AI7:AI11) -> 1000000 | AJ5: =AA5/$AI5 -> 905.2534802 | AK5: =AB5/$AI5 -> 902.0351581 | AL5: =AC5/$AI5 -> 11478.33729 | AM5: 11437.86552 | AN5: 21939.69232 | AO5: 21889.07916 | AP5: 415.1705998 | AQ5: 413.7345393
A6: Q1 and Q2 | B6: 16+ Males and Females | C6: N/A | E6: BOTH | F6: Q1&2 | H6: =SUM(H7:H8) -> 1769266 | I6: 0 | J6: 272598 | K6: 23376.35266 | L6: 23294.66703 | M6: 317747.9065 | N6: 316669.4757 | O6: 542278.7308 | P6: 541054.9963 | Q6: 11396.36468 | R6: 11358.77137 | AA6: =SUMIF(AA7:AA8,">0") -> 501761254.7 | AB6: =SUMIF(AB7:AB8,">0") -> 500066568.1 | AC6: 6385547341 | AD6: 6364207223 | AE6: 1.078771081e+10 | AF6: 1.076368465e+10 | AG6: 231238681.2 | AH6: 230482851.7 | AI6: =SUM(AI7:AI8) -> 400000 | AJ6: =AA6/$AI6 -> 1254.403137 | AK6: 1250.16642 | AL6: 15963.86835 | AM6: 15910.51806 | AN6: 26969.27703 | AO6: 26909.21161 | AP6: 578.096703 | AQ6: 576.2071293
A7: SIMD Q1 (most deprived) | B7: 16+ Males and Females | C7: N/A | E7: BOTH | F7: 1 | H7: =H12+H17 -> 872234 | I7: 0 | J7: 134387 | K7: 12882.17379 | L7: 12838.60865 | M7: =M12+M17 -> 179391.5396 | N7: 178801.2981 | O7: 288715.8401 | P7: 288076.248 | Q7: 6418.203214 | R7: 6397.675241 | AA7: =AA12+AA17 -> 293701286 | AB7: =AB12+AB17 -> 292739127 | AC7: 3747200080 | AD7: 3735029089 | AE7: 5950449632 | AF7: 5937421821 | AG7: 135809377.9 | AH7: 135377932.6 | AI7: =AI12+AI17 -> 200000 | AJ7: =AA7/$AI7 -> 1468.50643 | AK7: 1463.695635 | AL7: =AC7/$AI7 -> 18736.0004 | AM7: =AD7/$AI7 -> 18675.14544 | AN7: =AE7/$AI7 -> 29752.24816 | AO7: =AF7/$AI7 -> 29687.1091 | AP7: =AG7/$AI7 -> 679.0468897 | AQ7: =AH7/$AI7 -> 676.8896631
A8: SIMD Q2 | C8: N/A | E8: BOTH | F8: 2 | H8: =H13+H18 -> 897032 | I8: 0 | J8: 138211 | K8: =K13+K18 -> 10494.17887 | L8: 10456.05838 | M8: 138356.3669 | N8: 137868.1775 | O8: 253562.8907 | P8: 252978.7483 | Q8: 4978.161464 | R8: 4961.096127 | AA8: =AA13+AA18 -> 208059968.7 | AB8: =AB13+AB18 -> 207327441.2 | AC8: 2638347261 | AD8: 2629178134 | AE8: 4837261178 | AF8: 4826262824 | AG8: 95429303.28 | AH8: 95104919.09 | AI8: =AI13+AI18 -> 200000 | AJ8: 1040.299844 | AK8: 1036.637206 | AL8: 13191.7363 | AM8: 13145.89067 | AN8: 24186.30589 | AO8: 24131.31412 | AP8: 477.1465164 | AQ8: 475.5245954
A9: SIMD Q3 | C9: N/A | E9: BOTH | F9: 3 | H9: 907978 | I9: 0 | J9: 139897 | K9: 8984.668605 | L9: 8950.865903 | M9: 117466.9451 | N9: 117034.1733 | O9: 227312.9823 | P9: 226776.1868 | Q9: 4320.232465 | R9: 4304.685758 | AA9: =AA14+AA19 -> 169124904.3 | AB9: =AB14+AB19 -> 168504208.5 | AC9: 2138813713 | AD9: 2131026836 | AE9: 4182172525 | AF9: 4172397436 | AG9: 77293683.45 | AH9: 77017383.41 | AI9: =AI14+AI19 -> 200000 | AJ9: 845.6245214 | AK9: 842.5210423 | AL9: 10694.06856 | AM9: 10655.13418 | AN9: 20910.86262 | AO9: 20861.98718 | AP9: 386.4684172 | AQ9: 385.086917
A10: SIMD Q4 | C10: N/A | E10: BOTH | F10: 4 | H10: 910792 | I10: 0 | J10: 140332 | K10: 7029.388105 | L10: 7002.079014 | M10: 93214.46862 | N10: 92858.52748 | O10: 200119.0561 | P10: 199636.795 | Q10: 3451.08122 | R10: 3438.154375 | AA10: =AA15+AA20 -> 134772459.5 | AB10: =AB15+AB20 -> 134259473.7 | AC10: 1700333876 | AD10: 1693898623 | AE10: 3688824591 | AF10: 3680010745 | AG10: 61400802.76 | AH10: 61171900.69 | AI10: =AI15+AI20 -> 200000 | AJ10: 673.8622974 | AK10: 671.2973683 | AL10: 8501.66938 | AM10: 8469.493114 | AN10: 18444.12295 | AO10: 18400.05373 | AP10: 307.0040138 | AQ10: 305.8595034
A11: SIMD Q5 (least deprived) | C11: N/A | E11: BOTH | F11: 5 | H11: 900747 | I11: 0 | J11: 138784 | K11: 5079.614934 | L11: 5059.280083 | M11: 66822.56006 | N11: 66558.15108 | O11: 174144.9582 | P11: 173716.1054 | Q11: 2443.734765 | R11: 2434.220374 | AA11: =AA16+AA21 -> 99594861.73 | AB11: =AB16+AB21 -> 99204907.83 | AC11: 1253642358 | AD11: 1248732840 | AE11: 3280984393 | AF11: 3272986338 | AG11: 45237432.4 | AH11: 45062403.47 | AI11: =AI16+AI21 -> 200000 | AJ11: =AA11/$AI11 -> 497.9743087 | AK11: 496.0245392 | AL11: 6268.211792 | AM11: 6243.664199 | AN11: 16404.92197 | AO11: 16364.93169 | AP11: 226.187162 | AQ11: 225.3120174
A12: SIMD Q1 (most deprived) | B12: 16+ Females | C12: N/A | E12: female | F12: 1 | H12: =SUM(H60:H78) -> 457633 | I12: =SUM(I60:I78) -> 0 | J12: =SUM(J60:J78) -> 70509 | K12: =SUMIF(K60:K78,">0") -> 6419.095527 | L12: 6392.989618 | M12: 82501.7709 | N12: 82169.22799 | O12: 155037.8909 | P12: 154642.9129 | Q12: 2637.166875 | R12: 2626.640531 | AA12: =SUMIF(AA60:AA78,">0") -> 123883425.9 | AB12: =SUMIF(AB60:AB78,">0") -> 123379798.8 | AC12: =SUMIF(AC60:AC78,">0") -> 1588767246 | AD12: 1582357814 | AE12: 2906076588 | AF12: 2898667145 | AG12: 53045749.2 | AH12: 52833645.98 | AI12: =SUM(AI60:AI78) -> 100000 | AJ12: 1238.834259 | AK12: 1233.797988 | AL12: 15887.67246 | AM12: 15823.57814 | AN12: 29060.76588 | AO12: 28986.67145 | AP12: 530.457492 | AQ12: 528.3364598
A13: SIMD Q2 | C13: N/A | E13: female | F13: 2 | H13: =SUM(H98:H116) -> 469079 | I13: =SUM(I98:I116) -> 0 | J13: =SUM(J98:J116) -> 72275 | K13: =SUMIF(K98:K116,">0") -> 5237.017551 | L13: 5214.330659 | M13: 64009.39453 | N13: 63735.17976 | O13: 134904.8591 | P13: 134547.388 | Q13: 2051.850667 | R13: 2043.169175 | AA13: =SUMIF(AA98:AA116,">0") -> 87683288.28 | AB13: =SUMIF(AB98:AB116,">0") -> 87303948.5 | AC13: 1118092062 | AD13: 1113308511 | AE13: 2362418360 | AF13: 2356171197 | AG13: 37245419.04 | AH13: 37087837.35 | AI13: =SUM(AI98:AI116) -> 100000 | AJ13: 876.8328828 | AK13: 873.039485 | AL13: 11180.92062 | AM13: 11133.08511 | AN13: 23624.1836 | AO13: 23561.71197 | AP13: 372.4541904 | AQ13: 370.8783735
A14: SIMD Q3 | C14: N/A | E14: female | F14: 3 | H14: =SUM(H136:H154) -> 469093 | I14: =SUM(I136:I154) -> 0 | J14: =SUM(J136:J154) -> 72275 | K14: =SUMIF(K136:K154,">0") -> 4353.976932 | L14: 4334.409446 | M14: 53280.10446 | N14: 53041.66992 | O14: 118438.0814 | P14: 118114.8287 | Q14: 1752.745704 | R14: 1744.959478 | AA14: =SUMIF(AA136:AA154,">0") -> 71247777.69 | AB14: =SUMIF(AB136:AB154,">0") -> 70927548.7 | AC14: 906201622.7 | AD14: 902147845.6 | AE14: 2042486604 | AF14: 2036919735 | AG14: 30156555.49 | AH14: 30022630.75 | AI14: =SUM(AI136:AI154) -> 100000 | AJ14: 712.4777769 | AK14: 709.275487 | AL14: 9062.016227 | AM14: 9021.478456 | AN14: 20424.86604 | AO14: 20369.19735 | AP14: 301.5655549 | AQ14: 300.2263075
A15: SIMD Q4 | C15: N/A | E15: female | F15: 4 | H15: =SUM(H174:H192) -> 468792 | I15: =SUM(I174:I192) -> 0 | J15: =SUM(J174:J192) -> 72230 | K15: =SUMIF(K174:K192,">0") -> 3353.219599 | L15: 3337.700439 | M15: 41820.32352 | N15: 41626.7121 | O15: 103630.2706 | P15: 103341.3081 | Q15: 1387.236404 | R15: 1380.826872 | AA15: =SUMIF(AA174:AA192,">0") -> 56753042.45 | AB15: =SUMIF(AB174:AB192,">0") -> 56490245.4 | AC15: 720264097.9 | AD15: 716929050 | AE15: 1801545672 | AF15: 1796524614 | AG15: 23948420.4 | AH15: 23837788.02 | AI15: =SUM(AI174:AI192) -> 100000 | AJ15: 567.5304245 | AK15: 564.902454 | AL15: 7202.640979 | AM15: 7169.2905 | AN15: 18015.45672 | AO15: 17965.24614 | AP15: 239.484204 | AQ15: 238.3778802
A16: SIMD Q5 (least deprived) | C16: N/A | E16: female | F16: 5 | H16: =SUM(H212:H230) -> 465079 | I16: =SUM(I212:I230) -> 0 | J16: =SUM(J212:J230) -> 71657 | K16: =SUMIF(K212:K230,">0") -> 2445.460229 | L16: 2433.834312 | M16: 30215.8233 | N16: 30071.59986 | O16: 90811.93649 | P16: 90553.12877 | Q16: 993.4640335 | R16: 988.7184178 | AA16: =SUMIF(AA212:AA230,">0") -> 41929695.88 | AB16: =SUMIF(AB212:AB230,">0") -> 41730219.9 | AC16: 530961234.6 | AD16: 528425995.3 | AE16: 1602364951 | AF16: 1597798771 | AG16: 17638809.19 | AH16: 17554547.13 | AI16: =SUM(AI212:AI230) -> 100000 | AJ16: 419.2969588 | AK16: 417.302199 | AL16: 5309.612346 | AM16: 5284.259953 | AN16: 16023.64951 | AO16: 15977.98771 | AP16: 176.3880919 | AQ16: 175.5454713
A17: SIMD Q1 (most deprived) | B17: 16+ Males | C17: N/A | E17: male | F17: 1 | H17: =SUM(H79:H97) -> 414601 | I17: =SUM(I79:I97) -> 0 | J17: =SUM(J79:J97) -> 63878 | K17: =SUMIF(K79:K97,">0") -> 6463.078264 | L17: 6445.61903 | M17: 96889.76867 | N17: 96632.07013 | O17: 133677.9492 | P17: 133433.3352 | Q17: 3781.036339 | R17: 3771.03471 | AA17: =SUMIF(AA79:AA97,">0") -> 169817860.1 | AB17: =SUMIF(AB79:AB97,">0") -> 169359328.2 | AC17: 2158432834 | AD17: 2152671275 | AE17: 3044373044 | AF17: 3038754675 | AG17: 82763628.74 | AH17: 82544286.64 | AI17: =SUM(AI79:AI97) -> 100000 | AJ17: 1698.178601 | AK17: 1693.593282 | AL17: 21584.32834 | AM17: 21526.71275 | AN17: 30443.73044 | AO17: 30387.54675 | AP17: 827.6362874 | AQ17: 825.4428664
A18: SIMD Q2 | C18: N/A | E18: male | F18: 2 | H18: =SUM(H117:H135) -> 427953 | I18: =SUM(I117:I135) -> 0 | J18: =SUM(J117:J135) -> 65936 | K18: =SUMIF(K117:K135,">0") -> 5257.161323 | L18: 5241.727719 | M18: 74346.97242 | N18: 74132.99776 | O18: 118658.0316 | P18: 118431.3602 | Q18: 2926.310797 | R18: 2917.926952 | AA18: =SUMIF(AA117:AA135,">0") -> 120376680.5 | AB18: =SUMIF(AB117:AB135,">0") -> 120023492.7 | AC18: 1520255199 | AD18: 1515869623 | AE18: 2474842818 | AF18: 2470091627 | AG18: 58183884.24 | AH18: 58017081.74 | AI18: =SUM(AI117:AI135) -> 100000 | AJ18: 1203.766805 | AK18: 1200.234927 | AL18: 15202.55199 | AM18: 15158.69623 | AN18: 24748.42818 | AO18: 24700.91627 | AP18: 581.8388424 | AQ18: 580.1708174
A19: SIMD Q3 | C19: N/A | E19: male | F19: 3 | H19: =SUM(H155:H173) -> 438885 | I19: =SUM(I155:I173) -> 0 | J19: =SUM(J155:J173) -> 67622 | K19: =SUMIF(K155:K173,">0") -> 4630.691672 | L19: 4616.456457 | M19: 64186.84061 | N19: 63992.50334 | O19: 108874.9009 | P19: 108661.3581 | Q19: 2567.486761 | R19: 2559.72628 | AA19: =SUMIF(AA155:AA173,">0") -> 97877126.59 | AB19: =SUMIF(AB155:AB173,">0") -> 97576659.75 | AC19: 1232612090 | AD19: 1228878990 | AE19: 2139685921 | AF19: 2135477701 | AG19: 47137127.96 | AH19: 46994752.66 | AI19: =SUM(AI155:AI173) -> 100000 | AJ19: =AA19/$AI19 -> 978.7712659 | AK19: =AB19/$AI19 -> 975.7665975 | AL19: =AC19/$AI19 -> 12326.1209 | AM19: =AD19/$AI19 -> 12288.7899 | AN19: 21396.85921 | AO19: 21354.77701 | AP19: 471.3712796 | AQ19: 469.9475266
A20: SIMD Q4 | C20: N/A | E20: male | F20: 4 | H20: =SUM(H193:H211) -> 442000 | I20: =SUM(I193:I211) -> 0 | J20: =SUM(J193:J211) -> 68102 | K20: =SUMIF(K193:K211,">0") -> 3676.168506 | L20: 3664.378575 | M20: 51394.1451 | N20: 51231.81538 | O20: 96488.78552 | P20: 96295.48688 | Q20: 2063.844816 | R20: 2057.327503 | AA20: =SUMIF(AA193:AA211,">0") -> 78019417.03 | AB20: =SUMIF(AB193:AB211,">0") -> 77769228.27 | AC20: 980069778 | AD20: 976969572.9 | AE20: 1887278919 | AF20: 1883486131 | AG20: 37452382.36 | AH20: 37334112.67 | AI20: =SUM(AI193:AI211) -> 100000 | AJ20: 780.1941703 | AK20: 777.6922827 | AL20: 9800.69778 | AM20: 9769.695729 | AN20: 18872.78919 | AO20: 18834.86131 | AP20: 374.5238236 | AQ20: 373.3411267
A21: SIMD Q5 (least deprived) | C21: N/A | E21: male | F21: 5 | H21: =SUM(H231:H249) -> 435668 | I21: =SUM(I231:I249) -> 0 | J21: =SUM(J231:J249) -> 67127 | K21: =SUMIF(K231:K249,">0") -> 2634.154705 | L21: 2625.44577 | M21: 36606.73677 | N21: 36486.55122 | O21: 83333.02172 | P21: 83162.97666 | Q21: 1450.270731 | R21: 1445.501956 | AA21: =SUMIF(AA231:AA249,">0") -> 57665165.85 | AB21: =SUMIF(AB231:AB249,">0") -> 57474687.94 | AC21: 722681123.8 | AD21: 720306844.5 | AE21: 1678619443 | AF21: 1675187567 | AG21: 27598623.21 | AH21: 27507856.34 | AI21: =SUM(AI231:AI249) -> 100000 | AJ21: =AA21/$AI21 -> 576.6516585 | AK21: 574.7468794 | AL21: 7226.811238 | AM21: 7203.068445 | AN21: 16786.19443 | AO21: 16751.87567 | AP21: 275.9862321 | AQ21: 275.0785634
B22: Female 0-4 | C22: 2.0384007 | D22: 81.468401 | E22: female | F22: ALL | H22: =SUM(H60,H98,H136,H174,H212) -> 0 | I22: 0 | J22: 0 | K22: =SUM(K60,K98,K136,K174,K212) ->  | AA22: =SUM(AA60,AA98,AA136,AA174,AA212) ->  | AI22: 25000
B23: Female 5-9 | C23: 6.9792795 | D23: 81.43928 | E23: female | F23: ALL | H23: =SUM(H61,H99,H137,H175,H213) -> 0 | I23: 0 | J23: 0 | K23: =SUM(K61,K99,K137,K175,K213) ->  | M23: =SUM(M61,M99,M137,M175,M213) ->  | AA23: =SUM(AA61,AA99,AA137,AA175,AA213) ->  | AI23: 27500
B24: Female 10-15 | C24: 12.478312 | D24: 81.94831 | E24: female | F24: ALL | H24: =SUM(H62,H100,H138,H176,H214) -> 0 | I24: 0 | J24: 0 | K24: =SUM(K62,K100,K138,K176,K214) ->  | L24: =SUM(L62,L100,L138,L176,L214) ->  | O24: =SUM(O62,O100,O138,O176,O214) ->  | P24: =SUM(P62,P100,P138,P176,P214) ->  | AA24: =SUM(AA62,AA100,AA138,AA176,AA214) ->  | AI24: 33000
A25: All quintiles | B25: Female 16-19 | C25: 17.570053 | D25: 81.10005 | E25: female | F25: ALL | H25: =SUM(H63,H101,H139,H177,H215) -> 118803 | I25: 0 | J25: 18305 | K25: 22.93737186 | L25: 22.83729892 | M25: 1434.273794 | N25: 1428.016233 | O25: 12465.29027 | P25: 12432.05873 | Q25: 22.93737186 | R25: 22.83729892 | AA25: =SUM(AA63,AA101,AA139,AA177,AA215) -> 426135.1395 | AB25: 424276.7986 | AC25: 26646228.99 | AD25: 26530026.95 | AE25: 231245008.5 | AF25: 230628835 | AG25: 426135.1395 | AH25: 424276.7986 | AI25: 22000 | AJ25: 19.36977907 | AK25: 19.28530903 | AL25: 1211.192227 | AM25: 1205.910316 | AN25: 10511.13675 | AO25: 10483.12886 | AP25: 19.36977907 | AQ25: 19.28530903
B26: Female 20-24 | C26: 22.077057 | D26: 81.66706 | E26: female | F26: ALL | H26: =SUM(H64,H102,H140,H178,H216) -> 182279 | I26: 0 | J26: 28085 | K26: 51.98035021 | L26: 51.75375759 | M26: 3045.528875 | N26: 3032.252813 | O26: 21506.62704 | P26: 21449.32613 | Q26: 51.98035021 | R26: 51.75375759 | AA26: =SUM(AA64,AA102,AA140,AA178,AA216) -> 852519.1348 | AB26: 848801.762 | AC26: 49949098.67 | AD26: 49731297.78 | AE26: 353188002.8 | AF26: 352246914.2 | AG26: 852519.1348 | AH26: 848801.762 | AI26: 30000 | AJ26: 28.41730449 | AK26: 28.29339207 | AL26: 1664.969956 | AM26: 1657.709926 | AN26: 11772.93343 | AO26: 11741.56381 | AP26: 28.41730449 | AQ26: 28.29339207
B27: Female 25-29 | C27: 26.975187 | D27: 81.64519 | E27: female | F27: ALL | H27: =SUM(H65,H103,H141,H179,H217) -> 187975 | I27: 0 | J27: 28962 | K27: 84.83159381 | L27: 84.47247085 | M27: 4552.911895 | N27: 4533.637764 | O27: 25701.25489 | P27: 25634.1084 | Q27: 84.83159381 | R27: 84.47247085 | AA27: =SUM(AA65,AA103,AA141,AA179,AA217) -> 1292988.477 | AB27: 1287477.697 | AC27: 69394695.45 | AD27: 69098931.89 | AE27: 399497115.4 | AF27: 398448012.6 | AG27: 1292988.477 | AH27: 1287477.697 | AI27: 30000 | AJ27: 43.0996159 | AK27: 42.91592325 | AL27: 2313.156515 | AM27: 2303.29773 | AN27: 13316.57051 | AO27: 13281.60042 | AP27: 43.0996159 | AQ27: 42.91592325
B28: Female 30-34 | C28: 31.999905 | D28: 81.7999 | E28: female | F28: ALL | H28: =SUM(H66,H104,H142,H180,H218) -> 179608 | I28: 0 | J28: 27674 | K28: 122.8514676 | L28: 122.3306381 | M28: 5995.151006 | N28: 5969.734527 | O28: 27681.46121 | P28: 27609.04902 | Q28: 122.8514676 | R28: 122.3306381 | AA28: =SUM(AA66,AA104,AA142,AA180,AA218) -> 2147341.466 | AB28: 2138191.083 | AC28: 104790252.8 | AD28: 104343714.2 | AE28: 491095913.1 | AF28: 489806213.9 | AG28: 2147341.466 | AH28: 2138191.083 | AI28: 32500 | AJ28: 66.0720451 | AK28: 65.79049487 | AL28: 3224.31547 | AM28: 3210.575821 | AN28: 15110.64348 | AO28: 15070.96043 | AP28: 66.0720451 | AQ28: 65.79049487
B29: Female 35-39 | C29: 36.918118 | D29: 81.89812 | E29: female | F29: ALL | H29: =SUM(H67,H105,H143,H181,H219) -> 166485 | I29: 0 | J29: 25652 | K29: 168.2289626 | L29: 167.5166492 | M29: 7398.71011 | N29: 7367.382566 | O29: 28578.84599 | P29: 28504.0237 | Q29: 168.2289626 | R29: 167.5166492 | AA29: =SUM(AA67,AA105,AA143,AA181,AA219) -> 3512899.406 | AB29: 3498002.601 | AC29: 154497322.9 | AD29: 153842161.4 | AE29: 598519214.2 | AF29: 596950740.9 | AG29: 3512899.406 | AH29: 3498002.601 | AI29: 35000 | AJ29: 100.3685545 | AK29: 99.94293147 | AL29: 4414.209226 | AM29: 4395.490326 | AN29: 17100.54898 | AO29: 17055.73545 | AP29: 100.3685545 | AQ29: 99.94293147
B30: Female 40-44 | C30: 42.077438 | D30: 82.30744 | E30: female | F30: ALL | H30: =SUM(H68,H106,H144,H182,H220) -> 172709 | I30: 0 | J30: 26611 | K30: 265.8350733 | L30: 264.7062589 | M30: 10428.71046 | N30: 10384.42707 | O30: 33419.63756 | P30: 33331.92348 | Q30: 265.8350733 | R30: 264.7062589 | AA30: =SUM(AA68,AA106,AA144,AA182,AA220) -> 5446220.673 | AB30: 5423137.564 | AC30: 213655247.9 | AD30: 212749697.5 | AE30: 681457961.7 | AF30: 679672120.6 | AG30: 5446220.673 | AH30: 5423137.564 | AI30: 35000 | AJ30: 155.6063049 | AK30: 154.9467875 | AL30: 6104.435654 | AM30: 6078.562785 | AN30: 19470.22748 | AO30: 19419.20344 | AP30: 155.6063049 | AQ30: 154.9467875
B31: Female 45-49 | C31: 47.025772 | D31: 82.58577 | E31: female | F31: ALL | H31: =SUM(H69,H107,H145,H183,H221) -> 202829 | I31: 0 | J31: 31250 | K31: 475.6435655 | L31: 473.6438624 | M31: 16438.24067 | N31: 16369.13094 | O31: 44462.66378 | P31: 44346.68321 | Q31: 475.6435655 | R31: 473.6438624 | AA31: =SUM(AA69,AA107,AA145,AA183,AA221) -> 8292036.593 | AB31: 8257250.788 | AC31: 286572768.1 | AD31: 285370570.7 | AE31: 771783001 | AF31: 769773100.1 | AG31: 8292036.593 | AH31: 8257250.788 | AI31: 35000 | AJ31: 236.9153312 | AK31: 235.9214511 | AL31: 8187.793373 | AM31: 8153.444878 | AN31: 22050.94289 | AO31: 21993.51715 | AP31: 236.9153312 | AQ31: 235.9214511
B32: Female 50-54 | C32: 51.990826 | D32: 82.98083 | E32: female | F32: ALL | H32: =SUM(H70,H108,H146,H184,H222) -> 209262 | I32: 0 | J32: 32242 | K32: 746.786679 | L32: 743.6489095 | M32: 22396.13549 | N32: 22302.03377 | O32: 51924.44852 | P32: 51788.95699 | Q32: 746.786679 | R32: 743.6489095 | AA32: =SUM(AA70,AA108,AA146,AA184,AA222) -> 12639468.8 | AB32: 12586507.88 | AC32: 379057720 | AD32: 377469421.7 | AE32: 874448019.8 | AF32: 872170699.3 | AG32: 12639468.8 | AH32: 12586507.88 | AI32: 35000 | AJ32: 361.1276801 | AK32: 359.6145109 | AL32: 10830.22057 | AM32: 10784.84062 | AN32: 24984.22914 | AO32: 24919.16284 | AP32: 361.1276801 | AQ32: 359.6145109
B33: Female 55-59 | C33: 56.953041 | D33: 83.47304 | E33: female | F33: ALL | H33: =SUM(H71,H109,H147,H185,H223) -> 190084 | I33: 0 | J33: 29286 | K33: 1032.532768 | L33: 1028.131456 | M33: 26350.23521 | N33: 26237.91374 | O33: 53414.87334 | P33: 53273.95175 | Q33: 1032.532768 | R33: 1028.131456 | AA33: =SUM(AA71,AA109,AA147,AA185,AA223) -> 17878574.42 | AB33: 17802590.97 | AC33: 456261201.3 | AD33: 454322103.6 | AE33: 919934892.6 | AF33: 917512772 | AG33: 17878574.42 | AH33: 17802590.97 | AI33: 32500 | AJ33: 550.1099822 | AK33: 547.7720297 | AL33: 14038.80619 | AM33: 13979.14165 | AN33: 28305.689 | AO33: 28231.16222 | AP33: 550.1099822 | AQ33: 547.7720297
B34: Female 60-64 | C34: 61.947388 | D34: 84.16739 | E34: female | F34: ALL | H34: =SUM(H72,H110,H148,H186,H224) -> 165146 | I34: 0 | J34: 25446 | K34: 1358.15282 | L34: 1352.368682 | M34: 28820.00556 | N34: 28697.26614 | O34: 52377.01197 | P34: 52238.64323 | Q34: 1358.15282 | R34: 1352.368682 | AA34: =SUM(AA72,AA110,AA148,AA186,AA224) -> 25192582.95 | AB34: 25085819.32 | AC34: 534586660.6 | AD34: 532321136.2 | AE34: 962839226.4 | AF34: 960303934.4 | AG34: 25192582.95 | AH34: 25085819.32 | AI34: 30000 | AJ34: 839.752765 | AK34: 836.1939773 | AL34: 17819.55535 | AM34: 17744.03787 | AN34: 32094.64088 | AO34: 32010.13115 | AP34: 839.752765 | AQ34: 836.1939773
B35: Female 65-69 | C35: 67.063927 | D35: 85.19393 | E35: female | F35: ALL | H35: =SUM(H73,H111,H149,H187,H225) -> 164057 | I35: 0 | J35: 25276 | K35: 2066.254208 | L35: 2057.119305 | M35: 35394.94078 | N35: 35238.45987 | O35: 58973.2205 | P35: 58812.82676 | Q35: 2066.254208 | R35: 2057.119305 | AA35: =SUM(AA73,AA111,AA149,AA187,AA225) -> 35585132.2 | AB35: 35428476.02 | AC35: 609573421.4 | AD35: 606889900.5 | AE35: 1003826931 | AF35: 1001103926 | AG35: 35585132.2 | AH35: 35428476.02 | AI35: 27500 | AJ35: 1294.004807 | AK35: 1288.308219 | AL35: 22166.30623 | AM35: 22068.72365 | AN35: 36502.79749 | AO35: 36403.77914 | AP35: 1294.004807 | AQ35: 1288.308219
B36: Female 70-74 | C36: 71.938164 | D36: 86.24816 | E36: female | F36: ALL | H36: =SUM(H74,H112,H150,H188,H226) -> 127150 | I36: 0 | J36: 19591 | K36: 2426.428824 | L36: 2415.785184 | M36: 32295.75794 | N36: 32154.09114 | O36: 51815.94224 | P36: 51675.07463 | Q36: 2426.428824 | R36: 2415.785184 | AA36: =SUM(AA74,AA112,AA150,AA188,AA226) -> 48769054.05 | AB36: 48555916.75 | AC36: 649115914.4 | AD36: 646279057.8 | AE36: 1031603609 | AF36: 1028805046 | AG36: 48769054.05 | AH36: 48555916.75 | AI36: 25000 | AJ36: 1950.762162 | AK36: 1942.23667 | AL36: 25964.63658 | AM36: 25851.16231 | AN36: 41264.14437 | AO36: 41152.20182 | AP36: 1950.762162 | AQ36: 1942.23667
B37: Female 75-79 | C37: 76.942825 | D37: 87.81283 | E37: female | F37: ALL | H37: =SUM(H75,H113,H151,H189,H227) -> 104331 | I37: 0 | J37: 16075 | K37: 3076.754992 | L37: 3062.598964 | M37: 30367.58716 | N37: 30227.86709 | O37: 48655.39333 | P37: 48517.30486 | Q37: 0 | R37: 0 | AA37: =SUM(AA75,AA113,AA151,AA189,AA227) -> 59361155.62 | AB37: 59088418.9 | AC37: 585894902.8 | AD37: 583202990 | AE37: 935996664.2 | AF37: 933341829.1 | AG37: 0 | AH37: 0 | AI37: 20000 | AJ37: 2968.057781 | AK37: 2954.420945 | AL37: 29294.74514 | AM37: 29160.1495 | AN37: 46799.83321 | AO37: 46667.09146 | AP37: 0 | AQ37: 0
B38: Female 80-84 | C38: 81.856712 | D38: 89.73671 | E38: female | F38: ALL | H38: =SUM(H76,H114,H152,H190,H228) -> 80217 | I38: 0 | J38: 12361 | K38: 3567.876277 | L38: 3551.778819 | M38: 24546.98165 | N38: 24436.23117 | O38: 42391.15608 | P38: 42270.84575 | Q38: 0 | R38: 0 | AA38: =SUM(AA76,AA114,AA152,AA190,AA228) -> 55828278.73 | AB38: 55576724.54 | AC38: 384098446 | AD38: 382367753.7 | AE38: 661963669 | AF38: 660085882 | AG38: 0 | AH38: 0 | AI38: 12500 | AJ38: 4466.262298 | AK38: 4446.137963 | AL38: 30727.87568 | AM38: 30589.42029 | AN38: 52957.09352 | AO38: 52806.87056 | AP38: 0 | AQ38: 0
B39: Female 85-89 | C39: 86.73082 | D39: 92.22082 | E39: female | F39: ALL | H39: =SUM(H77,H115,H153,H191,H229) -> 49691 | I39: 0 | J39: 7655 | K39: 3270.385991 | L39: 3256.041932 | M39: 14684.0331 | N39: 14619.62828 | O39: 29525.06547 | P39: 29441.25775 | Q39: 0 | R39: 0 | AA39: =SUM(AA77,AA115,AA153,AA191,AA229) -> 50005245.61 | AB39: 49786528.87 | AC39: 224523552.8 | AD39: 223541514.6 | AE39: 448983820.1 | AF39: 447710575.7 | AG39: 0 | AH39: 0 | AI39: 7500 | AJ39: 6667.366082 | AK39: 6638.20385 | AL39: 29936.47371 | AM39: 29805.53529 | AN39: 59864.50934 | AO39: 59694.74343 | AP39: 0 | AQ39: 0
B40: Female 90+ | C40: 92.779343 | D40: 96.27934 | E40: female | F40: ALL | H40: =SUM(H78,H116,H154,H192,H230) -> 29050 | I40: 0 | J40: 4475 | K40: 3071.288894 | L40: 3058.530287 | M40: 7678.213021 | N40: 7646.316542 | O40: 19930.14616 | P40: 19873.5321 | Q40: 0 | R40: 0 | AA40: =SUM(AA78,AA116,AA154,AA192,AA230) -> 54267596.9 | AB40: 54043639.7 | AC40: 135668829.4 | AD40: 135108937.1 | AE40: 348509125.9 | AF40: 347520860.7 | AG40: 0 | AH40: 0 | AI40: 5000 | AJ40: 10853.51938 | AK40: 10808.72794 | AL40: 27133.76589 | AM40: 27021.78743 | AN40: 69701.82517 | AO40: 69504.17215 | AP40: 0 | AQ40: 0
B41: Male 0-4 | C41: 2.0320823 | D41: 77.402082 | E41: male | F41: ALL | H41: =SUM(H79,H117,H155,H193,H231) -> 0 | I41: 0 | J41: 0 | AA41: =SUM(AA79,AA117,AA155,AA193,AA231) ->  | AI41: 25000
B42: Male 5-9 | C42: 6.9784756 | D42: 77.398476 | E42: male | F42: ALL | H42: =SUM(H80,H118,H156,H194,H232) -> 0 | I42: 0 | J42: 0 | AA42: =SUM(AA80,AA118,AA156,AA194,AA232) ->  | AI42: 27500
B43: Male 10-15 | C43: 12.471144 | D43: 77.92114 | E43: male | F43: ALL | H43: =SUM(H81,H119,H157,H195,H233) -> 0 | I43: 0 | J43: 0 | AA43: =SUM(AA81,AA119,AA157,AA195,AA233) ->  | AI43: 33000
B44: Male 16-19 | C44: 17.556318 | D44: 77.07632 | E44: male | F44: ALL | H44: =SUM(H82,H120,H158,H196,H234) -> 124418 | I44: 0 | J44: 19170 | K44: 56.98308559 | L44: 56.81516431 | M44: 3334.650282 | N44: 3324.823529 | O44: 8826.189231 | P44: 8809.320074 | Q44: 56.98308559 | R44: 56.81516431 | AA44: =SUM(AA82,AA120,AA158,AA196,AA234) -> 1013108.448 | AB44: 1010124.145 | AC44: 59287108.42 | AD44: 59112466.98 | AE44: 156551621.6 | AF44: 156252538.1 | AG44: 1013108.448 | AH44: 1010124.145 | AI44: 22000 | AJ44: 46.05038402 | AK44: 45.91473386 | AL44: 2694.868565 | AM44: 2686.930317 | AN44: 7115.9828 | AO44: 7102.388096 | AP44: 46.05038402 | AQ44: 45.91473386
B45: Male 20-24 | C45: 22.054632 | D45: 77.70463 | E45: male | F45: ALL | H45: =SUM(H83,H121,H159,H197,H235) -> 181688 | I45: 0 | J45: 27993 | K45: 117.5292609 | L45: 117.1832154 | M45: 6422.973872 | N45: 6404.06249 | O45: 15171.57336 | P45: 15142.59037 | Q45: 117.5292609 | R45: 117.1832154 | AA45: =SUM(AA83,AA121,AA159,AA197,AA235) -> 1939971.573 | AB45: 1934258.256 | AC45: 106019442.6 | AD45: 105707209.8 | AE45: 250437460.6 | AF45: 249959025.2 | AG45: 1939971.573 | AH45: 1934258.256 | AI45: 30000 | AJ45: 64.66571909 | AK45: 64.47527519 | AL45: 3533.981419 | AM45: 3523.57366 | AN45: 8347.915354 | AO45: 8331.967506 | AP45: 64.66571909 | AQ45: 64.47527519
B46: Male 25-29 | C46: 26.959763 | D46: 77.78976 | E46: male | F46: ALL | H46: =SUM(H84,H122,H160,H198,H236) -> 186149 | I46: 0 | J46: 28681 | K46: 180.0667229 | L46: 179.5607199 | M46: 8972.724262 | N46: 8947.510134 | O46: 18844.70775 | P46: 18809.67244 | Q46: 180.0667229 | R46: 179.5607199 | AA46: =SUM(AA84,AA122,AA160,AA198,AA236) -> 2808963.824 | AB46: 2801033.576 | AC46: 139970658.9 | AD46: 139575494.7 | AE46: 298066844.9 | AF46: 297511139.3 | AG46: 2808963.824 | AH46: 2801033.576 | AI46: 30000 | AJ46: 93.63212746 | AK46: 93.36778586 | AL46: 4665.68863 | AM46: 4652.516489 | AN46: 9935.561496 | AO46: 9917.037977 | AP46: 93.63212746 | AQ46: 93.36778586
B47: Male 30-34 | C47: 31.981522 | D47: 78.06152 | E47: male | F47: ALL | H47: =SUM(H85,H123,H161,H199,H237) -> 172305 | I47: 0 | J47: 26549 | K47: 242.7336449 | L47: 242.0512963 | M47: 10942.43223 | N47: 10911.67195 | O47: 20810.11301 | P47: 20771.40981 | Q47: 242.7336449 | R47: 242.0512963 | AA47: =SUM(AA85,AA123,AA161,AA199,AA237) -> 4444721.454 | AB47: 4432178.154 | AC47: 200368034.3 | AD47: 199802582.3 | AE47: 385911765.1 | AF47: 385192258.7 | AG47: 4444721.454 | AH47: 4432178.154 | AI47: 32500 | AJ47: 136.7606601 | AK47: 136.3747124 | AL47: 6165.170285 | AM47: 6147.771764 | AN47: 11874.20816 | AO47: 11852.0695 | AP47: 136.7606601 | AQ47: 136.3747124
B48: Male 35-39 | C48: 36.92601 | D48: 78.33601 | E48: male | F48: ALL | H48: =SUM(H86,H124,H162,H200,H238) -> 161268 | I48: 0 | J48: 24847 | K48: 321.6493217 | L48: 320.7515864 | M48: 12997.84909 | N48: 12961.57161 | O48: 22880.10876 | P48: 22837.63155 | Q48: 321.6493217 | R48: 320.7515864 | AA48: =SUM(AA86,AA124,AA162,AA200,AA238) -> 6949961.682 | AB48: 6930544.808 | AC48: 280847951.6 | AD48: 280063315.7 | AE48: 495329032.5 | AF48: 494408912.6 | AG48: 6949961.682 | AH48: 6930544.808 | AI48: 35000 | AJ48: 198.5703338 | AK48: 198.0155659 | AL48: 8024.227188 | AM48: 8001.80902 | AN48: 14152.25807 | AO48: 14125.96893 | AP48: 198.5703338 | AQ48: 198.0155659
B49: Male 40-44 | C49: 42.067703 | D49: 78.9077 | E49: male | F49: ALL | H49: =SUM(H87,H125,H163,H201,H239) -> 164929 | I49: 0 | J49: 25411 | K49: 475.9162081 | L49: 474.5838382 | M49: 17056.83547 | N49: 17009.08334 | O49: 27796.41123 | P49: 27744.67822 | Q49: 475.9162081 | R49: 474.5838382 | AA49: =SUM(AA87,AA125,AA163,AA201,AA239) -> 10240286.19 | AB49: 10211702.75 | AC49: 367011826.5 | AD49: 365987395.8 | AE49: 594504097.5 | AF49: 593399755.2 | AG49: 10240286.19 | AH49: 10211702.75 | AI49: 35000 | AJ49: 292.5796055 | AK49: 291.7629356 | AL49: 10486.05218 | AM49: 10456.78274 | AN49: 16985.83136 | AO49: 16954.27872 | AP49: 292.5796055 | AQ49: 291.7629356
B50: Male 45-49 | C50: 47.038155 | D50: 79.41815 | E50: male | F50: ALL | H50: =SUM(H88,H126,H164,H202,H240) -> 189422 | I50: 0 | J50: 29185 | K50: 794.6930565 | L50: 792.4428192 | M50: 24937.46414 | N50: 24866.85171 | O50: 38076.87909 | P50: 38005.50996 | Q50: 794.6930565 | R50: 792.4428192 | AA50: =SUM(AA88,AA126,AA164,AA202,AA240) -> 14890850.39 | AB50: 14848810.07 | AC50: 467274810.6 | AD50: 465955585.9 | AE50: 709212168.1 | AF50: 707885226.6 | AG50: 14890850.39 | AH50: 14848810.07 | AI50: 35000 | AJ50: 425.4528682 | AK50: 424.2517164 | AL50: 13350.70888 | AM50: 13313.01674 | AN50: 20263.2048 | AO50: 20225.29219 | AP50: 425.4528682 | AQ50: 424.2517164
B51: Male 50-54 | C51: 51.998646 | D51: 79.98865 | E51: male | F51: ALL | H51: =SUM(H89,H127,H165,H203,H241) -> 197429 | I51: 0 | J51: 30419 | K51: 1201.941075 | L51: 1198.542469 | M51: 32440.39442 | N51: 32348.66603 | O51: 47294.71013 | P51: 47206.04598 | Q51: 1201.941075 | R51: 1198.542469 | AA51: =SUM(AA89,AA127,AA165,AA203,AA241) -> 21629005.3 | AB51: 21568057.5 | AC51: 583766939.6 | AD51: 582121958.1 | AE51: 845753788.7 | AF51: 844171365.8 | AG51: 21629005.3 | AH51: 21568057.5 | AI51: 35000 | AJ51: 617.97158 | AK51: 616.2302142 | AL51: 16679.05542 | AM51: 16632.05595 | AN51: 24164.39396 | AO51: 24119.18188 | AP51: 617.97158 | AQ51: 616.2302142
B52: Male 55-59 | C52: 56.950867 | D52: 80.66087 | E52: male | F52: ALL | H52: =SUM(H90,H128,H166,H204,H242) -> 180737 | I52: 0 | J52: 27847 | K52: 1594.909271 | L52: 1590.285767 | M52: 36220.39432 | N52: 36115.39454 | O52: 51591.13693 | P52: 51492.81159 | Q52: 1594.909271 | R52: 1590.285767 | AA52: =SUM(AA90,AA128,AA166,AA204,AA242) -> 29138433.18 | AB52: 29054328.55 | AC52: 661733904.8 | AD52: 659823888.6 | AE52: 936266656.8 | AF52: 934486483.3 | AG52: 29138433.18 | AH52: 29054328.55 | AI52: 32500 | AJ52: 896.5671746 | AK52: 893.9793401 | AL52: 20361.04323 | AM52: 20302.2735 | AN52: 28808.20482 | AO52: 28753.43025 | AP52: 896.5671746 | AQ52: 893.9793401
B53: Male 60-64 | C53: 61.942989 | D53: 81.61299 | E53: male | F53: ALL | H53: =SUM(H91,H129,H167,H205,H243) -> 156406 | I53: 0 | J53: 24099 | K53: 1989.183233 | L53: 1983.426853 | M53: 37138.05294 | N53: 37030.58133 | O53: 53033.32073 | P53: 52932.11325 | Q53: 1989.183233 | R53: 1983.426853 | AA53: =SUM(AA91,AA129,AA167,AA205,AA243) -> 39108076.28 | AB53: 38995667.78 | AC53: 730147823.3 | AD53: 728049156.5 | AE53: 1031793596 | AF53: 1029831743 | AG53: 39108076.28 | AH53: 38995667.78 | AI53: 30000 | AJ53: 1303.602543 | AK53: 1299.855593 | AL53: 24338.26078 | AM53: 24268.30522 | AN53: 34393.11986 | AO53: 34327.72475 | AP53: 1303.602543 | AQ53: 1299.855593
B54: Male 65-69 | C54: 67.05442 | D54: 82.95442 | E54: male | F54: ALL | H54: =SUM(H92,H130,H168,H206,H244) -> 153467 | I54: 0 | J54: 23645 | K54: 2842.680803 | L54: 2834.097429 | M54: 42355.94397 | N54: 42228.05169 | O54: 62174.33177 | P54: 62052.30207 | Q54: 2842.680803 | R54: 2834.097429 | AA54: =SUM(AA92,AA130,AA168,AA206,AA244) -> 52531096.2 | AB54: 52373530.76 | AC54: 782713333.4 | AD54: 780365608.4 | AE54: 1133962873 | AF54: 1131744620 | AG54: 52531096.2 | AH54: 52373530.76 | AI54: 27500 | AJ54: 1910.22168 | AK54: 1904.492028 | AL54: 28462.30303 | AM54: 28376.93121 | AN54: 41235.01357 | AO54: 41154.34981 | AP54: 1910.22168 | AQ54: 1904.492028
B55: Male 70-74 | C55: 71.891098 | D55: 84.3411 | E55: male | F55: ALL | H55: =SUM(H93,H131,H169,H207,H245) -> 111869 | I55: 0 | J55: 17236 | K55: 2970.663762 | L55: 2961.776243 | M55: 34014.10601 | N55: 33912.3439 | O55: 53814.8044 | P55: 53709.17795 | Q55: 2970.663762 | R55: 2961.776243 | AA55: =SUM(AA93,AA131,AA169,AA207,AA245) -> 68441171.97 | AB55: 68237853.69 | AC55: 783651556 | AD55: 781323561.2 | AE55: 1223954580 | AF55: 1221560295 | AG55: 68441171.97 | AH55: 68237853.69 | AI55: 25000 | AJ55: 2737.646879 | AK55: 2729.514148 | AL55: 31346.06224 | AM55: 31252.94245 | AN55: 48958.18319 | AO55: 48862.41181 | AP55: 2737.646879 | AQ55: 2729.514148
B56: Male 75-79 | C56: 76.9077 | D56: 86.3577 | E56: male | F56: ALL | H56: =SUM(H94,H132,H170,H208,H246) -> 82515 | I56: 0 | J56: 12713 | K56: 3200.471533 | L56: 3190.349278 | M56: 27043.98446 | N56: 26958.4514 | O56: 47629.86304 | P56: 47532.39115 | Q56: 0 | R56: 0 | AA56: =SUM(AA94,AA132,AA170,AA208,AA246) -> 79383208.6 | AB56: 79133343.27 | AC56: 670788112.6 | AD56: 668676750.6 | AE56: 1170005852 | AF56: 1167615862 | AG56: 0 | AH56: 0 | AI56: 20000 | AJ56: 3969.16043 | AK56: 3956.667163 | AL56: 33539.40563 | AM56: 33433.83753 | AN56: 58500.29258 | AO56: 58380.79311 | AP56: 0 | AQ56: 0
B57: Male 80-84 | C57: 81.797089 | D57: 88.62709 | E57: male | F57: ALL | H57: =SUM(H95,H133,H171,H209,H247) -> 56201 | I57: 0 | J57: 8660 | K57: 3097.864425 | L57: 3088.282251 | M57: 18060.55269 | N57: 18004.68861 | O57: 38436.06303 | P57: 38357.36975 | Q57: 0 | R57: 0 | AA57: =SUM(AA95,AA133,AA171,AA209,AA247) -> 70991409.71 | AB57: 70773200 | AC57: 413879989.6 | AD57: 412607826.8 | AE57: 869840774.2 | AF57: 868063768.7 | AG57: 0 | AH57: 0 | AI57: 12500 | AJ57: 5679.312777 | AK57: 5661.856 | AL57: 33110.39917 | AM57: 33008.62614 | AN57: 69587.26194 | AO57: 69445.1015 | AP57: 0 | AQ57: 0
B58: Male 85-89 | C58: 86.630753 | D58: 91.42075 | E58: male | F58: ALL | H58: =SUM(H96,H134,H172,H210,H248) -> 28287 | I58: 0 | J58: 4358 | K58: 2191.932197 | L58: 2185.360516 | M58: 8307.416449 | N58: 8282.509799 | O58: 22836.6917 | P58: 22789.91586 | Q58: 0 | R58: 0 | AA58: =SUM(AA96,AA134,AA172,AA210,AA248) -> 60418636.16 | AB58: 60239161.02 | AC58: 228986449.8 | AD58: 228306239.6 | AE58: 619589003.4 | AF58: 618323530.9 | AG58: 0 | AH58: 0 | AI58: 7500 | AJ58: 8055.818155 | AK58: 8031.888136 | AL58: 30531.52664 | AM58: 30440.83194 | AN58: 82611.86713 | AO58: 82443.13745 | AP58: 0 | AQ58: 0
B59: Male 90+ | C59: 92.215477 | D59: 95.51548 | E59: male | F59: ALL | H59: =SUM(H97,H135,H173,H211,H249) -> 12017 | I59: 0 | J59: 1852 | K59: 1382.036872 | L59: 1378.118105 | M59: 3178.688951 | N59: 3169.675776 | O59: 11815.7848 | P59: 11791.57695 | Q59: 0 | R59: 0 | AA59: =SUM(AA97,AA135,AA173,AA211,AA249) -> 59827349.05 | AB59: 59659602.49 | AC59: 137603082.3 | AD59: 137217264.7 | AE59: 503620030.1 | AF59: 502591177.9 | AG59: 0 | AH59: 0 | AI59: 5000 | AJ59: =AA59/$AI59 -> 11965.46981 | AK59: 11931.9205 | AL59: =AC59/$AI59 -> 27520.61646 | AM59: 27443.45294 | AN59: 100724.006 | AO59: 100518.2356 | AP59: 0 | AQ59: 0
B60: Female 0-4 | C60: 2.0384007 | D60: 81.468401 | E60: female | F60: 1 | G60: =HLOOKUP(Calculations!$E$2,'Prevalence Rates'!$C$3:$BC$249,'Prevalence Rates'!$BD60,FALSE) -> 0 | H60: =HLOOKUP(Calculations!$E$2,'Population 2016'!$C$3:$BC$249,'Population 2016'!BD60,FALSE) -> 0 | I60: 0 | J60: =HLOOKUP(Results!E$4,Targeting!$C$3:$F$249,Targeting!$G60,FALSE) -> 0 | K60: =IF(AND(OR(Calculations!$E$2="Orkney Health Board",Calculations!$E$2="Orkney Islands Local Authority"),$F60=1),0,IF(AND(OR(Calculations!$E$2="Shetland Health Board",Calculations!$E$2="Western Isles Health Board",Calculations!$E$2="Shetland Islands Local Authority",Calculations!$E$2="Eilean Siar Local Authority"),OR($F60=1,$F60=5)),0,new_ci(VALUE(LEFT(Options!$B$24,2)),$C60,$E60,$F60,2016,$I60,1,$H60,$G60*$H60,Options!$B$8))) ->  | L60: =IF(AND(OR(Calculations!$E$2="Orkney Health Board",Calculations!$E$2="Orkney Islands Local Authority"),$F60=1),0,IF(AND(OR(Calculations!$E$2="Shetland Health Board",Calculations!$E$2="Western Isles Health Board",Calculations!$E$2="Shetland Islands Local Authority",Calculations!$E$2="Eilean Siar Local Authority"),OR($F60=1,$F60=5)),0,new_ci(VALUE(LEFT(Options!$B$24,2)),$C60,$E60,$F60,2016,$I60+$J60,1,$H60,$G60*$H60,Options!$B$8))) ->  | M60: =IF(AND(OR(Calculations!$E$2="Orkney Health Board",Calculations!$E$2="Orkney Islands Local Authority"),$F60=1),0,IF(AND(OR(Calculations!$E$2="Shetland Health Board",Calculations!$E$2="Western Isles Health Board",Calculations!$E$2="Shetland Islands Local Authority",Calculations!$E$2="Eilean Siar Local Authority"),OR($F60=1,$F60=5)),0,new_yllv2(VALUE(LEFT(Options!$B$24,2)),$C60,$D60,$E60,$F60,2016,$I60,1,$H60,$G60*$H60,Options!$B$8))) ->  | N60: =IF(AND(OR(Calculations!$E$2="Orkney Health Board",Calculations!$E$2="Orkney Islands Local Authority"),$F60=1),0,IF(AND(OR(Calculations!$E$2="Shetland Health Board",Calculations!$E$2="Western Isles Health Board",Calculations!$E$2="Shetland Islands Local Authority",Calculations!$E$2="Eilean Siar Local Authority"),OR($F60=1,$F60=5)),0,new_yllv2(VALUE(LEFT(Options!$B$24,2)),$C60,$D60,$E60,$F60,2016,$I60+$J60,1,$H60,$G60*$H60,Options!$B$8))) ->  | O60: =IF(AND(OR(Calculations!$E$2="Orkney Health Board",Calculations!$E$2="Orkney Islands Local Authority"),$F60=1),0,IF(AND(OR(Calculations!$E$2="Shetland Health Board",Calculations!$E$2="Western Isles Health Board",Calculations!$E$2="Shetland Islands Local Authority",Calculations!$E$2="Eilean Siar Local Authority"),OR($F60=1,$F60=5)),0,hosp_count(VALUE(LEFT(Options!$B$24,2)),$C60,$E60,$F60,2016,$I60,1,$H60,$G60*$H60, Options!$B$8))) ->  | P60: =IF(AND(OR(Calculations!$E$2="Orkney Health Board",Calculations!$E$2="Orkney Islands Local Authority"),$F60=1),0,IF(AND(OR(Calculations!$E$2="Shetland Health Board",Calculations!$E$2="Western Isles Health Board",Calculations!$E$2="Shetland Islands Local Authority",Calculations!$E$2="Eilean Siar Local Authority"),OR($F60=1,$F60=5)),0,hosp_count(VALUE(LEFT(Options!$B$24,2)),$C60,$E60,$F60,2016,$I60+$J60,1,$H60,$G60*$H60, Options!$B$8))) ->  | Q60: =IF(AND(OR(Calculations!$E$2="Orkney Health Board",Calculations!$E$2="Orkney Islands Local Authority"),$F60=1),0,IF(AND(OR(Calculations!$E$2="Shetland Health Board",Calculations!$E$2="Western Isles Health Board",Calculations!$E$2="Shetland Islands Local Authority",Calculations!$E$2="Eilean Siar Local Authority"),OR($F60=1,$F60=5)),0,prem_mort(VALUE(LEFT(Options!$B$24,2)),$C60,$E60,$F60,2016,$I60,1,$H60,$G60*$H60,Options!$B$8))) ->  | R60: =IF(AND(OR(Calculations!$E$2="Orkney Health Board",Calculations!$E$2="Orkney Islands Local Authority"),$F60=1),0,IF(AND(OR(Calculations!$E$2="Shetland Health Board",Calculations!$E$2="Western Isles Health Board",Calculations!$E$2="Shetland Islands Local Authority",Calculations!$E$2="Eilean Siar Local Authority"),OR($F60=1,$F60=5)),0,prem_mort(VALUE(LEFT(Options!$B$24,2)),$C60,$E60,$F60,2016,$I60+$J60,1,$H60,$G60*$H60,Options!$B$8))) ->  | S60: =K60*100000/$H60 ->  | AA60: =S60*$AI60 ->  | AB60: =T60*$AI60 ->  | AC60: =U60*$AI60 ->  | AD60: =V60*$AI60 ->  | AE60: =W60*$AI60 ->  | AF60: =X60*$AI60 ->  | AG60: =Y60*$AI60 ->  | AH60: =Z60*$AI60 ->  | AI60: 5000
B61: Female 5-9 | C61: 6.9792795 | D61: 81.43928 | E61: female | F61: 1 | G61: =HLOOKUP(Calculations!$E$2,'Prevalence Rates'!$C$3:$BC$249,'Prevalence Rates'!$BD61,FALSE) -> 0 | H61: =HLOOKUP(Calculations!$E$2,'Population 2016'!$C$3:$BC$249,'Population 2016'!BD61,FALSE) -> 0 | I61: 0 | J61: =HLOOKUP(Results!E$4,Targeting!$C$3:$F$249,Targeting!$G61,FALSE) -> 0 | K61: =IF(AND(OR(Calculations!$E$2="Orkney Health Board",Calculations!$E$2="Orkney Islands Local Authority"),$F61=1),0,IF(AND(OR(Calculations!$E$2="Shetland Health Board",Calculations!$E$2="Western Isles Health Board",Calculations!$E$2="Shetland Islands Local Authority",Calculations!$E$2="Eilean Siar Local Authority"),OR($F61=1,$F61=5)),0,new_ci(VALUE(LEFT(Options!$B$24,2)),$C61,$E61,$F61,2016,$I61,1,$H61,$G61*$H61,Options!$B$8))) ->  | L61: =IF(AND(OR(Calculations!$E$2="Orkney Health Board",Calculations!$E$2="Orkney Islands Local Authority"),$F61=1),0,IF(AND(OR(Calculations!$E$2="Shetland Health Board",Calculations!$E$2="Western Isles Health Board",Calculations!$E$2="Shetland Islands Local Authority",Calculations!$E$2="Eilean Siar Local Authority"),OR($F61=1,$F61=5)),0,new_ci(VALUE(LEFT(Options!$B$24,2)),$C61,$E61,$F61,2016,$I61+$J61,1,$H61,$G61*$H61,Options!$B$8))) ->  | M61: =IF(AND(OR(Calculations!$E$2="Orkney Health Board",Calculations!$E$2="Orkney Islands Local Authority"),$F61=1),0,IF(AND(OR(Calculations!$E$2="Shetland Health Board",Calculations!$E$2="Western Isles Health Board",Calculations!$E$2="Shetland Islands Local Authority",Calculations!$E$2="Eilean Siar Local Authority"),OR($F61=1,$F61=5)),0,new_yllv2(VALUE(LEFT(Options!$B$24,2)),$C61,$D61,$E61,$F61,2016,$I61,1,$H61,$G61*$H61,Options!$B$8))) ->  | N61: =IF(AND(OR(Calculations!$E$2="Orkney Health Board",Calculations!$E$2="Orkney Islands Local Authority"),$F61=1),0,IF(AND(OR(Calculations!$E$2="Shetland Health Board",Calculations!$E$2="Western Isles Health Board",Calculations!$E$2="Shetland Islands Local Authority",Calculations!$E$2="Eilean Siar Local Authority"),OR($F61=1,$F61=5)),0,new_yllv2(VALUE(LEFT(Options!$B$24,2)),$C61,$D61,$E61,$F61,2016,$I61+$J61,1,$H61,$G61*$H61,Options!$B$8))) ->  | O61: =IF(AND(OR(Calculations!$E$2="Orkney Health Board",Calculations!$E$2="Orkney Islands Local Authority"),$F61=1),0,IF(AND(OR(Calculations!$E$2="Shetland Health Board",Calculations!$E$2="Western Isles Health Board",Calculations!$E$2="Shetland Islands Local Authority",Calculations!$E$2="Eilean Siar Local Authority"),OR($F61=1,$F61=5)),0,hosp_count(VALUE(LEFT(Options!$B$24,2)),$C61,$E61,$F61,2016,$I61,1,$H61,$G61*$H61, Options!$B$8))) ->  | P61: =IF(AND(OR(Calculations!$E$2="Orkney Health Board",Calculations!$E$2="Orkney Islands Local Authority"),$F61=1),0,IF(AND(OR(Calculations!$E$2="Shetland Health Board",Calculations!$E$2="Western Isles Health Board",Calculations!$E$2="Shetland Islands Local Authority",Calculations!$E$2="Eilean Siar Local Authority"),OR($F61=1,$F61=5)),0,hosp_count(VALUE(LEFT(Options!$B$24,2)),$C61,$E61,$F61,2016,$I61+$J61,1,$H61,$G61*$H61, Options!$B$8))) ->  | Q61: =IF(AND(OR(Calculations!$E$2="Orkney Health Board",Calculations!$E$2="Orkney Islands Local Authority"),$F61=1),0,IF(AND(OR(Calculations!$E$2="Shetland Health Board",Calculations!$E$2="Western Isles Health Board",Calculations!$E$2="Shetland Islands Local Authority",Calculations!$E$2="Eilean Siar Local Authority"),OR($F61=1,$F61=5)),0,prem_mort(VALUE(LEFT(Options!$B$24,2)),$C61,$E61,$F61,2016,$I61,1,$H61,$G61*$H61,Options!$B$8))) ->  | R61: =IF(AND(OR(Calculations!$E$2="Orkney Health Board",Calculations!$E$2="Orkney Islands Local Authority"),$F61=1),0,IF(AND(OR(Calculations!$E$2="Shetland Health Board",Calculations!$E$2="Western Isles Health Board",Calculations!$E$2="Shetland Islands Local Authority",Calculations!$E$2="Eilean Siar Local Authority"),OR($F61=1,$F61=5)),0,prem_mort(VALUE(LEFT(Options!$B$24,2)),$C61,$E61,$F61,2016,$I61+$J61,1,$H61,$G61*$H61,Options!$B$8))) ->  | S61: =K61*100000/$H61 ->  | T61: =L61*100000/$H61 ->  | U61: =M61*100000/$H61 ->  | V61: =N61*100000/$H61 ->  | W61: =O61*100000/$H61 ->  | X61: =P61*100000/$H61 ->  | Y61: =Q61*100000/$H61 ->  | Z61: =R61*100000/$H61 ->  | AA61: =S61*$AI61 ->  | AB61: =T61*$AI61 ->  | AC61: =U61*$AI61 ->  | AI61: 5500
B62: Female 10-15 | C62: 12.478312 | D62: 81.94831 | E62: female | F62: 1 | G62: =HLOOKUP(Calculations!$E$2,'Prevalence Rates'!$C$3:$BC$249,'Prevalence Rates'!$BD62,FALSE) -> 0 | H62: =HLOOKUP(Calculations!$E$2,'Population 2016'!$C$3:$BC$249,'Population 2016'!BD62,FALSE) -> 0 | I62: 0 | J62: =HLOOKUP(Results!E$4,Targeting!$C$3:$F$249,Targeting!$G62,FALSE) -> 0 | K62: =IF(AND(OR(Calculations!$E$2="Orkney Health Board",Calculations!$E$2="Orkney Islands Local Authority"),$F62=1),0,IF(AND(OR(Calculations!$E$2="Shetland Health Board",Calculations!$E$2="Western Isles Health Board",Calculations!$E$2="Shetland Islands Local Authority",Calculations!$E$2="Eilean Siar Local Authority"),OR($F62=1,$F62=5)),0,new_ci(VALUE(LEFT(Options!$B$24,2)),$C62,$E62,$F62,2016,$I62,1,$H62,$G62*$H62,Options!$B$8))) ->  | L62: =IF(AND(OR(Calculations!$E$2="Orkney Health Board",Calculations!$E$2="Orkney Islands Local Authority"),$F62=1),0,IF(AND(OR(Calculations!$E$2="Shetland Health Board",Calculations!$E$2="Western Isles Health Board",Calculations!$E$2="Shetland Islands Local Authority",Calculations!$E$2="Eilean Siar Local Authority"),OR($F62=1,$F62=5)),0,new_ci(VALUE(LEFT(Options!$B$24,2)),$C62,$E62,$F62,2016,$I62+$J62,1,$H62,$G62*$H62,Options!$B$8))) ->  | M62: =IF(AND(OR(Calculations!$E$2="Orkney Health Board",Calculations!$E$2="Orkney Islands Local Authority"),$F62=1),0,IF(AND(OR(Calculations!$E$2="Shetland Health Board",Calculations!$E$2="Western Isles Health Board",Calculations!$E$2="Shetland Islands Local Authority",Calculations!$E$2="Eilean Siar Local Authority"),OR($F62=1,$F62=5)),0,new_yllv2(VALUE(LEFT(Options!$B$24,2)),$C62,$D62,$E62,$F62,2016,$I62,1,$H62,$G62*$H62,Options!$B$8))) ->  | N62: =IF(AND(OR(Calculations!$E$2="Orkney Health Board",Calculations!$E$2="Orkney Islands Local Authority"),$F62=1),0,IF(AND(OR(Calculations!$E$2="Shetland Health Board",Calculations!$E$2="Western Isles Health Board",Calculations!$E$2="Shetland Islands Local Authority",Calculations!$E$2="Eilean Siar Local Authority"),OR($F62=1,$F62=5)),0,new_yllv2(VALUE(LEFT(Options!$B$24,2)),$C62,$D62,$E62,$F62,2016,$I62+$J62,1,$H62,$G62*$H62,Options!$B$8))) ->  | O62: =IF(AND(OR(Calculations!$E$2="Orkney Health Board",Calculations!$E$2="Orkney Islands Local Authority"),$F62=1),0,IF(AND(OR(Calculations!$E$2="Shetland Health Board",Calculations!$E$2="Western Isles Health Board",Calculations!$E$2="Shetland Islands Local Authority",Calculations!$E$2="Eilean Siar Local Authority"),OR($F62=1,$F62=5)),0,hosp_count(VALUE(LEFT(Options!$B$24,2)),$C62,$E62,$F62,2016,$I62,1,$H62,$G62*$H62, Options!$B$8))) ->  | P62: =IF(AND(OR(Calculations!$E$2="Orkney Health Board",Calculations!$E$2="Orkney Islands Local Authority"),$F62=1),0,IF(AND(OR(Calculations!$E$2="Shetland Health Board",Calculations!$E$2="Western Isles Health Board",Calculations!$E$2="Shetland Islands Local Authority",Calculations!$E$2="Eilean Siar Local Authority"),OR($F62=1,$F62=5)),0,hosp_count(VALUE(LEFT(Options!$B$24,2)),$C62,$E62,$F62,2016,$I62+$J62,1,$H62,$G62*$H62, Options!$B$8))) ->  | Q62: =IF(AND(OR(Calculations!$E$2="Orkney Health Board",Calculations!$E$2="Orkney Islands Local Authority"),$F62=1),0,IF(AND(OR(Calculations!$E$2="Shetland Health Board",Calculations!$E$2="Western Isles Health Board",Calculations!$E$2="Shetland Islands Local Authority",Calculations!$E$2="Eilean Siar Local Authority"),OR($F62=1,$F62=5)),0,prem_mort(VALUE(LEFT(Options!$B$24,2)),$C62,$E62,$F62,2016,$I62,1,$H62,$G62*$H62,Options!$B$8))) ->  | R62: =IF(AND(OR(Calculations!$E$2="Orkney Health Board",Calculations!$E$2="Orkney Islands Local Authority"),$F62=1),0,IF(AND(OR(Calculations!$E$2="Shetland Health Board",Calculations!$E$2="Western Isles Health Board",Calculations!$E$2="Shetland Islands Local Authority",Calculations!$E$2="Eilean Siar Local Authority"),OR($F62=1,$F62=5)),0,prem_mort(VALUE(LEFT(Options!$B$24,2)),$C62,$E62,$F62,2016,$I62+$J62,1,$H62,$G62*$H62,Options!$B$8))) ->  | AI62: 6600
A63: SIMD Q1 (most deprived) | B63: Female 16-19 | C63: 17.570053 | D63: 81.10005 | E63: female | F63: 1 | G63: =HLOOKUP(Calculations!$E$2,'Prevalence Rates'!$C$3:$BC$249,'Prevalence Rates'!$BD63,FALSE) -> 0.2768 | H63: =HLOOKUP(Calculations!$E$2,'Population 2016'!$C$3:$BC$249,'Population 2016'!BD63,FALSE) -> 24142 | I63: 0 | J63: =HLOOKUP(Results!E$4,Targeting!$C$3:$F$249,Targeting!$G63,FALSE) -> 3720 | K63: =IF(AND(OR(Calculations!$E$2="Orkney Health Board",Calculations!$E$2="Orkney Islands Local Authority"),$F63=1),0,IF(AND(OR(Calculations!$E$2="Shetland Health Board",Calculations!$E$2="Western Isles Health Board",Calculations!$E$2="Shetland Islands Local Authority",Calculations!$E$2="Eilean Siar Local Authority"),OR($F63=1,$F63=5)),0,new_ci(VALUE(LEFT(Options!$B$24,2)),$C63,$E63,$F63,2016,$I63,1,$H63,$G63*$H63,Options!$B$8))) -> 7.67760073 | L63: =IF(AND(OR(Calculations!$E$2="Orkney Health Board",Calculations!$E$2="Orkney Islands Local Authority"),$F63=1),0,IF(AND(OR(Calculations!$E$2="Shetland Health Board",Calculations!$E$2="Western Isles Health Board",Calculations!$E$2="Shetland Islands Local Authority",Calculations!$E$2="Eilean Siar Local Authority"),OR($F63=1,$F63=5)),0,new_ci(VALUE(LEFT(Options!$B$24,2)),$C63,$E63,$F63,2016,$I63+$J63,1,$H63,$G63*$H63,Options!$B$8))) -> 7.645254586 | M63: =IF(AND(OR(Calculations!$E$2="Orkney Health Board",Calculations!$E$2="Orkney Islands Local Authority"),$F63=1),0,IF(AND(OR(Calculations!$E$2="Shetland Health Board",Calculations!$E$2="Western Isles Health Board",Calculations!$E$2="Shetland Islands Local Authority",Calculations!$E$2="Eilean Siar Local Authority"),OR($F63=1,$F63=5)),0,new_yllv2(VALUE(LEFT(Options!$B$24,2)),$C63,$D63,$E63,$F63,2016,$I63,1,$H63,$G63*$H63,Options!$B$8))) -> 480.0803506 | N63: =IF(AND(OR(Calculations!$E$2="Orkney Health Board",Calculations!$E$2="Orkney Islands Local Authority"),$F63=1),0,IF(AND(OR(Calculations!$E$2="Shetland Health Board",Calculations!$E$2="Western Isles Health Board",Calculations!$E$2="Shetland Islands Local Authority",Calculations!$E$2="Eilean Siar Local Authority"),OR($F63=1,$F63=5)),0,new_yllv2(VALUE(LEFT(Options!$B$24,2)),$C63,$D63,$E63,$F63,2016,$I63+$J63,1,$H63,$G63*$H63,Options!$B$8))) -> 478.0577464 | O63: =IF(AND(OR(Calculations!$E$2="Orkney Health Board",Calculations!$E$2="Orkney Islands Local Authority"),$F63=1),0,IF(AND(OR(Calculations!$E$2="Shetland Health Board",Calculations!$E$2="Western Isles Health Board",Calculations!$E$2="Shetland Islands Local Authority",Calculations!$E$2="Eilean Siar Local Authority"),OR($F63=1,$F63=5)),0,hosp_count(VALUE(LEFT(Options!$B$24,2)),$C63,$E63,$F63,2016,$I63,1,$H63,$G63*$H63, Options!$B$8))) -> 3441.218007 | P63: =IF(AND(OR(Calculations!$E$2="Orkney Health Board",Calculations!$E$2="Orkney Islands Local Authority"),$F63=1),0,IF(AND(OR(Calculations!$E$2="Shetland Health Board",Calculations!$E$2="Western Isles Health Board",Calculations!$E$2="Shetland Islands Local Authority",Calculations!$E$2="Eilean Siar Local Authority"),OR($F63=1,$F63=5)),0,hosp_count(VALUE(LEFT(Options!$B$24,2)),$C63,$E63,$F63,2016,$I63+$J63,1,$H63,$G63*$H63, Options!$B$8))) -> 3432.313519 | Q63: =IF(AND(OR(Calculations!$E$2="Orkney Health Board",Calculations!$E$2="Orkney Islands Local Authority"),$F63=1),0,IF(AND(OR(Calculations!$E$2="Shetland Health Board",Calculations!$E$2="Western Isles Health Board",Calculations!$E$2="Shetland Islands Local Authority",Calculations!$E$2="Eilean Siar Local Authority"),OR($F63=1,$F63=5)),0,prem_mort(VALUE(LEFT(Options!$B$24,2)),$C63,$E63,$F63,2016,$I63,1,$H63,$G63*$H63,Options!$B$8))) -> 7.67760073 | R63: =IF(AND(OR(Calculations!$E$2="Orkney Health Board",Calculations!$E$2="Orkney Islands Local Authority"),$F63=1),0,IF(AND(OR(Calculations!$E$2="Shetland Health Board",Calculations!$E$2="Western Isles Health Board",Calculations!$E$2="Shetland Islands Local Authority",Calculations!$E$2="Eilean Siar Local Authority"),OR($F63=1,$F63=5)),0,prem_mort(VALUE(LEFT(Options!$B$24,2)),$C63,$E63,$F63,2016,$I63+$J63,1,$H63,$G63*$H63,Options!$B$8))) -> 7.645254586 | S63: 31.80184214 | T63: 31.66785928 | U63: 1988.569094 | V63: 1980.191146 | W63: 14254.07177 | X63: 14217.18797 | Y63: 31.80184214 | Z63: 31.66785928 | AA63: =S63*$AI63 -> 139928.1054 | AB63: 139338.5808 | AC63: 8749704.013 | AD63: 8712841.04 | AE63: 62717915.79 | AF63: 62555627.05 | AG63: 139928.1054 | AH63: =Z63*$AI63 -> 139338.5808 | AI63: 4400
B64: Female 20-24 | C64: 22.077057 | D64: 81.66706 | E64: female | F64: 1 | G64: =HLOOKUP(Calculations!$E$2,'Prevalence Rates'!$C$3:$BC$249,'Prevalence Rates'!$BD64,FALSE) -> 0.2768 | H64: =HLOOKUP(Calculations!$E$2,'Population 2016'!$C$3:$BC$249,'Population 2016'!BD64,FALSE) -> 37624 | I64: 0 | J64: =HLOOKUP(Results!E$4,Targeting!$C$3:$F$249,Targeting!$G64,FALSE) -> 5797 | K64: =IF(AND(OR(Calculations!$E$2="Orkney Health Board",Calculations!$E$2="Orkney Islands Local Authority"),$F64=1),0,IF(AND(OR(Calculations!$E$2="Shetland Health Board",Calculations!$E$2="Western Isles Health Board",Calculations!$E$2="Shetland Islands Local Authority",Calculations!$E$2="Eilean Siar Local Authority"),OR($F64=1,$F64=5)),0,new_ci(VALUE(LEFT(Options!$B$24,2)),$C64,$E64,$F64,2016,$I64,1,$H64,$G64*$H64,Options!$B$8))) -> 17.55353843 | L64: =IF(AND(OR(Calculations!$E$2="Orkney Health Board",Calculations!$E$2="Orkney Islands Local Authority"),$F64=1),0,IF(AND(OR(Calculations!$E$2="Shetland Health Board",Calculations!$E$2="Western Isles Health Board",Calculations!$E$2="Shetland Islands Local Authority",Calculations!$E$2="Eilean Siar Local Authority"),OR($F64=1,$F64=5)),0,new_ci(VALUE(LEFT(Options!$B$24,2)),$C64,$E64,$F64,2016,$I64+$J64,1,$H64,$G64*$H64,Options!$B$8))) -> 17.47959944 | M64: =IF(AND(OR(Calculations!$E$2="Orkney Health Board",Calculations!$E$2="Orkney Islands Local Authority"),$F64=1),0,IF(AND(OR(Calculations!$E$2="Shetland Health Board",Calculations!$E$2="Western Isles Health Board",Calculations!$E$2="Shetland Islands Local Authority",Calculations!$E$2="Eilean Siar Local Authority"),OR($F64=1,$F64=5)),0,new_yllv2(VALUE(LEFT(Options!$B$24,2)),$C64,$D64,$E64,$F64,2016,$I64,1,$H64,$G64*$H64,Options!$B$8))) -> 1028.461869 | N64: =IF(AND(OR(Calculations!$E$2="Orkney Health Board",Calculations!$E$2="Orkney Islands Local Authority"),$F64=1),0,IF(AND(OR(Calculations!$E$2="Shetland Health Board",Calculations!$E$2="Western Isles Health Board",Calculations!$E$2="Shetland Islands Local Authority",Calculations!$E$2="Eilean Siar Local Authority"),OR($F64=1,$F64=5)),0,new_yllv2(VALUE(LEFT(Options!$B$24,2)),$C64,$D64,$E64,$F64,2016,$I64+$J64,1,$H64,$G64*$H64,Options!$B$8))) -> 1024.129784 | O64: =IF(AND(OR(Calculations!$E$2="Orkney Health Board",Calculations!$E$2="Orkney Islands Local Authority"),$F64=1),0,IF(AND(OR(Calculations!$E$2="Shetland Health Board",Calculations!$E$2="Western Isles Health Board",Calculations!$E$2="Shetland Islands Local Authority",Calculations!$E$2="Eilean Siar Local Authority"),OR($F64=1,$F64=5)),0,hosp_count(VALUE(LEFT(Options!$B$24,2)),$C64,$E64,$F64,2016,$I64,1,$H64,$G64*$H64, Options!$B$8))) -> 6006.741035 | P64: =IF(AND(OR(Calculations!$E$2="Orkney Health Board",Calculations!$E$2="Orkney Islands Local Authority"),$F64=1),0,IF(AND(OR(Calculations!$E$2="Shetland Health Board",Calculations!$E$2="Western Isles Health Board",Calculations!$E$2="Shetland Islands Local Authority",Calculations!$E$2="Eilean Siar Local Authority"),OR($F64=1,$F64=5)),0,hosp_count(VALUE(LEFT(Options!$B$24,2)),$C64,$E64,$F64,2016,$I64+$J64,1,$H64,$G64*$H64, Options!$B$8))) -> 5991.199128 | Q64: =IF(AND(OR(Calculations!$E$2="Orkney Health Board",Calculations!$E$2="Orkney Islands Local Authority"),$F64=1),0,IF(AND(OR(Calculations!$E$2="Shetland Health Board",Calculations!$E$2="Western Isles Health Board",Calculations!$E$2="Shetland Islands Local Authority",Calculations!$E$2="Eilean Siar Local Authority"),OR($F64=1,$F64=5)),0,prem_mort(VALUE(LEFT(Options!$B$24,2)),$C64,$E64,$F64,2016,$I64,1,$H64,$G64*$H64,Options!$B$8))) -> 17.55353843 | R64: =IF(AND(OR(Calculations!$E$2="Orkney Health Board",Calculations!$E$2="Orkney Islands Local Authority"),$F64=1),0,IF(AND(OR(Calculations!$E$2="Shetland Health Board",Calculations!$E$2="Western Isles Health Board",Calculations!$E$2="Shetland Islands Local Authority",Calculations!$E$2="Eilean Siar Local Authority"),OR($F64=1,$F64=5)),0,prem_mort(VALUE(LEFT(Options!$B$24,2)),$C64,$E64,$F64,2016,$I64+$J64,1,$H64,$G64*$H64,Options!$B$8))) -> 17.47959944 | S64: 46.65516275 | T64: 46.45864193 | U64: 2733.526126 | V64: 2722.01197 | W64: 15965.18455 | X64: 15923.87606 | Y64: 46.65516275 | Z64: 46.45864193 | AA64: 279930.9765 | AB64: 278751.8516 | AC64: 16401156.75 | AD64: 16332071.82 | AE64: 95791107.3 | AF64: 95543256.34 | AG64: 279930.9765 | AH64: 278751.8516 | AI64: 6000
B65: Female 25-29 | C65: 26.975187 | D65: 81.64519 | E65: female | F65: 1 | G65: =HLOOKUP(Calculations!$E$2,'Prevalence Rates'!$C$3:$BC$249,'Prevalence Rates'!$BD65,FALSE) -> 0.3587 | H65: =HLOOKUP(Calculations!$E$2,'Population 2016'!$C$3:$BC$249,'Population 2016'!BD65,FALSE) -> 45129 | I65: 0 | J65: =HLOOKUP(Results!E$4,Targeting!$C$3:$F$249,Targeting!$G65,FALSE) -> 6953 | K65: =IF(AND(OR(Calculations!$E$2="Orkney Health Board",Calculations!$E$2="Orkney Islands Local Authority"),$F65=1),0,IF(AND(OR(Calculations!$E$2="Shetland Health Board",Calculations!$E$2="Western Isles Health Board",Calculations!$E$2="Shetland Islands Local Authority",Calculations!$E$2="Eilean Siar Local Authority"),OR($F65=1,$F65=5)),0,new_ci(VALUE(LEFT(Options!$B$24,2)),$C65,$E65,$F65,2016,$I65,1,$H65,$G65*$H65,Options!$B$8))) -> 31.93216374 | L65: =IF(AND(OR(Calculations!$E$2="Orkney Health Board",Calculations!$E$2="Orkney Islands Local Authority"),$F65=1),0,IF(AND(OR(Calculations!$E$2="Shetland Health Board",Calculations!$E$2="Western Isles Health Board",Calculations!$E$2="Shetland Islands Local Authority",Calculations!$E$2="Eilean Siar Local Authority"),OR($F65=1,$F65=5)),0,new_ci(VALUE(LEFT(Options!$B$24,2)),$C65,$E65,$F65,2016,$I65+$J65,1,$H65,$G65*$H65,Options!$B$8))) -> 31.80453447 | M65: =IF(AND(OR(Calculations!$E$2="Orkney Health Board",Calculations!$E$2="Orkney Islands Local Authority"),$F65=1),0,IF(AND(OR(Calculations!$E$2="Shetland Health Board",Calculations!$E$2="Western Isles Health Board",Calculations!$E$2="Shetland Islands Local Authority",Calculations!$E$2="Eilean Siar Local Authority"),OR($F65=1,$F65=5)),0,new_yllv2(VALUE(LEFT(Options!$B$24,2)),$C65,$D65,$E65,$F65,2016,$I65,1,$H65,$G65*$H65,Options!$B$8))) -> 1713.799324 | N65: =IF(AND(OR(Calculations!$E$2="Orkney Health Board",Calculations!$E$2="Orkney Islands Local Authority"),$F65=1),0,IF(AND(OR(Calculations!$E$2="Shetland Health Board",Calculations!$E$2="Western Isles Health Board",Calculations!$E$2="Shetland Islands Local Authority",Calculations!$E$2="Eilean Siar Local Authority"),OR($F65=1,$F65=5)),0,new_yllv2(VALUE(LEFT(Options!$B$24,2)),$C65,$D65,$E65,$F65,2016,$I65+$J65,1,$H65,$G65*$H65,Options!$B$8))) -> 1706.94946 | O65: =IF(AND(OR(Calculations!$E$2="Orkney Health Board",Calculations!$E$2="Orkney Islands Local Authority"),$F65=1),0,IF(AND(OR(Calculations!$E$2="Shetland Health Board",Calculations!$E$2="Western Isles Health Board",Calculations!$E$2="Shetland Islands Local Authority",Calculations!$E$2="Eilean Siar Local Authority"),OR($F65=1,$F65=5)),0,hosp_count(VALUE(LEFT(Options!$B$24,2)),$C65,$E65,$F65,2016,$I65,1,$H65,$G65*$H65, Options!$B$8))) -> 8149.619987 | P65: =IF(AND(OR(Calculations!$E$2="Orkney Health Board",Calculations!$E$2="Orkney Islands Local Authority"),$F65=1),0,IF(AND(OR(Calculations!$E$2="Shetland Health Board",Calculations!$E$2="Western Isles Health Board",Calculations!$E$2="Shetland Islands Local Authority",Calculations!$E$2="Eilean Siar Local Authority"),OR($F65=1,$F65=5)),0,hosp_count(VALUE(LEFT(Options!$B$24,2)),$C65,$E65,$F65,2016,$I65+$J65,1,$H65,$G65*$H65, Options!$B$8))) -> 8129.327916 | Q65: =IF(AND(OR(Calculations!$E$2="Orkney Health Board",Calculations!$E$2="Orkney Islands Local Authority"),$F65=1),0,IF(AND(OR(Calculations!$E$2="Shetland Health Board",Calculations!$E$2="Western Isles Health Board",Calculations!$E$2="Shetland Islands Local Authority",Calculations!$E$2="Eilean Siar Local Authority"),OR($F65=1,$F65=5)),0,prem_mort(VALUE(LEFT(Options!$B$24,2)),$C65,$E65,$F65,2016,$I65,1,$H65,$G65*$H65,Options!$B$8))) -> 31.93216374 | R65: =IF(AND(OR(Calculations!$E$2="Orkney Health Board",Calculations!$E$2="Orkney Islands Local Authority"),$F65=1),0,IF(AND(OR(Calculations!$E$2="Shetland Health Board",Calculations!$E$2="Western Isles Health Board",Calculations!$E$2="Shetland Islands Local Authority",Calculations!$E$2="Eilean Siar Local Authority"),OR($F65=1,$F65=5)),0,prem_mort(VALUE(LEFT(Options!$B$24,2)),$C65,$E65,$F65,2016,$I65+$J65,1,$H65,$G65*$H65,Options!$B$8))) -> 31.80453447 | S65: 70.75752562 | T65: 70.47471575 | U65: 3797.556612 | V65: 3782.378205 | W65: 18058.49894 | X65: 18013.53435 | Y65: 70.75752562 | Z65: 70.47471575 | AA65: 424545.1537 | AB65: 422848.2945 | AC65: 22785339.67 | AD65: 22694269.23 | AE65: 108350993.6 | AF65: 108081206.1 | AG65: 424545.1537 | AH65: 422848.2945 | AI65: 6000
B66: Female 30-34 | C66: 31.999905 | D66: 81.7999 | E66: female | F66: 1 | G66: =HLOOKUP(Calculations!$E$2,'Prevalence Rates'!$C$3:$BC$249,'Prevalence Rates'!$BD66,FALSE) -> 0.3587 | H66: =HLOOKUP(Calculations!$E$2,'Population 2016'!$C$3:$BC$249,'Population 2016'!BD66,FALSE) -> 41240 | I66: 0 | J66: =HLOOKUP(Results!E$4,Targeting!$C$3:$F$249,Targeting!$G66,FALSE) -> 6354 | K66: =IF(AND(OR(Calculations!$E$2="Orkney Health Board",Calculations!$E$2="Orkney Islands Local Authority"),$F66=1),0,IF(AND(OR(Calculations!$E$2="Shetland Health Board",Calculations!$E$2="Western Isles Health Board",Calculations!$E$2="Shetland Islands Local Authority",Calculations!$E$2="Eilean Siar Local Authority"),OR($F66=1,$F66=5)),0,new_ci(VALUE(LEFT(Options!$B$24,2)),$C66,$E66,$F66,2016,$I66,1,$H66,$G66*$H66,Options!$B$8))) -> 44.73096207 | L66: =IF(AND(OR(Calculations!$E$2="Orkney Health Board",Calculations!$E$2="Orkney Islands Local Authority"),$F66=1),0,IF(AND(OR(Calculations!$E$2="Shetland Health Board",Calculations!$E$2="Western Isles Health Board",Calculations!$E$2="Shetland Islands Local Authority",Calculations!$E$2="Eilean Siar Local Authority"),OR($F66=1,$F66=5)),0,new_ci(VALUE(LEFT(Options!$B$24,2)),$C66,$E66,$F66,2016,$I66+$J66,1,$H66,$G66*$H66,Options!$B$8))) -> 44.55222977 | M66: =IF(AND(OR(Calculations!$E$2="Orkney Health Board",Calculations!$E$2="Orkney Islands Local Authority"),$F66=1),0,IF(AND(OR(Calculations!$E$2="Shetland Health Board",Calculations!$E$2="Western Isles Health Board",Calculations!$E$2="Shetland Islands Local Authority",Calculations!$E$2="Eilean Siar Local Authority"),OR($F66=1,$F66=5)),0,new_yllv2(VALUE(LEFT(Options!$B$24,2)),$C66,$D66,$E66,$F66,2016,$I66,1,$H66,$G66*$H66,Options!$B$8))) -> 2182.870725 | N66: =IF(AND(OR(Calculations!$E$2="Orkney Health Board",Calculations!$E$2="Orkney Islands Local Authority"),$F66=1),0,IF(AND(OR(Calculations!$E$2="Shetland Health Board",Calculations!$E$2="Western Isles Health Board",Calculations!$E$2="Shetland Islands Local Authority",Calculations!$E$2="Eilean Siar Local Authority"),OR($F66=1,$F66=5)),0,new_yllv2(VALUE(LEFT(Options!$B$24,2)),$C66,$D66,$E66,$F66,2016,$I66+$J66,1,$H66,$G66*$H66,Options!$B$8))) -> 2174.14859 | O66: =IF(AND(OR(Calculations!$E$2="Orkney Health Board",Calculations!$E$2="Orkney Islands Local Authority"),$F66=1),0,IF(AND(OR(Calculations!$E$2="Shetland Health Board",Calculations!$E$2="Western Isles Health Board",Calculations!$E$2="Shetland Islands Local Authority",Calculations!$E$2="Eilean Siar Local Authority"),OR($F66=1,$F66=5)),0,hosp_count(VALUE(LEFT(Options!$B$24,2)),$C66,$E66,$F66,2016,$I66,1,$H66,$G66*$H66, Options!$B$8))) -> 8450.664705 | P66: =IF(AND(OR(Calculations!$E$2="Orkney Health Board",Calculations!$E$2="Orkney Islands Local Authority"),$F66=1),0,IF(AND(OR(Calculations!$E$2="Shetland Health Board",Calculations!$E$2="Western Isles Health Board",Calculations!$E$2="Shetland Islands Local Authority",Calculations!$E$2="Eilean Siar Local Authority"),OR($F66=1,$F66=5)),0,hosp_count(VALUE(LEFT(Options!$B$24,2)),$C66,$E66,$F66,2016,$I66+$J66,1,$H66,$G66*$H66, Options!$B$8))) -> 8429.622467 | Q66: =IF(AND(OR(Calculations!$E$2="Orkney Health Board",Calculations!$E$2="Orkney Islands Local Authority"),$F66=1),0,IF(AND(OR(Calculations!$E$2="Shetland Health Board",Calculations!$E$2="Western Isles Health Board",Calculations!$E$2="Shetland Islands Local Authority",Calculations!$E$2="Eilean Siar Local Authority"),OR($F66=1,$F66=5)),0,prem_mort(VALUE(LEFT(Options!$B$24,2)),$C66,$E66,$F66,2016,$I66,1,$H66,$G66*$H66,Options!$B$8))) -> 44.73096207 | R66: =IF(AND(OR(Calculations!$E$2="Orkney Health Board",Calculations!$E$2="Orkney Islands Local Authority"),$F66=1),0,IF(AND(OR(Calculations!$E$2="Shetland Health Board",Calculations!$E$2="Western Isles Health Board",Calculations!$E$2="Shetland Islands Local Authority",Calculations!$E$2="Eilean Siar Local Authority"),OR($F66=1,$F66=5)),0,prem_mort(VALUE(LEFT(Options!$B$24,2)),$C66,$E66,$F66,2016,$I66+$J66,1,$H66,$G66*$H66,Options!$B$8))) -> 44.55222977 | S66: 108.4649905 | T66: 108.031595 | U66: 5293.090993 | V66: 5271.941295 | W66: 20491.42751 | X66: 20440.40366 | Y66: 108.4649905 | Z66: 108.031595 | AA66: 705022.4381 | AB66: 702205.3674 | AC66: 34405091.45 | AD66: 34267618.42 | AE66: 133194278.8 | AF66: 132862623.8 | AG66: 705022.4381 | AH66: 702205.3674 | AI66: 6500
B67: Female 35-39 | C67: 36.918118 | D67: 81.89812 | E67: female | F67: 1 | G67: =HLOOKUP(Calculations!$E$2,'Prevalence Rates'!$C$3:$BC$249,'Prevalence Rates'!$BD67,FALSE) -> 0.3929 | H67: =HLOOKUP(Calculations!$E$2,'Population 2016'!$C$3:$BC$249,'Population 2016'!BD67,FALSE) -> 35038 | I67: 0 | J67: =HLOOKUP(Results!E$4,Targeting!$C$3:$F$249,Targeting!$G67,FALSE) -> 5398 | K67: =IF(AND(OR(Calculations!$E$2="Orkney Health Board",Calculations!$E$2="Orkney Islands Local Authority"),$F67=1),0,IF(AND(OR(Calculations!$E$2="Shetland Health Board",Calculations!$E$2="Western Isles Health Board",Calculations!$E$2="Shetland Islands Local Authority",Calculations!$E$2="Eilean Siar Local Authority"),OR($F67=1,$F67=5)),0,new_ci(VALUE(LEFT(Options!$B$24,2)),$C67,$E67,$F67,2016,$I67,1,$H67,$G67*$H67,Options!$B$8))) -> 57.72552212 | L67: =IF(AND(OR(Calculations!$E$2="Orkney Health Board",Calculations!$E$2="Orkney Islands Local Authority"),$F67=1),0,IF(AND(OR(Calculations!$E$2="Shetland Health Board",Calculations!$E$2="Western Isles Health Board",Calculations!$E$2="Shetland Islands Local Authority",Calculations!$E$2="Eilean Siar Local Authority"),OR($F67=1,$F67=5)),0,new_ci(VALUE(LEFT(Options!$B$24,2)),$C67,$E67,$F67,2016,$I67+$J67,1,$H67,$G67*$H67,Options!$B$8))) -> 57.49978316 | M67: =IF(AND(OR(Calculations!$E$2="Orkney Health Board",Calculations!$E$2="Orkney Islands Local Authority"),$F67=1),0,IF(AND(OR(Calculations!$E$2="Shetland Health Board",Calculations!$E$2="Western Isles Health Board",Calculations!$E$2="Shetland Islands Local Authority",Calculations!$E$2="Eilean Siar Local Authority"),OR($F67=1,$F67=5)),0,new_yllv2(VALUE(LEFT(Options!$B$24,2)),$C67,$D67,$E67,$F67,2016,$I67,1,$H67,$G67*$H67,Options!$B$8))) -> 2538.768578 | N67: =IF(AND(OR(Calculations!$E$2="Orkney Health Board",Calculations!$E$2="Orkney Islands Local Authority"),$F67=1),0,IF(AND(OR(Calculations!$E$2="Shetland Health Board",Calculations!$E$2="Western Isles Health Board",Calculations!$E$2="Shetland Islands Local Authority",Calculations!$E$2="Eilean Siar Local Authority"),OR($F67=1,$F67=5)),0,new_yllv2(VALUE(LEFT(Options!$B$24,2)),$C67,$D67,$E67,$F67,2016,$I67+$J67,1,$H67,$G67*$H67,Options!$B$8))) -> 2528.840578 | O67: =IF(AND(OR(Calculations!$E$2="Orkney Health Board",Calculations!$E$2="Orkney Islands Local Authority"),$F67=1),0,IF(AND(OR(Calculations!$E$2="Shetland Health Board",Calculations!$E$2="Western Isles Health Board",Calculations!$E$2="Shetland Islands Local Authority",Calculations!$E$2="Eilean Siar Local Authority"),OR($F67=1,$F67=5)),0,hosp_count(VALUE(LEFT(Options!$B$24,2)),$C67,$E67,$F67,2016,$I67,1,$H67,$G67*$H67, Options!$B$8))) -> 8125.285242 | P67: =IF(AND(OR(Calculations!$E$2="Orkney Health Board",Calculations!$E$2="Orkney Islands Local Authority"),$F67=1),0,IF(AND(OR(Calculations!$E$2="Shetland Health Board",Calculations!$E$2="Western Isles Health Board",Calculations!$E$2="Shetland Islands Local Authority",Calculations!$E$2="Eilean Siar Local Authority"),OR($F67=1,$F67=5)),0,hosp_count(VALUE(LEFT(Options!$B$24,2)),$C67,$E67,$F67,2016,$I67+$J67,1,$H67,$G67*$H67, Options!$B$8))) -> 8105.367747 | Q67: =IF(AND(OR(Calculations!$E$2="Orkney Health Board",Calculations!$E$2="Orkney Islands Local Authority"),$F67=1),0,IF(AND(OR(Calculations!$E$2="Shetland Health Board",Calculations!$E$2="Western Isles Health Board",Calculations!$E$2="Shetland Islands Local Authority",Calculations!$E$2="Eilean Siar Local Authority"),OR($F67=1,$F67=5)),0,prem_mort(VALUE(LEFT(Options!$B$24,2)),$C67,$E67,$F67,2016,$I67,1,$H67,$G67*$H67,Options!$B$8))) -> 57.72552212 | R67: =IF(AND(OR(Calculations!$E$2="Orkney Health Board",Calculations!$E$2="Orkney Islands Local Authority"),$F67=1),0,IF(AND(OR(Calculations!$E$2="Shetland Health Board",Calculations!$E$2="Western Isles Health Board",Calculations!$E$2="Shetland Islands Local Authority",Calculations!$E$2="Eilean Siar Local Authority"),OR($F67=1,$F67=5)),0,prem_mort(VALUE(LEFT(Options!$B$24,2)),$C67,$E67,$F67,2016,$I67+$J67,1,$H67,$G67*$H67,Options!$B$8))) -> 57.49978316 | S67: 164.7511905 | T67: 164.1069215 | U67: 7245.757687 | V67: 7217.422736 | W67: 23189.92306 | X67: 23133.07765 | Y67: 164.7511905 | Z67: 164.1069215 | AA67: 1153258.333 | AB67: 1148748.451 | AC67: 50720303.81 | AD67: 50521959.15 | AE67: 162329461.4 | AF67: 161931543.5 | AG67: 1153258.333 | AH67: 1148748.451 | AI67: 7000
B68: Female 40-44 | C68: 42.077438 | D68: 82.30744 | E68: female | F68: 1 | G68: =HLOOKUP(Calculations!$E$2,'Prevalence Rates'!$C$3:$BC$249,'Prevalence Rates'!$BD68,FALSE) -> 0.3929 | H68: =HLOOKUP(Calculations!$E$2,'Population 2016'!$C$3:$BC$249,'Population 2016'!BD68,FALSE) -> 33663 | I68: 0 | J68: =HLOOKUP(Results!E$4,Targeting!$C$3:$F$249,Targeting!$G68,FALSE) -> 5187 | K68: =IF(AND(OR(Calculations!$E$2="Orkney Health Board",Calculations!$E$2="Orkney Islands Local Authority"),$F68=1),0,IF(AND(OR(Calculations!$E$2="Shetland Health Board",Calculations!$E$2="Western Isles Health Board",Calculations!$E$2="Shetland Islands Local Authority",Calculations!$E$2="Eilean Siar Local Authority"),OR($F68=1,$F68=5)),0,new_ci(VALUE(LEFT(Options!$B$24,2)),$C68,$E68,$F68,2016,$I68,1,$H68,$G68*$H68,Options!$B$8))) -> 85.96961749 | L68: =IF(AND(OR(Calculations!$E$2="Orkney Health Board",Calculations!$E$2="Orkney Islands Local Authority"),$F68=1),0,IF(AND(OR(Calculations!$E$2="Shetland Health Board",Calculations!$E$2="Western Isles Health Board",Calculations!$E$2="Shetland Islands Local Authority",Calculations!$E$2="Eilean Siar Local Authority"),OR($F68=1,$F68=5)),0,new_ci(VALUE(LEFT(Options!$B$24,2)),$C68,$E68,$F68,2016,$I68+$J68,1,$H68,$G68*$H68,Options!$B$8))) -> 85.6336223 | M68: =IF(AND(OR(Calculations!$E$2="Orkney Health Board",Calculations!$E$2="Orkney Islands Local Authority"),$F68=1),0,IF(AND(OR(Calculations!$E$2="Shetland Health Board",Calculations!$E$2="Western Isles Health Board",Calculations!$E$2="Shetland Islands Local Authority",Calculations!$E$2="Eilean Siar Local Authority"),OR($F68=1,$F68=5)),0,new_yllv2(VALUE(LEFT(Options!$B$24,2)),$C68,$D68,$E68,$F68,2016,$I68,1,$H68,$G68*$H68,Options!$B$8))) -> 3372.588266 | N68: =IF(AND(OR(Calculations!$E$2="Orkney Health Board",Calculations!$E$2="Orkney Islands Local Authority"),$F68=1),0,IF(AND(OR(Calculations!$E$2="Shetland Health Board",Calculations!$E$2="Western Isles Health Board",Calculations!$E$2="Shetland Islands Local Authority",Calculations!$E$2="Eilean Siar Local Authority"),OR($F68=1,$F68=5)),0,new_yllv2(VALUE(LEFT(Options!$B$24,2)),$C68,$D68,$E68,$F68,2016,$I68+$J68,1,$H68,$G68*$H68,Options!$B$8))) -> 3359.407174 | O68: =IF(AND(OR(Calculations!$E$2="Orkney Health Board",Calculations!$E$2="Orkney Islands Local Authority"),$F68=1),0,IF(AND(OR(Calculations!$E$2="Shetland Health Board",Calculations!$E$2="Western Isles Health Board",Calculations!$E$2="Shetland Islands Local Authority",Calculations!$E$2="Eilean Siar Local Authority"),OR($F68=1,$F68=5)),0,hosp_count(VALUE(LEFT(Options!$B$24,2)),$C68,$E68,$F68,2016,$I68,1,$H68,$G68*$H68, Options!$B$8))) -> 8888.185251 | P68: =IF(AND(OR(Calculations!$E$2="Orkney Health Board",Calculations!$E$2="Orkney Islands Local Authority"),$F68=1),0,IF(AND(OR(Calculations!$E$2="Shetland Health Board",Calculations!$E$2="Western Isles Health Board",Calculations!$E$2="Shetland Islands Local Authority",Calculations!$E$2="Eilean Siar Local Authority"),OR($F68=1,$F68=5)),0,hosp_count(VALUE(LEFT(Options!$B$24,2)),$C68,$E68,$F68,2016,$I68+$J68,1,$H68,$G68*$H68, Options!$B$8))) -> 8866.394155 | Q68: =IF(AND(OR(Calculations!$E$2="Orkney Health Board",Calculations!$E$2="Orkney Islands Local Authority"),$F68=1),0,IF(AND(OR(Calculations!$E$2="Shetland Health Board",Calculations!$E$2="Western Isles Health Board",Calculations!$E$2="Shetland Islands Local Authority",Calculations!$E$2="Eilean Siar Local Authority"),OR($F68=1,$F68=5)),0,prem_mort(VALUE(LEFT(Options!$B$24,2)),$C68,$E68,$F68,2016,$I68,1,$H68,$G68*$H68,Options!$B$8))) -> 85.96961749 | R68: =IF(AND(OR(Calculations!$E$2="Orkney Health Board",Calculations!$E$2="Orkney Islands Local Authority"),$F68=1),0,IF(AND(OR(Calculations!$E$2="Shetland Health Board",Calculations!$E$2="Western Isles Health Board",Calculations!$E$2="Shetland Islands Local Authority",Calculations!$E$2="Eilean Siar Local Authority"),OR($F68=1,$F68=5)),0,prem_mort(VALUE(LEFT(Options!$B$24,2)),$C68,$E68,$F68,2016,$I68+$J68,1,$H68,$G68*$H68,Options!$B$8))) -> 85.6336223 | S68: 255.3831135 | T68: 254.3849993 | U68: 10018.68005 | V68: 9979.52403 | W68: 26403.42587 | X68: 26338.69279 | Y68: 255.3831135 | Z68: 254.3849993 | AA68: 1787681.794 | AB68: 1780694.995 | AC68: 70130760.37 | AD68: 69856668.21 | AE68: 184823981.1 | AF68: 184370849.6 | AG68: 1787681.794 | AH68: 1780694.995 | AI68: 7000
B69: Female 45-49 | C69: 47.025772 | D69: 82.58577 | E69: female | F69: 1 | G69: =HLOOKUP(Calculations!$E$2,'Prevalence Rates'!$C$3:$BC$249,'Prevalence Rates'!$BD69,FALSE) -> 0.4315 | H69: =HLOOKUP(Calculations!$E$2,'Population 2016'!$C$3:$BC$249,'Population 2016'!BD69,FALSE) -> 39197 | I69: 0 | J69: =HLOOKUP(Results!E$4,Targeting!$C$3:$F$249,Targeting!$G69,FALSE) -> 6039 | K69: =IF(AND(OR(Calculations!$E$2="Orkney Health Board",Calculations!$E$2="Orkney Islands Local Authority"),$F69=1),0,IF(AND(OR(Calculations!$E$2="Shetland Health Board",Calculations!$E$2="Western Isles Health Board",Calculations!$E$2="Shetland Islands Local Authority",Calculations!$E$2="Eilean Siar Local Authority"),OR($F69=1,$F69=5)),0,new_ci(VALUE(LEFT(Options!$B$24,2)),$C69,$E69,$F69,2016,$I69,1,$H69,$G69*$H69,Options!$B$8))) -> 152.375444 | L69: =IF(AND(OR(Calculations!$E$2="Orkney Health Board",Calculations!$E$2="Orkney Islands Local Authority"),$F69=1),0,IF(AND(OR(Calculations!$E$2="Shetland Health Board",Calculations!$E$2="Western Isles Health Board",Calculations!$E$2="Shetland Islands Local Authority",Calculations!$E$2="Eilean Siar Local Authority"),OR($F69=1,$F69=5)),0,new_ci(VALUE(LEFT(Options!$B$24,2)),$C69,$E69,$F69,2016,$I69+$J69,1,$H69,$G69*$H69,Options!$B$8))) -> 151.794218 | M69: =IF(AND(OR(Calculations!$E$2="Orkney Health Board",Calculations!$E$2="Orkney Islands Local Authority"),$F69=1),0,IF(AND(OR(Calculations!$E$2="Shetland Health Board",Calculations!$E$2="Western Isles Health Board",Calculations!$E$2="Shetland Islands Local Authority",Calculations!$E$2="Eilean Siar Local Authority"),OR($F69=1,$F69=5)),0,new_yllv2(VALUE(LEFT(Options!$B$24,2)),$C69,$D69,$E69,$F69,2016,$I69,1,$H69,$G69*$H69,Options!$B$8))) -> 5266.09504 | N69: =IF(AND(OR(Calculations!$E$2="Orkney Health Board",Calculations!$E$2="Orkney Islands Local Authority"),$F69=1),0,IF(AND(OR(Calculations!$E$2="Shetland Health Board",Calculations!$E$2="Western Isles Health Board",Calculations!$E$2="Shetland Islands Local Authority",Calculations!$E$2="Eilean Siar Local Authority"),OR($F69=1,$F69=5)),0,new_yllv2(VALUE(LEFT(Options!$B$24,2)),$C69,$D69,$E69,$F69,2016,$I69+$J69,1,$H69,$G69*$H69,Options!$B$8))) -> 5246.007872 | O69: =IF(AND(OR(Calculations!$E$2="Orkney Health Board",Calculations!$E$2="Orkney Islands Local Authority"),$F69=1),0,IF(AND(OR(Calculations!$E$2="Shetland Health Board",Calculations!$E$2="Western Isles Health Board",Calculations!$E$2="Shetland Islands Local Authority",Calculations!$E$2="Eilean Siar Local Authority"),OR($F69=1,$F69=5)),0,hosp_count(VALUE(LEFT(Options!$B$24,2)),$C69,$E69,$F69,2016,$I69,1,$H69,$G69*$H69, Options!$B$8))) -> 11721.12367 | P69: =IF(AND(OR(Calculations!$E$2="Orkney Health Board",Calculations!$E$2="Orkney Islands Local Authority"),$F69=1),0,IF(AND(OR(Calculations!$E$2="Shetland Health Board",Calculations!$E$2="Western Isles Health Board",Calculations!$E$2="Shetland Islands Local Authority",Calculations!$E$2="Eilean Siar Local Authority"),OR($F69=1,$F69=5)),0,hosp_count(VALUE(LEFT(Options!$B$24,2)),$C69,$E69,$F69,2016,$I69+$J69,1,$H69,$G69*$H69, Options!$B$8))) -> 11692.88348 | Q69: =IF(AND(OR(Calculations!$E$2="Orkney Health Board",Calculations!$E$2="Orkney Islands Local Authority"),$F69=1),0,IF(AND(OR(Calculations!$E$2="Shetland Health Board",Calculations!$E$2="Western Isles Health Board",Calculations!$E$2="Shetland Islands Local Authority",Calculations!$E$2="Eilean Siar Local Authority"),OR($F69=1,$F69=5)),0,prem_mort(VALUE(LEFT(Options!$B$24,2)),$C69,$E69,$F69,2016,$I69,1,$H69,$G69*$H69,Options!$B$8))) -> 152.375444 | R69: =IF(AND(OR(Calculations!$E$2="Orkney Health Board",Calculations!$E$2="Orkney Islands Local Authority"),$F69=1),0,IF(AND(OR(Calculations!$E$2="Shetland Health Board",Calculations!$E$2="Western Isles Health Board",Calculations!$E$2="Shetland Islands Local Authority",Calculations!$E$2="Eilean Siar Local Authority"),OR($F69=1,$F69=5)),0,prem_mort(VALUE(LEFT(Options!$B$24,2)),$C69,$E69,$F69,2016,$I69+$J69,1,$H69,$G69*$H69,Options!$B$8))) -> 151.794218 | S69: 388.7426181 | T69: 387.2597853 | U69: 13434.9441 | V69: 13383.6974 | W69: 29903.1142 | X69: 29831.06737 | Y69: 388.7426181 | Z69: 387.2597853 | AA69: 2721198.327 | AB69: 2710818.497 | AC69: 94044608.72 | AD69: 93685881.83 | AE69: 209321799.4 | AF69: 208817471.6 | AG69: 2721198.327 | AH69: 2710818.497 | AI69: 7000
B70: Female 50-54 | C70: 51.990826 | D70: 82.98083 | E70: female | F70: 1 | G70: =HLOOKUP(Calculations!$E$2,'Prevalence Rates'!$C$3:$BC$249,'Prevalence Rates'!$BD70,FALSE) -> 0.4315 | H70: =HLOOKUP(Calculations!$E$2,'Population 2016'!$C$3:$BC$249,'Population 2016'!BD70,FALSE) -> 39704 | I70: 0 | J70: =HLOOKUP(Results!E$4,Targeting!$C$3:$F$249,Targeting!$G70,FALSE) -> 6117 | K70: =IF(AND(OR(Calculations!$E$2="Orkney Health Board",Calculations!$E$2="Orkney Islands Local Authority"),$F70=1),0,IF(AND(OR(Calculations!$E$2="Shetland Health Board",Calculations!$E$2="Western Isles Health Board",Calculations!$E$2="Shetland Islands Local Authority",Calculations!$E$2="Eilean Siar Local Authority"),OR($F70=1,$F70=5)),0,new_ci(VALUE(LEFT(Options!$B$24,2)),$C70,$E70,$F70,2016,$I70,1,$H70,$G70*$H70,Options!$B$8))) -> 235.1885546 | L70: =IF(AND(OR(Calculations!$E$2="Orkney Health Board",Calculations!$E$2="Orkney Islands Local Authority"),$F70=1),0,IF(AND(OR(Calculations!$E$2="Shetland Health Board",Calculations!$E$2="Western Isles Health Board",Calculations!$E$2="Shetland Islands Local Authority",Calculations!$E$2="Eilean Siar Local Authority"),OR($F70=1,$F70=5)),0,new_ci(VALUE(LEFT(Options!$B$24,2)),$C70,$E70,$F70,2016,$I70+$J70,1,$H70,$G70*$H70,Options!$B$8))) -> 234.2928968 | M70: =IF(AND(OR(Calculations!$E$2="Orkney Health Board",Calculations!$E$2="Orkney Islands Local Authority"),$F70=1),0,IF(AND(OR(Calculations!$E$2="Shetland Health Board",Calculations!$E$2="Western Isles Health Board",Calculations!$E$2="Shetland Islands Local Authority",Calculations!$E$2="Eilean Siar Local Authority"),OR($F70=1,$F70=5)),0,new_yllv2(VALUE(LEFT(Options!$B$24,2)),$C70,$D70,$E70,$F70,2016,$I70,1,$H70,$G70*$H70,Options!$B$8))) -> 7053.305694 | N70: =IF(AND(OR(Calculations!$E$2="Orkney Health Board",Calculations!$E$2="Orkney Islands Local Authority"),$F70=1),0,IF(AND(OR(Calculations!$E$2="Shetland Health Board",Calculations!$E$2="Western Isles Health Board",Calculations!$E$2="Shetland Islands Local Authority",Calculations!$E$2="Eilean Siar Local Authority"),OR($F70=1,$F70=5)),0,new_yllv2(VALUE(LEFT(Options!$B$24,2)),$C70,$D70,$E70,$F70,2016,$I70+$J70,1,$H70,$G70*$H70,Options!$B$8))) -> 7026.444911 | O70: =IF(AND(OR(Calculations!$E$2="Orkney Health Board",Calculations!$E$2="Orkney Islands Local Authority"),$F70=1),0,IF(AND(OR(Calculations!$E$2="Shetland Health Board",Calculations!$E$2="Western Isles Health Board",Calculations!$E$2="Shetland Islands Local Authority",Calculations!$E$2="Eilean Siar Local Authority"),OR($F70=1,$F70=5)),0,hosp_count(VALUE(LEFT(Options!$B$24,2)),$C70,$E70,$F70,2016,$I70,1,$H70,$G70*$H70, Options!$B$8))) -> 13452.08093 | P70: =IF(AND(OR(Calculations!$E$2="Orkney Health Board",Calculations!$E$2="Orkney Islands Local Authority"),$F70=1),0,IF(AND(OR(Calculations!$E$2="Shetland Health Board",Calculations!$E$2="Western Isles Health Board",Calculations!$E$2="Shetland Islands Local Authority",Calculations!$E$2="Eilean Siar Local Authority"),OR($F70=1,$F70=5)),0,hosp_count(VALUE(LEFT(Options!$B$24,2)),$C70,$E70,$F70,2016,$I70+$J70,1,$H70,$G70*$H70, Options!$B$8))) -> 13419.67087 | Q70: =IF(AND(OR(Calculations!$E$2="Orkney Health Board",Calculations!$E$2="Orkney Islands Local Authority"),$F70=1),0,IF(AND(OR(Calculations!$E$2="Shetland Health Board",Calculations!$E$2="Western Isles Health Board",Calculations!$E$2="Shetland Islands Local Authority",Calculations!$E$2="Eilean Siar Local Authority"),OR($F70=1,$F70=5)),0,prem_mort(VALUE(LEFT(Options!$B$24,2)),$C70,$E70,$F70,2016,$I70,1,$H70,$G70*$H70,Options!$B$8))) -> 235.1885546 | R70: =IF(AND(OR(Calculations!$E$2="Orkney Health Board",Calculations!$E$2="Orkney Islands Local Authority"),$F70=1),0,IF(AND(OR(Calculations!$E$2="Shetland Health Board",Calculations!$E$2="Western Isles Health Board",Calculations!$E$2="Shetland Islands Local Authority",Calculations!$E$2="Eilean Siar Local Authority"),OR($F70=1,$F70=5)),0,prem_mort(VALUE(LEFT(Options!$B$24,2)),$C70,$E70,$F70,2016,$I70+$J70,1,$H70,$G70*$H70,Options!$B$8))) -> 234.2928968 | S70: 592.3548122 | T70: 590.0989743 | U70: 17764.72319 | V70: 17697.0706 | W70: 33880.92115 | X70: 33799.29192 | Y70: 592.3548122 | Z70: 590.0989743 | AA70: 4146483.685 | AB70: 4130692.82 | AC70: 124353062.3 | AD70: 123879494.2 | AE70: 237166448.1 | AF70: 236595043.5 | AG70: 4146483.685 | AH70: 4130692.82 | AI70: 7000
B71: Female 55-59 | C71: 56.953041 | D71: 83.47304 | E71: female | F71: 1 | G71: =HLOOKUP(Calculations!$E$2,'Prevalence Rates'!$C$3:$BC$249,'Prevalence Rates'!$BD71,FALSE) -> 0.3953 | H71: =HLOOKUP(Calculations!$E$2,'Population 2016'!$C$3:$BC$249,'Population 2016'!BD71,FALSE) -> 35528 | I71: 0 | J71: =HLOOKUP(Results!E$4,Targeting!$C$3:$F$249,Targeting!$G71,FALSE) -> 5474 | K71: =IF(AND(OR(Calculations!$E$2="Orkney Health Board",Calculations!$E$2="Orkney Islands Local Authority"),$F71=1),0,IF(AND(OR(Calculations!$E$2="Shetland Health Board",Calculations!$E$2="Western Isles Health Board",Calculations!$E$2="Shetland Islands Local Authority",Calculations!$E$2="Eilean Siar Local Authority"),OR($F71=1,$F71=5)),0,new_ci(VALUE(LEFT(Options!$B$24,2)),$C71,$E71,$F71,2016,$I71,1,$H71,$G71*$H71,Options!$B$8))) -> 320.4143705 | L71: =IF(AND(OR(Calculations!$E$2="Orkney Health Board",Calculations!$E$2="Orkney Islands Local Authority"),$F71=1),0,IF(AND(OR(Calculations!$E$2="Shetland Health Board",Calculations!$E$2="Western Isles Health Board",Calculations!$E$2="Shetland Islands Local Authority",Calculations!$E$2="Eilean Siar Local Authority"),OR($F71=1,$F71=5)),0,new_ci(VALUE(LEFT(Options!$B$24,2)),$C71,$E71,$F71,2016,$I71+$J71,1,$H71,$G71*$H71,Options!$B$8))) -> 319.170583 | M71: =IF(AND(OR(Calculations!$E$2="Orkney Health Board",Calculations!$E$2="Orkney Islands Local Authority"),$F71=1),0,IF(AND(OR(Calculations!$E$2="Shetland Health Board",Calculations!$E$2="Western Isles Health Board",Calculations!$E$2="Shetland Islands Local Authority",Calculations!$E$2="Eilean Siar Local Authority"),OR($F71=1,$F71=5)),0,new_yllv2(VALUE(LEFT(Options!$B$24,2)),$C71,$D71,$E71,$F71,2016,$I71,1,$H71,$G71*$H71,Options!$B$8))) -> 8176.974415 | N71: =IF(AND(OR(Calculations!$E$2="Orkney Health Board",Calculations!$E$2="Orkney Islands Local Authority"),$F71=1),0,IF(AND(OR(Calculations!$E$2="Shetland Health Board",Calculations!$E$2="Western Isles Health Board",Calculations!$E$2="Shetland Islands Local Authority",Calculations!$E$2="Eilean Siar Local Authority"),OR($F71=1,$F71=5)),0,new_yllv2(VALUE(LEFT(Options!$B$24,2)),$C71,$D71,$E71,$F71,2016,$I71+$J71,1,$H71,$G71*$H71,Options!$B$8))) -> 8145.23296 | O71: =IF(AND(OR(Calculations!$E$2="Orkney Health Board",Calculations!$E$2="Orkney Islands Local Authority"),$F71=1),0,IF(AND(OR(Calculations!$E$2="Shetland Health Board",Calculations!$E$2="Western Isles Health Board",Calculations!$E$2="Shetland Islands Local Authority",Calculations!$E$2="Eilean Siar Local Authority"),OR($F71=1,$F71=5)),0,hosp_count(VALUE(LEFT(Options!$B$24,2)),$C71,$E71,$F71,2016,$I71,1,$H71,$G71*$H71, Options!$B$8))) -> 13637.46804 | P71: =IF(AND(OR(Calculations!$E$2="Orkney Health Board",Calculations!$E$2="Orkney Islands Local Authority"),$F71=1),0,IF(AND(OR(Calculations!$E$2="Shetland Health Board",Calculations!$E$2="Western Isles Health Board",Calculations!$E$2="Shetland Islands Local Authority",Calculations!$E$2="Eilean Siar Local Authority"),OR($F71=1,$F71=5)),0,hosp_count(VALUE(LEFT(Options!$B$24,2)),$C71,$E71,$F71,2016,$I71+$J71,1,$H71,$G71*$H71, Options!$B$8))) -> 13604.07168 | Q71: =IF(AND(OR(Calculations!$E$2="Orkney Health Board",Calculations!$E$2="Orkney Islands Local Authority"),$F71=1),0,IF(AND(OR(Calculations!$E$2="Shetland Health Board",Calculations!$E$2="Western Isles Health Board",Calculations!$E$2="Shetland Islands Local Authority",Calculations!$E$2="Eilean Siar Local Authority"),OR($F71=1,$F71=5)),0,prem_mort(VALUE(LEFT(Options!$B$24,2)),$C71,$E71,$F71,2016,$I71,1,$H71,$G71*$H71,Options!$B$8))) -> 320.4143705 | R71: =IF(AND(OR(Calculations!$E$2="Orkney Health Board",Calculations!$E$2="Orkney Islands Local Authority"),$F71=1),0,IF(AND(OR(Calculations!$E$2="Shetland Health Board",Calculations!$E$2="Western Isles Health Board",Calculations!$E$2="Shetland Islands Local Authority",Calculations!$E$2="Eilean Siar Local Authority"),OR($F71=1,$F71=5)),0,prem_mort(VALUE(LEFT(Options!$B$24,2)),$C71,$E71,$F71,2016,$I71+$J71,1,$H71,$G71*$H71,Options!$B$8))) -> 319.170583 | S71: 901.864362 | T71: 898.3634965 | U71: 23015.57762 | V71: 22926.23553 | W71: 38385.12735 | X71: 38291.12723 | Y71: 901.864362 | Z71: 898.3634965 | AA71: 5862118.353 | AB71: 5839362.727 | AC71: 149601254.5 | AD71: 149020531 | AE71: 249503327.8 | AF71: 248892327 | AG71: 5862118.353 | AH71: 5839362.727 | AI71: 6500
B72: Female 60-64 | C72: 61.947388 | D72: 84.16739 | E72: female | F72: 1 | G72: =HLOOKUP(Calculations!$E$2,'Prevalence Rates'!$C$3:$BC$249,'Prevalence Rates'!$BD72,FALSE) -> 0.3953 | H72: =HLOOKUP(Calculations!$E$2,'Population 2016'!$C$3:$BC$249,'Population 2016'!BD72,FALSE) -> 29212 | I72: 0 | J72: =HLOOKUP(Results!E$4,Targeting!$C$3:$F$249,Targeting!$G72,FALSE) -> 4501 | K72: =IF(AND(OR(Calculations!$E$2="Orkney Health Board",Calculations!$E$2="Orkney Islands Local Authority"),$F72=1),0,IF(AND(OR(Calculations!$E$2="Shetland Health Board",Calculations!$E$2="Western Isles Health Board",Calculations!$E$2="Shetland Islands Local Authority",Calculations!$E$2="Eilean Siar Local Authority"),OR($F72=1,$F72=5)),0,new_ci(VALUE(LEFT(Options!$B$24,2)),$C72,$E72,$F72,2016,$I72,1,$H72,$G72*$H72,Options!$B$8))) -> 401.8429115 | L72: =IF(AND(OR(Calculations!$E$2="Orkney Health Board",Calculations!$E$2="Orkney Islands Local Authority"),$F72=1),0,IF(AND(OR(Calculations!$E$2="Shetland Health Board",Calculations!$E$2="Western Isles Health Board",Calculations!$E$2="Shetland Islands Local Authority",Calculations!$E$2="Eilean Siar Local Authority"),OR($F72=1,$F72=5)),0,new_ci(VALUE(LEFT(Options!$B$24,2)),$C72,$E72,$F72,2016,$I72+$J72,1,$H72,$G72*$H72,Options!$B$8))) -> 400.2890506 | M72: =IF(AND(OR(Calculations!$E$2="Orkney Health Board",Calculations!$E$2="Orkney Islands Local Authority"),$F72=1),0,IF(AND(OR(Calculations!$E$2="Shetland Health Board",Calculations!$E$2="Western Isles Health Board",Calculations!$E$2="Shetland Islands Local Authority",Calculations!$E$2="Eilean Siar Local Authority"),OR($F72=1,$F72=5)),0,new_yllv2(VALUE(LEFT(Options!$B$24,2)),$C72,$D72,$E72,$F72,2016,$I72,1,$H72,$G72*$H72,Options!$B$8))) -> 8527.107386 | N72: =IF(AND(OR(Calculations!$E$2="Orkney Health Board",Calculations!$E$2="Orkney Islands Local Authority"),$F72=1),0,IF(AND(OR(Calculations!$E$2="Shetland Health Board",Calculations!$E$2="Western Isles Health Board",Calculations!$E$2="Shetland Islands Local Authority",Calculations!$E$2="Eilean Siar Local Authority"),OR($F72=1,$F72=5)),0,new_yllv2(VALUE(LEFT(Options!$B$24,2)),$C72,$D72,$E72,$F72,2016,$I72+$J72,1,$H72,$G72*$H72,Options!$B$8))) -> 8494.134455 | O72: =IF(AND(OR(Calculations!$E$2="Orkney Health Board",Calculations!$E$2="Orkney Islands Local Authority"),$F72=1),0,IF(AND(OR(Calculations!$E$2="Shetland Health Board",Calculations!$E$2="Western Isles Health Board",Calculations!$E$2="Shetland Islands Local Authority",Calculations!$E$2="Eilean Siar Local Authority"),OR($F72=1,$F72=5)),0,hosp_count(VALUE(LEFT(Options!$B$24,2)),$C72,$E72,$F72,2016,$I72,1,$H72,$G72*$H72, Options!$B$8))) -> 12714.02519 | P72: =IF(AND(OR(Calculations!$E$2="Orkney Health Board",Calculations!$E$2="Orkney Islands Local Authority"),$F72=1),0,IF(AND(OR(Calculations!$E$2="Shetland Health Board",Calculations!$E$2="Western Isles Health Board",Calculations!$E$2="Shetland Islands Local Authority",Calculations!$E$2="Eilean Siar Local Authority"),OR($F72=1,$F72=5)),0,hosp_count(VALUE(LEFT(Options!$B$24,2)),$C72,$E72,$F72,2016,$I72+$J72,1,$H72,$G72*$H72, Options!$B$8))) -> 12682.88924 | Q72: =IF(AND(OR(Calculations!$E$2="Orkney Health Board",Calculations!$E$2="Orkney Islands Local Authority"),$F72=1),0,IF(AND(OR(Calculations!$E$2="Shetland Health Board",Calculations!$E$2="Western Isles Health Board",Calculations!$E$2="Shetland Islands Local Authority",Calculations!$E$2="Eilean Siar Local Authority"),OR($F72=1,$F72=5)),0,prem_mort(VALUE(LEFT(Options!$B$24,2)),$C72,$E72,$F72,2016,$I72,1,$H72,$G72*$H72,Options!$B$8))) -> 401.8429115 | R72: =IF(AND(OR(Calculations!$E$2="Orkney Health Board",Calculations!$E$2="Orkney Islands Local Authority"),$F72=1),0,IF(AND(OR(Calculations!$E$2="Shetland Health Board",Calculations!$E$2="Western Isles Health Board",Calculations!$E$2="Shetland Islands Local Authority",Calculations!$E$2="Eilean Siar Local Authority"),OR($F72=1,$F72=5)),0,prem_mort(VALUE(LEFT(Options!$B$24,2)),$C72,$E72,$F72,2016,$I72+$J72,1,$H72,$G72*$H72,Options!$B$8))) -> 400.2890506 | S72: 1375.609036 | T72: 1370.28978 | U72: 29190.42649 | V72: 29077.55188 | W72: 43523.29587 | X72: 43416.70969 | Y72: 1375.609036 | Z72: 1370.28978 | AA72: 8253654.214 | AB72: 8221738.682 | AC72: 175142558.9 | AD72: 174465311.3 | AE72: 261139775.2 | AF72: 260500258.2 | AG72: 8253654.214 | AH72: 8221738.682 | AI72: 6000
B73: Female 65-69 | C73: 67.063927 | D73: 85.19393 | E73: female | F73: 1 | G73: =HLOOKUP(Calculations!$E$2,'Prevalence Rates'!$C$3:$BC$249,'Prevalence Rates'!$BD73,FALSE) -> 0.2737 | H73: =HLOOKUP(Calculations!$E$2,'Population 2016'!$C$3:$BC$249,'Population 2016'!BD73,FALSE) -> 27762 | I73: 0 | J73: =HLOOKUP(Results!E$4,Targeting!$C$3:$F$249,Targeting!$G73,FALSE) -> 4277 | K73: =IF(AND(OR(Calculations!$E$2="Orkney Health Board",Calculations!$E$2="Orkney Islands Local Authority"),$F73=1),0,IF(AND(OR(Calculations!$E$2="Shetland Health Board",Calculations!$E$2="Western Isles Health Board",Calculations!$E$2="Shetland Islands Local Authority",Calculations!$E$2="Eilean Siar Local Authority"),OR($F73=1,$F73=5)),0,new_ci(VALUE(LEFT(Options!$B$24,2)),$C73,$E73,$F73,2016,$I73,1,$H73,$G73*$H73,Options!$B$8))) -> 587.7302621 | L73: =IF(AND(OR(Calculations!$E$2="Orkney Health Board",Calculations!$E$2="Orkney Islands Local Authority"),$F73=1),0,IF(AND(OR(Calculations!$E$2="Shetland Health Board",Calculations!$E$2="Western Isles Health Board",Calculations!$E$2="Shetland Islands Local Authority",Calculations!$E$2="Eilean Siar Local Authority"),OR($F73=1,$F73=5)),0,new_ci(VALUE(LEFT(Options!$B$24,2)),$C73,$E73,$F73,2016,$I73+$J73,1,$H73,$G73*$H73,Options!$B$8))) -> 585.2973099 | M73: =IF(AND(OR(Calculations!$E$2="Orkney Health Board",Calculations!$E$2="Orkney Islands Local Authority"),$F73=1),0,IF(AND(OR(Calculations!$E$2="Shetland Health Board",Calculations!$E$2="Western Isles Health Board",Calculations!$E$2="Shetland Islands Local Authority",Calculations!$E$2="Eilean Siar Local Authority"),OR($F73=1,$F73=5)),0,new_yllv2(VALUE(LEFT(Options!$B$24,2)),$C73,$D73,$E73,$F73,2016,$I73,1,$H73,$G73*$H73,Options!$B$8))) -> 10067.82115 | N73: =IF(AND(OR(Calculations!$E$2="Orkney Health Board",Calculations!$E$2="Orkney Islands Local Authority"),$F73=1),0,IF(AND(OR(Calculations!$E$2="Shetland Health Board",Calculations!$E$2="Western Isles Health Board",Calculations!$E$2="Shetland Islands Local Authority",Calculations!$E$2="Eilean Siar Local Authority"),OR($F73=1,$F73=5)),0,new_yllv2(VALUE(LEFT(Options!$B$24,2)),$C73,$D73,$E73,$F73,2016,$I73+$J73,1,$H73,$G73*$H73,Options!$B$8))) -> 10026.14467 | O73: =IF(AND(OR(Calculations!$E$2="Orkney Health Board",Calculations!$E$2="Orkney Islands Local Authority"),$F73=1),0,IF(AND(OR(Calculations!$E$2="Shetland Health Board",Calculations!$E$2="Western Isles Health Board",Calculations!$E$2="Shetland Islands Local Authority",Calculations!$E$2="Eilean Siar Local Authority"),OR($F73=1,$F73=5)),0,hosp_count(VALUE(LEFT(Options!$B$24,2)),$C73,$E73,$F73,2016,$I73,1,$H73,$G73*$H73, Options!$B$8))) -> 13742.51292 | P73: =IF(AND(OR(Calculations!$E$2="Orkney Health Board",Calculations!$E$2="Orkney Islands Local Authority"),$F73=1),0,IF(AND(OR(Calculations!$E$2="Shetland Health Board",Calculations!$E$2="Western Isles Health Board",Calculations!$E$2="Shetland Islands Local Authority",Calculations!$E$2="Eilean Siar Local Authority"),OR($F73=1,$F73=5)),0,hosp_count(VALUE(LEFT(Options!$B$24,2)),$C73,$E73,$F73,2016,$I73+$J73,1,$H73,$G73*$H73, Options!$B$8))) -> 13706.90679 | Q73: =IF(AND(OR(Calculations!$E$2="Orkney Health Board",Calculations!$E$2="Orkney Islands Local Authority"),$F73=1),0,IF(AND(OR(Calculations!$E$2="Shetland Health Board",Calculations!$E$2="Western Isles Health Board",Calculations!$E$2="Shetland Islands Local Authority",Calculations!$E$2="Eilean Siar Local Authority"),OR($F73=1,$F73=5)),0,prem_mort(VALUE(LEFT(Options!$B$24,2)),$C73,$E73,$F73,2016,$I73,1,$H73,$G73*$H73,Options!$B$8))) -> 587.7302621 | R73: =IF(AND(OR(Calculations!$E$2="Orkney Health Board",Calculations!$E$2="Orkney Islands Local Authority"),$F73=1),0,IF(AND(OR(Calculations!$E$2="Shetland Health Board",Calculations!$E$2="Western Isles Health Board",Calculations!$E$2="Shetland Islands Local Authority",Calculations!$E$2="Eilean Siar Local Authority"),OR($F73=1,$F73=5)),0,prem_mort(VALUE(LEFT(Options!$B$24,2)),$C73,$E73,$F73,2016,$I73+$J73,1,$H73,$G73*$H73,Options!$B$8))) -> 585.2973099 | S73: 2117.031417 | T73: 2108.267812 | U73: 36264.75453 | V73: 36114.63394 | W73: 49501.16318 | X73: 49372.90824 | Y73: 2117.031417 | Z73: 2108.267812 | AA73: 11643672.8 | AB73: 11595472.96 | AC73: 199456149.9 | AD73: 198630486.7 | AE73: 272256397.5 | AF73: 271550995.3 | AG73: 11643672.8 | AH73: 11595472.96 | AI73: 5500
B74: Female 70-74 | C74: 71.938164 | D74: 86.24816 | E74: female | F74: 1 | G74: =HLOOKUP(Calculations!$E$2,'Prevalence Rates'!$C$3:$BC$249,'Prevalence Rates'!$BD74,FALSE) -> 0.2737 | H74: =HLOOKUP(Calculations!$E$2,'Population 2016'!$C$3:$BC$249,'Population 2016'!BD74,FALSE) -> 21786 | I74: 0 | J74: =HLOOKUP(Results!E$4,Targeting!$C$3:$F$249,Targeting!$G74,FALSE) -> 3357 | K74: =IF(AND(OR(Calculations!$E$2="Orkney Health Board",Calculations!$E$2="Orkney Islands Local Authority"),$F74=1),0,IF(AND(OR(Calculations!$E$2="Shetland Health Board",Calculations!$E$2="Western Isles Health Board",Calculations!$E$2="Shetland Islands Local Authority",Calculations!$E$2="Eilean Siar Local Authority"),OR($F74=1,$F74=5)),0,new_ci(VALUE(LEFT(Options!$B$24,2)),$C74,$E74,$F74,2016,$I74,1,$H74,$G74*$H74,Options!$B$8))) -> 694.0259278 | L74: =IF(AND(OR(Calculations!$E$2="Orkney Health Board",Calculations!$E$2="Orkney Islands Local Authority"),$F74=1),0,IF(AND(OR(Calculations!$E$2="Shetland Health Board",Calculations!$E$2="Western Isles Health Board",Calculations!$E$2="Shetland Islands Local Authority",Calculations!$E$2="Eilean Siar Local Authority"),OR($F74=1,$F74=5)),0,new_ci(VALUE(LEFT(Options!$B$24,2)),$C74,$E74,$F74,2016,$I74+$J74,1,$H74,$G74*$H74,Options!$B$8))) -> 691.1814487 | M74: =IF(AND(OR(Calculations!$E$2="Orkney Health Board",Calculations!$E$2="Orkney Islands Local Authority"),$F74=1),0,IF(AND(OR(Calculations!$E$2="Shetland Health Board",Calculations!$E$2="Western Isles Health Board",Calculations!$E$2="Shetland Islands Local Authority",Calculations!$E$2="Eilean Siar Local Authority"),OR($F74=1,$F74=5)),0,new_yllv2(VALUE(LEFT(Options!$B$24,2)),$C74,$D74,$E74,$F74,2016,$I74,1,$H74,$G74*$H74,Options!$B$8))) -> 9237.482323 | N74: =IF(AND(OR(Calculations!$E$2="Orkney Health Board",Calculations!$E$2="Orkney Islands Local Authority"),$F74=1),0,IF(AND(OR(Calculations!$E$2="Shetland Health Board",Calculations!$E$2="Western Isles Health Board",Calculations!$E$2="Shetland Islands Local Authority",Calculations!$E$2="Eilean Siar Local Authority"),OR($F74=1,$F74=5)),0,new_yllv2(VALUE(LEFT(Options!$B$24,2)),$C74,$D74,$E74,$F74,2016,$I74+$J74,1,$H74,$G74*$H74,Options!$B$8))) -> 9199.622318 | O74: =IF(AND(OR(Calculations!$E$2="Orkney Health Board",Calculations!$E$2="Orkney Islands Local Authority"),$F74=1),0,IF(AND(OR(Calculations!$E$2="Shetland Health Board",Calculations!$E$2="Western Isles Health Board",Calculations!$E$2="Shetland Islands Local Authority",Calculations!$E$2="Eilean Siar Local Authority"),OR($F74=1,$F74=5)),0,hosp_count(VALUE(LEFT(Options!$B$24,2)),$C74,$E74,$F74,2016,$I74,1,$H74,$G74*$H74, Options!$B$8))) -> 12191.0075 | P74: =IF(AND(OR(Calculations!$E$2="Orkney Health Board",Calculations!$E$2="Orkney Islands Local Authority"),$F74=1),0,IF(AND(OR(Calculations!$E$2="Shetland Health Board",Calculations!$E$2="Western Isles Health Board",Calculations!$E$2="Shetland Islands Local Authority",Calculations!$E$2="Eilean Siar Local Authority"),OR($F74=1,$F74=5)),0,hosp_count(VALUE(LEFT(Options!$B$24,2)),$C74,$E74,$F74,2016,$I74+$J74,1,$H74,$G74*$H74, Options!$B$8))) -> 12159.41503 | Q74: =IF(AND(OR(Calculations!$E$2="Orkney Health Board",Calculations!$E$2="Orkney Islands Local Authority"),$F74=1),0,IF(AND(OR(Calculations!$E$2="Shetland Health Board",Calculations!$E$2="Western Isles Health Board",Calculations!$E$2="Shetland Islands Local Authority",Calculations!$E$2="Eilean Siar Local Authority"),OR($F74=1,$F74=5)),0,prem_mort(VALUE(LEFT(Options!$B$24,2)),$C74,$E74,$F74,2016,$I74,1,$H74,$G74*$H74,Options!$B$8))) -> 694.0259278 | R74: =IF(AND(OR(Calculations!$E$2="Orkney Health Board",Calculations!$E$2="Orkney Islands Local Authority"),$F74=1),0,IF(AND(OR(Calculations!$E$2="Shetland Health Board",Calculations!$E$2="Western Isles Health Board",Calculations!$E$2="Shetland Islands Local Authority",Calculations!$E$2="Eilean Siar Local Authority"),OR($F74=1,$F74=5)),0,prem_mort(VALUE(LEFT(Options!$B$24,2)),$C74,$E74,$F74,2016,$I74+$J74,1,$H74,$G74*$H74,Options!$B$8))) -> 691.1814487 | S74: 3185.651004 | T74: 3172.59455 | U74: 42401.00213 | V74: 42227.22077 | W74: 55957.98909 | X74: 55812.97636 | Y74: 3185.651004 | Z74: 3172.59455 | AA74: 15928255.02 | AB74: 15862972.75 | AC74: 212005010.6 | AD74: 211136103.9 | AE74: 279789945.5 | AF74: 279064881.8 | AG74: 15928255.02 | AH74: 15862972.75 | AI74: 5000
B75: Female 75-79 | C75: 76.942825 | D75: 87.81283 | E75: female | F75: 1 | G75: =HLOOKUP(Calculations!$E$2,'Prevalence Rates'!$C$3:$BC$249,'Prevalence Rates'!$BD75,FALSE) -> 0.149 | H75: =HLOOKUP(Calculations!$E$2,'Population 2016'!$C$3:$BC$249,'Population 2016'!BD75,FALSE) -> 19138 | I75: 0 | J75: =HLOOKUP(Results!E$4,Targeting!$C$3:$F$249,Targeting!$G75,FALSE) -> 2949 | K75: =IF(AND(OR(Calculations!$E$2="Orkney Health Board",Calculations!$E$2="Orkney Islands Local Authority"),$F75=1),0,IF(AND(OR(Calculations!$E$2="Shetland Health Board",Calculations!$E$2="Western Isles Health Board",Calculations!$E$2="Shetland Islands Local Authority",Calculations!$E$2="Eilean Siar Local Authority"),OR($F75=1,$F75=5)),0,new_ci(VALUE(LEFT(Options!$B$24,2)),$C75,$E75,$F75,2016,$I75,1,$H75,$G75*$H75,Options!$B$8))) -> 925.0514335 | L75: =IF(AND(OR(Calculations!$E$2="Orkney Health Board",Calculations!$E$2="Orkney Islands Local Authority"),$F75=1),0,IF(AND(OR(Calculations!$E$2="Shetland Health Board",Calculations!$E$2="Western Isles Health Board",Calculations!$E$2="Shetland Islands Local Authority",Calculations!$E$2="Eilean Siar Local Authority"),OR($F75=1,$F75=5)),0,new_ci(VALUE(LEFT(Options!$B$24,2)),$C75,$E75,$F75,2016,$I75+$J75,1,$H75,$G75*$H75,Options!$B$8))) -> 921.015599 | M75: =IF(AND(OR(Calculations!$E$2="Orkney Health Board",Calculations!$E$2="Orkney Islands Local Authority"),$F75=1),0,IF(AND(OR(Calculations!$E$2="Shetland Health Board",Calculations!$E$2="Western Isles Health Board",Calculations!$E$2="Shetland Islands Local Authority",Calculations!$E$2="Eilean Siar Local Authority"),OR($F75=1,$F75=5)),0,new_yllv2(VALUE(LEFT(Options!$B$24,2)),$C75,$D75,$E75,$F75,2016,$I75,1,$H75,$G75*$H75,Options!$B$8))) -> 9130.262274 | N75: =IF(AND(OR(Calculations!$E$2="Orkney Health Board",Calculations!$E$2="Orkney Islands Local Authority"),$F75=1),0,IF(AND(OR(Calculations!$E$2="Shetland Health Board",Calculations!$E$2="Western Isles Health Board",Calculations!$E$2="Shetland Islands Local Authority",Calculations!$E$2="Eilean Siar Local Authority"),OR($F75=1,$F75=5)),0,new_yllv2(VALUE(LEFT(Options!$B$24,2)),$C75,$D75,$E75,$F75,2016,$I75+$J75,1,$H75,$G75*$H75,Options!$B$8))) -> 9090.428568 | O75: =IF(AND(OR(Calculations!$E$2="Orkney Health Board",Calculations!$E$2="Orkney Islands Local Authority"),$F75=1),0,IF(AND(OR(Calculations!$E$2="Shetland Health Board",Calculations!$E$2="Western Isles Health Board",Calculations!$E$2="Shetland Islands Local Authority",Calculations!$E$2="Eilean Siar Local Authority"),OR($F75=1,$F75=5)),0,hosp_count(VALUE(LEFT(Options!$B$24,2)),$C75,$E75,$F75,2016,$I75,1,$H75,$G75*$H75, Options!$B$8))) -> 12145.91145 | P75: =IF(AND(OR(Calculations!$E$2="Orkney Health Board",Calculations!$E$2="Orkney Islands Local Authority"),$F75=1),0,IF(AND(OR(Calculations!$E$2="Shetland Health Board",Calculations!$E$2="Western Isles Health Board",Calculations!$E$2="Shetland Islands Local Authority",Calculations!$E$2="Eilean Siar Local Authority"),OR($F75=1,$F75=5)),0,hosp_count(VALUE(LEFT(Options!$B$24,2)),$C75,$E75,$F75,2016,$I75+$J75,1,$H75,$G75*$H75, Options!$B$8))) -> 12112.44026 | Q75: =IF(AND(OR(Calculations!$E$2="Orkney Health Board",Calculations!$E$2="Orkney Islands Local Authority"),$F75=1),0,IF(AND(OR(Calculations!$E$2="Shetland Health Board",Calculations!$E$2="Western Isles Health Board",Calculations!$E$2="Shetland Islands Local Authority",Calculations!$E$2="Eilean Siar Local Authority"),OR($F75=1,$F75=5)),0,prem_mort(VALUE(LEFT(Options!$B$24,2)),$C75,$E75,$F75,2016,$I75,1,$H75,$G75*$H75,Options!$B$8))) -> 0 | R75: =IF(AND(OR(Calculations!$E$2="Orkney Health Board",Calculations!$E$2="Orkney Islands Local Authority"),$F75=1),0,IF(AND(OR(Calculations!$E$2="Shetland Health Board",Calculations!$E$2="Western Isles Health Board",Calculations!$E$2="Shetland Islands Local Authority",Calculations!$E$2="Eilean Siar Local Authority"),OR($F75=1,$F75=5)),0,prem_mort(VALUE(LEFT(Options!$B$24,2)),$C75,$E75,$F75,2016,$I75+$J75,1,$H75,$G75*$H75,Options!$B$8))) -> 0 | S75: 4833.584667 | T75: 4812.496599 | U75: 47707.50483 | V75: 47499.36549 | W75: 63464.8942 | X75: 63290.00032 | Y75: 0 | Z75: 0 | AA75: 19334338.67 | AB75: 19249986.39 | AC75: 190830019.3 | AD75: 189997462 | AE75: 253859576.8 | AF75: 253160001.3 | AG75: 0 | AH75: 0 | AI75: 4000
B76: Female 80-84 | C76: 81.856712 | D76: 89.73671 | E76: female | F76: 1 | G76: =HLOOKUP(Calculations!$E$2,'Prevalence Rates'!$C$3:$BC$249,'Prevalence Rates'!$BD76,FALSE) -> 0.149 | H76: =HLOOKUP(Calculations!$E$2,'Population 2016'!$C$3:$BC$249,'Population 2016'!BD76,FALSE) -> 14776 | I76: 0 | J76: =HLOOKUP(Results!E$4,Targeting!$C$3:$F$249,Targeting!$G76,FALSE) -> 2277 | K76: =IF(AND(OR(Calculations!$E$2="Orkney Health Board",Calculations!$E$2="Orkney Islands Local Authority"),$F76=1),0,IF(AND(OR(Calculations!$E$2="Shetland Health Board",Calculations!$E$2="Western Isles Health Board",Calculations!$E$2="Shetland Islands Local Authority",Calculations!$E$2="Eilean Siar Local Authority"),OR($F76=1,$F76=5)),0,new_ci(VALUE(LEFT(Options!$B$24,2)),$C76,$E76,$F76,2016,$I76,1,$H76,$G76*$H76,Options!$B$8))) -> 1070.21873 | L76: =IF(AND(OR(Calculations!$E$2="Orkney Health Board",Calculations!$E$2="Orkney Islands Local Authority"),$F76=1),0,IF(AND(OR(Calculations!$E$2="Shetland Health Board",Calculations!$E$2="Western Isles Health Board",Calculations!$E$2="Shetland Islands Local Authority",Calculations!$E$2="Eilean Siar Local Authority"),OR($F76=1,$F76=5)),0,new_ci(VALUE(LEFT(Options!$B$24,2)),$C76,$E76,$F76,2016,$I76+$J76,1,$H76,$G76*$H76,Options!$B$8))) -> 1065.67599 | M76: =IF(AND(OR(Calculations!$E$2="Orkney Health Board",Calculations!$E$2="Orkney Islands Local Authority"),$F76=1),0,IF(AND(OR(Calculations!$E$2="Shetland Health Board",Calculations!$E$2="Western Isles Health Board",Calculations!$E$2="Shetland Islands Local Authority",Calculations!$E$2="Eilean Siar Local Authority"),OR($F76=1,$F76=5)),0,new_yllv2(VALUE(LEFT(Options!$B$24,2)),$C76,$D76,$E76,$F76,2016,$I76,1,$H76,$G76*$H76,Options!$B$8))) -> 7363.102725 | N76: =IF(AND(OR(Calculations!$E$2="Orkney Health Board",Calculations!$E$2="Orkney Islands Local Authority"),$F76=1),0,IF(AND(OR(Calculations!$E$2="Shetland Health Board",Calculations!$E$2="Western Isles Health Board",Calculations!$E$2="Shetland Islands Local Authority",Calculations!$E$2="Eilean Siar Local Authority"),OR($F76=1,$F76=5)),0,new_yllv2(VALUE(LEFT(Options!$B$24,2)),$C76,$D76,$E76,$F76,2016,$I76+$J76,1,$H76,$G76*$H76,Options!$B$8))) -> 7331.848681 | O76: =IF(AND(OR(Calculations!$E$2="Orkney Health Board",Calculations!$E$2="Orkney Islands Local Authority"),$F76=1),0,IF(AND(OR(Calculations!$E$2="Shetland Health Board",Calculations!$E$2="Western Isles Health Board",Calculations!$E$2="Shetland Islands Local Authority",Calculations!$E$2="Eilean Siar Local Authority"),OR($F76=1,$F76=5)),0,hosp_count(VALUE(LEFT(Options!$B$24,2)),$C76,$E76,$F76,2016,$I76,1,$H76,$G76*$H76, Options!$B$8))) -> 10611.34119 | P76: =IF(AND(OR(Calculations!$E$2="Orkney Health Board",Calculations!$E$2="Orkney Islands Local Authority"),$F76=1),0,IF(AND(OR(Calculations!$E$2="Shetland Health Board",Calculations!$E$2="Western Isles Health Board",Calculations!$E$2="Shetland Islands Local Authority",Calculations!$E$2="Eilean Siar Local Authority"),OR($F76=1,$F76=5)),0,hosp_count(VALUE(LEFT(Options!$B$24,2)),$C76,$E76,$F76,2016,$I76+$J76,1,$H76,$G76*$H76, Options!$B$8))) -> 10582.09702 | Q76: =IF(AND(OR(Calculations!$E$2="Orkney Health Board",Calculations!$E$2="Orkney Islands Local Authority"),$F76=1),0,IF(AND(OR(Calculations!$E$2="Shetland Health Board",Calculations!$E$2="Western Isles Health Board",Calculations!$E$2="Shetland Islands Local Authority",Calculations!$E$2="Eilean Siar Local Authority"),OR($F76=1,$F76=5)),0,prem_mort(VALUE(LEFT(Options!$B$24,2)),$C76,$E76,$F76,2016,$I76,1,$H76,$G76*$H76,Options!$B$8))) -> 0 | R76: =IF(AND(OR(Calculations!$E$2="Orkney Health Board",Calculations!$E$2="Orkney Islands Local Authority"),$F76=1),0,IF(AND(OR(Calculations!$E$2="Shetland Health Board",Calculations!$E$2="Western Isles Health Board",Calculations!$E$2="Shetland Islands Local Authority",Calculations!$E$2="Eilean Siar Local Authority"),OR($F76=1,$F76=5)),0,prem_mort(VALUE(LEFT(Options!$B$24,2)),$C76,$E76,$F76,2016,$I76+$J76,1,$H76,$G76*$H76,Options!$B$8))) -> 0 | S76: 7242.952967 | T76: 7212.208921 | U76: 49831.50193 | V76: 49619.98296 | W76: 71814.70758 | X76: 71616.7909 | Y76: 0 | Z76: 0 | AA76: 18107382.42 | AB76: 18030522.3 | AC76: 124578754.8 | AD76: 124049957.4 | AE76: 179536769 | AF76: 179041977.3 | AG76: 0 | AH76: 0 | AI76: 2500
B77: Female 85-89 | C77: 86.73082 | D77: 92.22082 | E77: female | F77: 1 | G77: =HLOOKUP(Calculations!$E$2,'Prevalence Rates'!$C$3:$BC$249,'Prevalence Rates'!$BD77,FALSE) -> 0.149 | H77: =HLOOKUP(Calculations!$E$2,'Population 2016'!$C$3:$BC$249,'Population 2016'!BD77,FALSE) -> 8869 | I77: 0 | J77: =HLOOKUP(Results!E$4,Targeting!$C$3:$F$249,Targeting!$G77,FALSE) -> 1366 | K77: =IF(AND(OR(Calculations!$E$2="Orkney Health Board",Calculations!$E$2="Orkney Islands Local Authority"),$F77=1),0,IF(AND(OR(Calculations!$E$2="Shetland Health Board",Calculations!$E$2="Western Isles Health Board",Calculations!$E$2="Shetland Islands Local Authority",Calculations!$E$2="Eilean Siar Local Authority"),OR($F77=1,$F77=5)),0,new_ci(VALUE(LEFT(Options!$B$24,2)),$C77,$E77,$F77,2016,$I77,1,$H77,$G77*$H77,Options!$B$8))) -> 952.9683687 | L77: =IF(AND(OR(Calculations!$E$2="Orkney Health Board",Calculations!$E$2="Orkney Islands Local Authority"),$F77=1),0,IF(AND(OR(Calculations!$E$2="Shetland Health Board",Calculations!$E$2="Western Isles Health Board",Calculations!$E$2="Shetland Islands Local Authority",Calculations!$E$2="Eilean Siar Local Authority"),OR($F77=1,$F77=5)),0,new_ci(VALUE(LEFT(Options!$B$24,2)),$C77,$E77,$F77,2016,$I77+$J77,1,$H77,$G77*$H77,Options!$B$8))) -> 949.0899343 | M77: =IF(AND(OR(Calculations!$E$2="Orkney Health Board",Calculations!$E$2="Orkney Islands Local Authority"),$F77=1),0,IF(AND(OR(Calculations!$E$2="Shetland Health Board",Calculations!$E$2="Western Isles Health Board",Calculations!$E$2="Shetland Islands Local Authority",Calculations!$E$2="Eilean Siar Local Authority"),OR($F77=1,$F77=5)),0,new_yllv2(VALUE(LEFT(Options!$B$24,2)),$C77,$D77,$E77,$F77,2016,$I77,1,$H77,$G77*$H77,Options!$B$8))) -> 4278.827975 | N77: =IF(AND(OR(Calculations!$E$2="Orkney Health Board",Calculations!$E$2="Orkney Islands Local Authority"),$F77=1),0,IF(AND(OR(Calculations!$E$2="Shetland Health Board",Calculations!$E$2="Western Isles Health Board",Calculations!$E$2="Shetland Islands Local Authority",Calculations!$E$2="Eilean Siar Local Authority"),OR($F77=1,$F77=5)),0,new_yllv2(VALUE(LEFT(Options!$B$24,2)),$C77,$D77,$E77,$F77,2016,$I77+$J77,1,$H77,$G77*$H77,Options!$B$8))) -> 4261.413805 | O77: =IF(AND(OR(Calculations!$E$2="Orkney Health Board",Calculations!$E$2="Orkney Islands Local Authority"),$F77=1),0,IF(AND(OR(Calculations!$E$2="Shetland Health Board",Calculations!$E$2="Western Isles Health Board",Calculations!$E$2="Shetland Islands Local Authority",Calculations!$E$2="Eilean Siar Local Authority"),OR($F77=1,$F77=5)),0,hosp_count(VALUE(LEFT(Options!$B$24,2)),$C77,$E77,$F77,2016,$I77,1,$H77,$G77*$H77, Options!$B$8))) -> 7200.01394 | P77: =IF(AND(OR(Calculations!$E$2="Orkney Health Board",Calculations!$E$2="Orkney Islands Local Authority"),$F77=1),0,IF(AND(OR(Calculations!$E$2="Shetland Health Board",Calculations!$E$2="Western Isles Health Board",Calculations!$E$2="Shetland Islands Local Authority",Calculations!$E$2="Eilean Siar Local Authority"),OR($F77=1,$F77=5)),0,hosp_count(VALUE(LEFT(Options!$B$24,2)),$C77,$E77,$F77,2016,$I77+$J77,1,$H77,$G77*$H77, Options!$B$8))) -> 7180.181679 | Q77: =IF(AND(OR(Calculations!$E$2="Orkney Health Board",Calculations!$E$2="Orkney Islands Local Authority"),$F77=1),0,IF(AND(OR(Calculations!$E$2="Shetland Health Board",Calculations!$E$2="Western Isles Health Board",Calculations!$E$2="Shetland Islands Local Authority",Calculations!$E$2="Eilean Siar Local Authority"),OR($F77=1,$F77=5)),0,prem_mort(VALUE(LEFT(Options!$B$24,2)),$C77,$E77,$F77,2016,$I77,1,$H77,$G77*$H77,Options!$B$8))) -> 0 | R77: =IF(AND(OR(Calculations!$E$2="Orkney Health Board",Calculations!$E$2="Orkney Islands Local Authority"),$F77=1),0,IF(AND(OR(Calculations!$E$2="Shetland Health Board",Calculations!$E$2="Western Isles Health Board",Calculations!$E$2="Shetland Islands Local Authority",Calculations!$E$2="Eilean Siar Local Authority"),OR($F77=1,$F77=5)),0,prem_mort(VALUE(LEFT(Options!$B$24,2)),$C77,$E77,$F77,2016,$I77+$J77,1,$H77,$G77*$H77,Options!$B$8))) -> 0 | S77: 10744.93594 | T77: 10701.20571 | U77: 48244.76238 | V77: 48048.41363 | W77: 81181.8011 | X77: 80958.18783 | Y77: 0 | Z77: 0 | AA77: 16117403.91 | AB77: 16051808.56 | AC77: 72367143.57 | AD77: 72072620.45 | AE77: 121772701.7 | AF77: 121437281.7 | AG77: 0 | AH77: 0 | AI77: 1500
B78: Female 90+ | C78: 92.779343 | D78: 96.27934 | E78: female | F78: 1 | G78: =HLOOKUP(Calculations!$E$2,'Prevalence Rates'!$C$3:$BC$249,'Prevalence Rates'!$BD78,FALSE) -> 0.149 | H78: =HLOOKUP(Calculations!$E$2,'Population 2016'!$C$3:$BC$249,'Population 2016'!BD78,FALSE) -> 4825 | I78: 0 | J78: =HLOOKUP(Results!E$4,Targeting!$C$3:$F$249,Targeting!$G78,FALSE) -> 743 | K78: =IF(AND(OR(Calculations!$E$2="Orkney Health Board",Calculations!$E$2="Orkney Islands Local Authority"),$F78=1),0,IF(AND(OR(Calculations!$E$2="Shetland Health Board",Calculations!$E$2="Western Isles Health Board",Calculations!$E$2="Shetland Islands Local Authority",Calculations!$E$2="Eilean Siar Local Authority"),OR($F78=1,$F78=5)),0,new_ci(VALUE(LEFT(Options!$B$24,2)),$C78,$E78,$F78,2016,$I78,1,$H78,$G78*$H78,Options!$B$8))) -> 833.6901188 | L78: =IF(AND(OR(Calculations!$E$2="Orkney Health Board",Calculations!$E$2="Orkney Islands Local Authority"),$F78=1),0,IF(AND(OR(Calculations!$E$2="Shetland Health Board",Calculations!$E$2="Western Isles Health Board",Calculations!$E$2="Shetland Islands Local Authority",Calculations!$E$2="Eilean Siar Local Authority"),OR($F78=1,$F78=5)),0,new_ci(VALUE(LEFT(Options!$B$24,2)),$C78,$E78,$F78,2016,$I78+$J78,1,$H78,$G78*$H78,Options!$B$8))) -> 830.5675638 | M78: =IF(AND(OR(Calculations!$E$2="Orkney Health Board",Calculations!$E$2="Orkney Islands Local Authority"),$F78=1),0,IF(AND(OR(Calculations!$E$2="Shetland Health Board",Calculations!$E$2="Western Isles Health Board",Calculations!$E$2="Shetland Islands Local Authority",Calculations!$E$2="Eilean Siar Local Authority"),OR($F78=1,$F78=5)),0,new_yllv2(VALUE(LEFT(Options!$B$24,2)),$C78,$D78,$E78,$F78,2016,$I78,1,$H78,$G78*$H78,Options!$B$8))) -> 2084.222796 | N78: =IF(AND(OR(Calculations!$E$2="Orkney Health Board",Calculations!$E$2="Orkney Islands Local Authority"),$F78=1),0,IF(AND(OR(Calculations!$E$2="Shetland Health Board",Calculations!$E$2="Western Isles Health Board",Calculations!$E$2="Shetland Islands Local Authority",Calculations!$E$2="Eilean Siar Local Authority"),OR($F78=1,$F78=5)),0,new_yllv2(VALUE(LEFT(Options!$B$24,2)),$C78,$D78,$E78,$F78,2016,$I78+$J78,1,$H78,$G78*$H78,Options!$B$8))) -> 2076.416418 | O78: =IF(AND(OR(Calculations!$E$2="Orkney Health Board",Calculations!$E$2="Orkney Islands Local Authority"),$F78=1),0,IF(AND(OR(Calculations!$E$2="Shetland Health Board",Calculations!$E$2="Western Isles Health Board",Calculations!$E$2="Shetland Islands Local Authority",Calculations!$E$2="Eilean Siar Local Authority"),OR($F78=1,$F78=5)),0,hosp_count(VALUE(LEFT(Options!$B$24,2)),$C78,$E78,$F78,2016,$I78,1,$H78,$G78*$H78, Options!$B$8))) -> 4560.691784 | P78: =IF(AND(OR(Calculations!$E$2="Orkney Health Board",Calculations!$E$2="Orkney Islands Local Authority"),$F78=1),0,IF(AND(OR(Calculations!$E$2="Shetland Health Board",Calculations!$E$2="Western Isles Health Board",Calculations!$E$2="Shetland Islands Local Authority",Calculations!$E$2="Eilean Siar Local Authority"),OR($F78=1,$F78=5)),0,hosp_count(VALUE(LEFT(Options!$B$24,2)),$C78,$E78,$F78,2016,$I78+$J78,1,$H78,$G78*$H78, Options!$B$8))) -> 4548.131916 | Q78: =IF(AND(OR(Calculations!$E$2="Orkney Health Board",Calculations!$E$2="Orkney Islands Local Authority"),$F78=1),0,IF(AND(OR(Calculations!$E$2="Shetland Health Board",Calculations!$E$2="Western Isles Health Board",Calculations!$E$2="Shetland Islands Local Authority",Calculations!$E$2="Eilean Siar Local Authority"),OR($F78=1,$F78=5)),0,prem_mort(VALUE(LEFT(Options!$B$24,2)),$C78,$E78,$F78,2016,$I78,1,$H78,$G78*$H78,Options!$B$8))) -> 0 | R78: =IF(AND(OR(Calculations!$E$2="Orkney Health Board",Calculations!$E$2="Orkney Islands Local Authority"),$F78=1),0,IF(AND(OR(Calculations!$E$2="Shetland Health Board",Calculations!$E$2="Western Isles Health Board",Calculations!$E$2="Shetland Islands Local Authority",Calculations!$E$2="Eilean Siar Local Authority"),OR($F78=1,$F78=5)),0,prem_mort(VALUE(LEFT(Options!$B$24,2)),$C78,$E78,$F78,2016,$I78+$J78,1,$H78,$G78*$H78,Options!$B$8))) -> 0 | S78: 17278.55168 | T78: 17213.83552 | U78: 43196.32738 | V78: 43034.53716 | W78: 94522.10951 | X78: 94261.80137 | Y78: 0 | Z78: 0 | AA78: 17278551.68 | AB78: 17213835.52 | AC78: 43196327.38 | AD78: 43034537.16 | AE78: 94522109.51 | AF78: 94261801.37 | AG78: 0 | AH78: 0 | AI78: 1000
B79: Male 0-4 | C79: 2.0320823 | D79: 77.402082 | E79: male | F79: 1 | G79: =HLOOKUP(Calculations!$E$2,'Prevalence Rates'!$C$3:$BC$249,'Prevalence Rates'!$BD79,FALSE) -> 0 | H79: =HLOOKUP(Calculations!$E$2,'Population 2016'!$C$3:$BC$249,'Population 2016'!BD79,FALSE) -> 0 | I79: 0 | J79: =HLOOKUP(Results!E$4,Targeting!$C$3:$F$249,Targeting!$G79,FALSE) -> 0 | K79: =IF(AND(OR(Calculations!$E$2="Orkney Health Board",Calculations!$E$2="Orkney Islands Local Authority"),$F79=1),0,IF(AND(OR(Calculations!$E$2="Shetland Health Board",Calculations!$E$2="Western Isles Health Board",Calculations!$E$2="Shetland Islands Local Authority",Calculations!$E$2="Eilean Siar Local Authority"),OR($F79=1,$F79=5)),0,new_ci(VALUE(LEFT(Options!$B$24,2)),$C79,$E79,$F79,2016,$I79,1,$H79,$G79*$H79,Options!$B$8))) ->  | L79: =IF(AND(OR(Calculations!$E$2="Orkney Health Board",Calculations!$E$2="Orkney Islands Local Authority"),$F79=1),0,IF(AND(OR(Calculations!$E$2="Shetland Health Board",Calculations!$E$2="Western Isles Health Board",Calculations!$E$2="Shetland Islands Local Authority",Calculations!$E$2="Eilean Siar Local Authority"),OR($F79=1,$F79=5)),0,new_ci(VALUE(LEFT(Options!$B$24,2)),$C79,$E79,$F79,2016,$I79+$J79,1,$H79,$G79*$H79,Options!$B$8))) ->  | M79: =IF(AND(OR(Calculations!$E$2="Orkney Health Board",Calculations!$E$2="Orkney Islands Local Authority"),$F79=1),0,IF(AND(OR(Calculations!$E$2="Shetland Health Board",Calculations!$E$2="Western Isles Health Board",Calculations!$E$2="Shetland Islands Local Authority",Calculations!$E$2="Eilean Siar Local Authority"),OR($F79=1,$F79=5)),0,new_yllv2(VALUE(LEFT(Options!$B$24,2)),$C79,$D79,$E79,$F79,2016,$I79,1,$H79,$G79*$H79,Options!$B$8))) ->  | N79: =IF(AND(OR(Calculations!$E$2="Orkney Health Board",Calculations!$E$2="Orkney Islands Local Authority"),$F79=1),0,IF(AND(OR(Calculations!$E$2="Shetland Health Board",Calculations!$E$2="Western Isles Health Board",Calculations!$E$2="Shetland Islands Local Authority",Calculations!$E$2="Eilean Siar Local Authority"),OR($F79=1,$F79=5)),0,new_yllv2(VALUE(LEFT(Options!$B$24,2)),$C79,$D79,$E79,$F79,2016,$I79+$J79,1,$H79,$G79*$H79,Options!$B$8))) ->  | O79: =IF(AND(OR(Calculations!$E$2="Orkney Health Board",Calculations!$E$2="Orkney Islands Local Authority"),$F79=1),0,IF(AND(OR(Calculations!$E$2="Shetland Health Board",Calculations!$E$2="Western Isles Health Board",Calculations!$E$2="Shetland Islands Local Authority",Calculations!$E$2="Eilean Siar Local Authority"),OR($F79=1,$F79=5)),0,hosp_count(VALUE(LEFT(Options!$B$24,2)),$C79,$E79,$F79,2016,$I79,1,$H79,$G79*$H79, Options!$B$8))) ->  | P79: =IF(AND(OR(Calculations!$E$2="Orkney Health Board",Calculations!$E$2="Orkney Islands Local Authority"),$F79=1),0,IF(AND(OR(Calculations!$E$2="Shetland Health Board",Calculations!$E$2="Western Isles Health Board",Calculations!$E$2="Shetland Islands Local Authority",Calculations!$E$2="Eilean Siar Local Authority"),OR($F79=1,$F79=5)),0,hosp_count(VALUE(LEFT(Options!$B$24,2)),$C79,$E79,$F79,2016,$I79+$J79,1,$H79,$G79*$H79, Options!$B$8))) ->  | Q79: =IF(AND(OR(Calculations!$E$2="Orkney Health Board",Calculations!$E$2="Orkney Islands Local Authority"),$F79=1),0,IF(AND(OR(Calculations!$E$2="Shetland Health Board",Calculations!$E$2="Western Isles Health Board",Calculations!$E$2="Shetland Islands Local Authority",Calculations!$E$2="Eilean Siar Local Authority"),OR($F79=1,$F79=5)),0,prem_mort(VALUE(LEFT(Options!$B$24,2)),$C79,$E79,$F79,2016,$I79,1,$H79,$G79*$H79,Options!$B$8))) ->  | R79: =IF(AND(OR(Calculations!$E$2="Orkney Health Board",Calculations!$E$2="Orkney Islands Local Authority"),$F79=1),0,IF(AND(OR(Calculations!$E$2="Shetland Health Board",Calculations!$E$2="Western Isles Health Board",Calculations!$E$2="Shetland Islands Local Authority",Calculations!$E$2="Eilean Siar Local Authority"),OR($F79=1,$F79=5)),0,prem_mort(VALUE(LEFT(Options!$B$24,2)),$C79,$E79,$F79,2016,$I79+$J79,1,$H79,$G79*$H79,Options!$B$8))) ->  | AI79: 5000
B80: Male 5-9 | C80: 6.9784756 | D80: 77.398476 | E80: male | F80: 1 | G80: =HLOOKUP(Calculations!$E$2,'Prevalence Rates'!$C$3:$BC$249,'Prevalence Rates'!$BD80,FALSE) -> 0 | H80: =HLOOKUP(Calculations!$E$2,'Population 2016'!$C$3:$BC$249,'Population 2016'!BD80,FALSE) -> 0 | I80: 0 | J80: =HLOOKUP(Results!E$4,Targeting!$C$3:$F$249,Targeting!$G80,FALSE) -> 0 | K80: =IF(AND(OR(Calculations!$E$2="Orkney Health Board",Calculations!$E$2="Orkney Islands Local Authority"),$F80=1),0,IF(AND(OR(Calculations!$E$2="Shetland Health Board",Calculations!$E$2="Western Isles Health Board",Calculations!$E$2="Shetland Islands Local Authority",Calculations!$E$2="Eilean Siar Local Authority"),OR($F80=1,$F80=5)),0,new_ci(VALUE(LEFT(Options!$B$24,2)),$C80,$E80,$F80,2016,$I80,1,$H80,$G80*$H80,Options!$B$8))) ->  | L80: =IF(AND(OR(Calculations!$E$2="Orkney Health Board",Calculations!$E$2="Orkney Islands Local Authority"),$F80=1),0,IF(AND(OR(Calculations!$E$2="Shetland Health Board",Calculations!$E$2="Western Isles Health Board",Calculations!$E$2="Shetland Islands Local Authority",Calculations!$E$2="Eilean Siar Local Authority"),OR($F80=1,$F80=5)),0,new_ci(VALUE(LEFT(Options!$B$24,2)),$C80,$E80,$F80,2016,$I80+$J80,1,$H80,$G80*$H80,Options!$B$8))) ->  | M80: =IF(AND(OR(Calculations!$E$2="Orkney Health Board",Calculations!$E$2="Orkney Islands Local Authority"),$F80=1),0,IF(AND(OR(Calculations!$E$2="Shetland Health Board",Calculations!$E$2="Western Isles Health Board",Calculations!$E$2="Shetland Islands Local Authority",Calculations!$E$2="Eilean Siar Local Authority"),OR($F80=1,$F80=5)),0,new_yllv2(VALUE(LEFT(Options!$B$24,2)),$C80,$D80,$E80,$F80,2016,$I80,1,$H80,$G80*$H80,Options!$B$8))) ->  | N80: =IF(AND(OR(Calculations!$E$2="Orkney Health Board",Calculations!$E$2="Orkney Islands Local Authority"),$F80=1),0,IF(AND(OR(Calculations!$E$2="Shetland Health Board",Calculations!$E$2="Western Isles Health Board",Calculations!$E$2="Shetland Islands Local Authority",Calculations!$E$2="Eilean Siar Local Authority"),OR($F80=1,$F80=5)),0,new_yllv2(VALUE(LEFT(Options!$B$24,2)),$C80,$D80,$E80,$F80,2016,$I80+$J80,1,$H80,$G80*$H80,Options!$B$8))) ->  | O80: =IF(AND(OR(Calculations!$E$2="Orkney Health Board",Calculations!$E$2="Orkney Islands Local Authority"),$F80=1),0,IF(AND(OR(Calculations!$E$2="Shetland Health Board",Calculations!$E$2="Western Isles Health Board",Calculations!$E$2="Shetland Islands Local Authority",Calculations!$E$2="Eilean Siar Local Authority"),OR($F80=1,$F80=5)),0,hosp_count(VALUE(LEFT(Options!$B$24,2)),$C80,$E80,$F80,2016,$I80,1,$H80,$G80*$H80, Options!$B$8))) ->  | P80: =IF(AND(OR(Calculations!$E$2="Orkney Health Board",Calculations!$E$2="Orkney Islands Local Authority"),$F80=1),0,IF(AND(OR(Calculations!$E$2="Shetland Health Board",Calculations!$E$2="Western Isles Health Board",Calculations!$E$2="Shetland Islands Local Authority",Calculations!$E$2="Eilean Siar Local Authority"),OR($F80=1,$F80=5)),0,hosp_count(VALUE(LEFT(Options!$B$24,2)),$C80,$E80,$F80,2016,$I80+$J80,1,$H80,$G80*$H80, Options!$B$8))) ->  | Q80: =IF(AND(OR(Calculations!$E$2="Orkney Health Board",Calculations!$E$2="Orkney Islands Local Authority"),$F80=1),0,IF(AND(OR(Calculations!$E$2="Shetland Health Board",Calculations!$E$2="Western Isles Health Board",Calculations!$E$2="Shetland Islands Local Authority",Calculations!$E$2="Eilean Siar Local Authority"),OR($F80=1,$F80=5)),0,prem_mort(VALUE(LEFT(Options!$B$24,2)),$C80,$E80,$F80,2016,$I80,1,$H80,$G80*$H80,Options!$B$8))) ->  | R80: =IF(AND(OR(Calculations!$E$2="Orkney Health Board",Calculations!$E$2="Orkney Islands Local Authority"),$F80=1),0,IF(AND(OR(Calculations!$E$2="Shetland Health Board",Calculations!$E$2="Western Isles Health Board",Calculations!$E$2="Shetland Islands Local Authority",Calculations!$E$2="Eilean Siar Local Authority"),OR($F80=1,$F80=5)),0,prem_mort(VALUE(LEFT(Options!$B$24,2)),$C80,$E80,$F80,2016,$I80+$J80,1,$H80,$G80*$H80,Options!$B$8))) ->  | AI80: 5500
B81: Male 10-15 | C81: 12.471144 | D81: 77.92114 | E81: male | F81: 1 | G81: =HLOOKUP(Calculations!$E$2,'Prevalence Rates'!$C$3:$BC$249,'Prevalence Rates'!$BD81,FALSE) -> 0 | H81: =HLOOKUP(Calculations!$E$2,'Population 2016'!$C$3:$BC$249,'Population 2016'!BD81,FALSE) -> 0 | I81: 0 | J81: =HLOOKUP(Results!E$4,Targeting!$C$3:$F$249,Targeting!$G81,FALSE) -> 0 | K81: =IF(AND(OR(Calculations!$E$2="Orkney Health Board",Calculations!$E$2="Orkney Islands Local Authority"),$F81=1),0,IF(AND(OR(Calculations!$E$2="Shetland Health Board",Calculations!$E$2="Western Isles Health Board",Calculations!$E$2="Shetland Islands Local Authority",Calculations!$E$2="Eilean Siar Local Authority"),OR($F81=1,$F81=5)),0,new_ci(VALUE(LEFT(Options!$B$24,2)),$C81,$E81,$F81,2016,$I81,1,$H81,$G81*$H81,Options!$B$8))) ->  | L81: =IF(AND(OR(Calculations!$E$2="Orkney Health Board",Calculations!$E$2="Orkney Islands Local Authority"),$F81=1),0,IF(AND(OR(Calculations!$E$2="Shetland Health Board",Calculations!$E$2="Western Isles Health Board",Calculations!$E$2="Shetland Islands Local Authority",Calculations!$E$2="Eilean Siar Local Authority"),OR($F81=1,$F81=5)),0,new_ci(VALUE(LEFT(Options!$B$24,2)),$C81,$E81,$F81,2016,$I81+$J81,1,$H81,$G81*$H81,Options!$B$8))) ->  | M81: =IF(AND(OR(Calculations!$E$2="Orkney Health Board",Calculations!$E$2="Orkney Islands Local Authority"),$F81=1),0,IF(AND(OR(Calculations!$E$2="Shetland Health Board",Calculations!$E$2="Western Isles Health Board",Calculations!$E$2="Shetland Islands Local Authority",Calculations!$E$2="Eilean Siar Local Authority"),OR($F81=1,$F81=5)),0,new_yllv2(VALUE(LEFT(Options!$B$24,2)),$C81,$D81,$E81,$F81,2016,$I81,1,$H81,$G81*$H81,Options!$B$8))) ->  | N81: =IF(AND(OR(Calculations!$E$2="Orkney Health Board",Calculations!$E$2="Orkney Islands Local Authority"),$F81=1),0,IF(AND(OR(Calculations!$E$2="Shetland Health Board",Calculations!$E$2="Western Isles Health Board",Calculations!$E$2="Shetland Islands Local Authority",Calculations!$E$2="Eilean Siar Local Authority"),OR($F81=1,$F81=5)),0,new_yllv2(VALUE(LEFT(Options!$B$24,2)),$C81,$D81,$E81,$F81,2016,$I81+$J81,1,$H81,$G81*$H81,Options!$B$8))) ->  | O81: =IF(AND(OR(Calculations!$E$2="Orkney Health Board",Calculations!$E$2="Orkney Islands Local Authority"),$F81=1),0,IF(AND(OR(Calculations!$E$2="Shetland Health Board",Calculations!$E$2="Western Isles Health Board",Calculations!$E$2="Shetland Islands Local Authority",Calculations!$E$2="Eilean Siar Local Authority"),OR($F81=1,$F81=5)),0,hosp_count(VALUE(LEFT(Options!$B$24,2)),$C81,$E81,$F81,2016,$I81,1,$H81,$G81*$H81, Options!$B$8))) ->  | P81: =IF(AND(OR(Calculations!$E$2="Orkney Health Board",Calculations!$E$2="Orkney Islands Local Authority"),$F81=1),0,IF(AND(OR(Calculations!$E$2="Shetland Health Board",Calculations!$E$2="Western Isles Health Board",Calculations!$E$2="Shetland Islands Local Authority",Calculations!$E$2="Eilean Siar Local Authority"),OR($F81=1,$F81=5)),0,hosp_count(VALUE(LEFT(Options!$B$24,2)),$C81,$E81,$F81,2016,$I81+$J81,1,$H81,$G81*$H81, Options!$B$8))) ->  | Q81: =IF(AND(OR(Calculations!$E$2="Orkney Health Board",Calculations!$E$2="Orkney Islands Local Authority"),$F81=1),0,IF(AND(OR(Calculations!$E$2="Shetland Health Board",Calculations!$E$2="Western Isles Health Board",Calculations!$E$2="Shetland Islands Local Authority",Calculations!$E$2="Eilean Siar Local Authority"),OR($F81=1,$F81=5)),0,prem_mort(VALUE(LEFT(Options!$B$24,2)),$C81,$E81,$F81,2016,$I81,1,$H81,$G81*$H81,Options!$B$8))) ->  | R81: =IF(AND(OR(Calculations!$E$2="Orkney Health Board",Calculations!$E$2="Orkney Islands Local Authority"),$F81=1),0,IF(AND(OR(Calculations!$E$2="Shetland Health Board",Calculations!$E$2="Western Isles Health Board",Calculations!$E$2="Shetland Islands Local Authority",Calculations!$E$2="Eilean Siar Local Authority"),OR($F81=1,$F81=5)),0,prem_mort(VALUE(LEFT(Options!$B$24,2)),$C81,$E81,$F81,2016,$I81+$J81,1,$H81,$G81*$H81,Options!$B$8))) ->  | AI81: 6600
B82: Male 16-19 | C82: 17.556318 | D82: 77.07632 | E82: male | F82: 1 | G82: =HLOOKUP(Calculations!$E$2,'Prevalence Rates'!$C$3:$BC$249,'Prevalence Rates'!$BD82,FALSE) -> 0.3326 | H82: =HLOOKUP(Calculations!$E$2,'Population 2016'!$C$3:$BC$249,'Population 2016'!BD82,FALSE) -> 25359 | I82: 0 | J82: =HLOOKUP(Results!E$4,Targeting!$C$3:$F$249,Targeting!$G82,FALSE) -> 3907 | K82: =IF(AND(OR(Calculations!$E$2="Orkney Health Board",Calculations!$E$2="Orkney Islands Local Authority"),$F82=1),0,IF(AND(OR(Calculations!$E$2="Shetland Health Board",Calculations!$E$2="Western Isles Health Board",Calculations!$E$2="Shetland Islands Local Authority",Calculations!$E$2="Eilean Siar Local Authority"),OR($F82=1,$F82=5)),0,new_ci(VALUE(LEFT(Options!$B$24,2)),$C82,$E82,$F82,2016,$I82,1,$H82,$G82*$H82,Options!$B$8))) -> 19.17168162 | L82: =IF(AND(OR(Calculations!$E$2="Orkney Health Board",Calculations!$E$2="Orkney Islands Local Authority"),$F82=1),0,IF(AND(OR(Calculations!$E$2="Shetland Health Board",Calculations!$E$2="Western Isles Health Board",Calculations!$E$2="Shetland Islands Local Authority",Calculations!$E$2="Eilean Siar Local Authority"),OR($F82=1,$F82=5)),0,new_ci(VALUE(LEFT(Options!$B$24,2)),$C82,$E82,$F82,2016,$I82+$J82,1,$H82,$G82*$H82,Options!$B$8))) -> 19.11827254 | M82: =IF(AND(OR(Calculations!$E$2="Orkney Health Board",Calculations!$E$2="Orkney Islands Local Authority"),$F82=1),0,IF(AND(OR(Calculations!$E$2="Shetland Health Board",Calculations!$E$2="Western Isles Health Board",Calculations!$E$2="Shetland Islands Local Authority",Calculations!$E$2="Eilean Siar Local Authority"),OR($F82=1,$F82=5)),0,new_yllv2(VALUE(LEFT(Options!$B$24,2)),$C82,$D82,$E82,$F82,2016,$I82,1,$H82,$G82*$H82,Options!$B$8))) -> 1121.926847 | N82: =IF(AND(OR(Calculations!$E$2="Orkney Health Board",Calculations!$E$2="Orkney Islands Local Authority"),$F82=1),0,IF(AND(OR(Calculations!$E$2="Shetland Health Board",Calculations!$E$2="Western Isles Health Board",Calculations!$E$2="Shetland Islands Local Authority",Calculations!$E$2="Eilean Siar Local Authority"),OR($F82=1,$F82=5)),0,new_yllv2(VALUE(LEFT(Options!$B$24,2)),$C82,$D82,$E82,$F82,2016,$I82+$J82,1,$H82,$G82*$H82,Options!$B$8))) -> 1118.801347 | O82: =IF(AND(OR(Calculations!$E$2="Orkney Health Board",Calculations!$E$2="Orkney Islands Local Authority"),$F82=1),0,IF(AND(OR(Calculations!$E$2="Shetland Health Board",Calculations!$E$2="Western Isles Health Board",Calculations!$E$2="Shetland Islands Local Authority",Calculations!$E$2="Eilean Siar Local Authority"),OR($F82=1,$F82=5)),0,hosp_count(VALUE(LEFT(Options!$B$24,2)),$C82,$E82,$F82,2016,$I82,1,$H82,$G82*$H82, Options!$B$8))) -> 2447.125645 | P82: =IF(AND(OR(Calculations!$E$2="Orkney Health Board",Calculations!$E$2="Orkney Islands Local Authority"),$F82=1),0,IF(AND(OR(Calculations!$E$2="Shetland Health Board",Calculations!$E$2="Western Isles Health Board",Calculations!$E$2="Shetland Islands Local Authority",Calculations!$E$2="Eilean Siar Local Authority"),OR($F82=1,$F82=5)),0,hosp_count(VALUE(LEFT(Options!$B$24,2)),$C82,$E82,$F82,2016,$I82+$J82,1,$H82,$G82*$H82, Options!$B$8))) -> 2442.620328 | Q82: =IF(AND(OR(Calculations!$E$2="Orkney Health Board",Calculations!$E$2="Orkney Islands Local Authority"),$F82=1),0,IF(AND(OR(Calculations!$E$2="Shetland Health Board",Calculations!$E$2="Western Isles Health Board",Calculations!$E$2="Shetland Islands Local Authority",Calculations!$E$2="Eilean Siar Local Authority"),OR($F82=1,$F82=5)),0,prem_mort(VALUE(LEFT(Options!$B$24,2)),$C82,$E82,$F82,2016,$I82,1,$H82,$G82*$H82,Options!$B$8))) -> 19.17168162 | R82: =IF(AND(OR(Calculations!$E$2="Orkney Health Board",Calculations!$E$2="Orkney Islands Local Authority"),$F82=1),0,IF(AND(OR(Calculations!$E$2="Shetland Health Board",Calculations!$E$2="Western Isles Health Board",Calculations!$E$2="Shetland Islands Local Authority",Calculations!$E$2="Eilean Siar Local Authority"),OR($F82=1,$F82=5)),0,prem_mort(VALUE(LEFT(Options!$B$24,2)),$C82,$E82,$F82,2016,$I82+$J82,1,$H82,$G82*$H82,Options!$B$8))) -> 19.11827254 | S82: 75.60109475 | T82: 75.39048282 | U82: 4424.176216 | V82: 4411.851205 | W82: 9649.92959 | X82: 9632.163445 | Y82: 75.60109475 | Z82: 75.39048282 | AA82: 332644.8169 | AB82: 331718.1244 | AC82: 19466375.35 | AD82: 19412145.3 | AE82: 42459690.2 | AF82: 42381519.16 | AG82: 332644.8169 | AH82: 331718.1244 | AI82: 4400
B83: Male 20-24 | C83: 22.054632 | D83: 77.70463 | E83: male | F83: 1 | G83: =HLOOKUP(Calculations!$E$2,'Prevalence Rates'!$C$3:$BC$249,'Prevalence Rates'!$BD83,FALSE) -> 0.3326 | H83: =HLOOKUP(Calculations!$E$2,'Population 2016'!$C$3:$BC$249,'Population 2016'!BD83,FALSE) -> 37180 | I83: 0 | J83: =HLOOKUP(Results!E$4,Targeting!$C$3:$F$249,Targeting!$G83,FALSE) -> 5728 | K83: =IF(AND(OR(Calculations!$E$2="Orkney Health Board",Calculations!$E$2="Orkney Islands Local Authority"),$F83=1),0,IF(AND(OR(Calculations!$E$2="Shetland Health Board",Calculations!$E$2="Western Isles Health Board",Calculations!$E$2="Shetland Islands Local Authority",Calculations!$E$2="Eilean Siar Local Authority"),OR($F83=1,$F83=5)),0,new_ci(VALUE(LEFT(Options!$B$24,2)),$C83,$E83,$F83,2016,$I83,1,$H83,$G83*$H83,Options!$B$8))) -> 39.46897308 | L83: =IF(AND(OR(Calculations!$E$2="Orkney Health Board",Calculations!$E$2="Orkney Islands Local Authority"),$F83=1),0,IF(AND(OR(Calculations!$E$2="Shetland Health Board",Calculations!$E$2="Western Isles Health Board",Calculations!$E$2="Shetland Islands Local Authority",Calculations!$E$2="Eilean Siar Local Authority"),OR($F83=1,$F83=5)),0,new_ci(VALUE(LEFT(Options!$B$24,2)),$C83,$E83,$F83,2016,$I83+$J83,1,$H83,$G83*$H83,Options!$B$8))) -> 39.35905276 | M83: =IF(AND(OR(Calculations!$E$2="Orkney Health Board",Calculations!$E$2="Orkney Islands Local Authority"),$F83=1),0,IF(AND(OR(Calculations!$E$2="Shetland Health Board",Calculations!$E$2="Western Isles Health Board",Calculations!$E$2="Shetland Islands Local Authority",Calculations!$E$2="Eilean Siar Local Authority"),OR($F83=1,$F83=5)),0,new_yllv2(VALUE(LEFT(Options!$B$24,2)),$C83,$D83,$E83,$F83,2016,$I83,1,$H83,$G83*$H83,Options!$B$8))) -> 2156.9793 | N83: =IF(AND(OR(Calculations!$E$2="Orkney Health Board",Calculations!$E$2="Orkney Islands Local Authority"),$F83=1),0,IF(AND(OR(Calculations!$E$2="Shetland Health Board",Calculations!$E$2="Western Isles Health Board",Calculations!$E$2="Shetland Islands Local Authority",Calculations!$E$2="Eilean Siar Local Authority"),OR($F83=1,$F83=5)),0,new_yllv2(VALUE(LEFT(Options!$B$24,2)),$C83,$D83,$E83,$F83,2016,$I83+$J83,1,$H83,$G83*$H83,Options!$B$8))) -> 2150.972154 | O83: =IF(AND(OR(Calculations!$E$2="Orkney Health Board",Calculations!$E$2="Orkney Islands Local Authority"),$F83=1),0,IF(AND(OR(Calculations!$E$2="Shetland Health Board",Calculations!$E$2="Western Isles Health Board",Calculations!$E$2="Shetland Islands Local Authority",Calculations!$E$2="Eilean Siar Local Authority"),OR($F83=1,$F83=5)),0,hosp_count(VALUE(LEFT(Options!$B$24,2)),$C83,$E83,$F83,2016,$I83,1,$H83,$G83*$H83, Options!$B$8))) -> 4208.978207 | P83: =IF(AND(OR(Calculations!$E$2="Orkney Health Board",Calculations!$E$2="Orkney Islands Local Authority"),$F83=1),0,IF(AND(OR(Calculations!$E$2="Shetland Health Board",Calculations!$E$2="Western Isles Health Board",Calculations!$E$2="Shetland Islands Local Authority",Calculations!$E$2="Eilean Siar Local Authority"),OR($F83=1,$F83=5)),0,hosp_count(VALUE(LEFT(Options!$B$24,2)),$C83,$E83,$F83,2016,$I83+$J83,1,$H83,$G83*$H83, Options!$B$8))) -> 4201.229521 | Q83: =IF(AND(OR(Calculations!$E$2="Orkney Health Board",Calculations!$E$2="Orkney Islands Local Authority"),$F83=1),0,IF(AND(OR(Calculations!$E$2="Shetland Health Board",Calculations!$E$2="Western Isles Health Board",Calculations!$E$2="Shetland Islands Local Authority",Calculations!$E$2="Eilean Siar Local Authority"),OR($F83=1,$F83=5)),0,prem_mort(VALUE(LEFT(Options!$B$24,2)),$C83,$E83,$F83,2016,$I83,1,$H83,$G83*$H83,Options!$B$8))) -> 39.46897308 | R83: =IF(AND(OR(Calculations!$E$2="Orkney Health Board",Calculations!$E$2="Orkney Islands Local Authority"),$F83=1),0,IF(AND(OR(Calculations!$E$2="Shetland Health Board",Calculations!$E$2="Western Isles Health Board",Calculations!$E$2="Shetland Islands Local Authority",Calculations!$E$2="Eilean Siar Local Authority"),OR($F83=1,$F83=5)),0,prem_mort(VALUE(LEFT(Options!$B$24,2)),$C83,$E83,$F83,2016,$I83+$J83,1,$H83,$G83*$H83,Options!$B$8))) -> 39.35905276 | S83: 106.1564634 | T83: 105.8608197 | U83: 5801.45051 | V83: 5785.293584 | W83: 11320.54386 | X83: 11299.70285 | Y83: 106.1564634 | Z83: 105.8608197 | AA83: 636938.7801 | AB83: 635164.9181 | AC83: 34808703.06 | AD83: 34711761.5 | AE83: 67923263.16 | AF83: 67798217.13 | AG83: 636938.7801 | AH83: 635164.9181 | AI83: 6000
B84: Male 25-29 | C84: 26.959763 | D84: 77.78976 | E84: male | F84: 1 | G84: =HLOOKUP(Calculations!$E$2,'Prevalence Rates'!$C$3:$BC$249,'Prevalence Rates'!$BD84,FALSE) -> 0.4096 | H84: =HLOOKUP(Calculations!$E$2,'Population 2016'!$C$3:$BC$249,'Population 2016'!BD84,FALSE) -> 42600 | I84: 0 | J84: =HLOOKUP(Results!E$4,Targeting!$C$3:$F$249,Targeting!$G84,FALSE) -> 6564 | K84: =IF(AND(OR(Calculations!$E$2="Orkney Health Board",Calculations!$E$2="Orkney Islands Local Authority"),$F84=1),0,IF(AND(OR(Calculations!$E$2="Shetland Health Board",Calculations!$E$2="Western Isles Health Board",Calculations!$E$2="Shetland Islands Local Authority",Calculations!$E$2="Eilean Siar Local Authority"),OR($F84=1,$F84=5)),0,new_ci(VALUE(LEFT(Options!$B$24,2)),$C84,$E84,$F84,2016,$I84,1,$H84,$G84*$H84,Options!$B$8))) -> 65.4746096 | L84: =IF(AND(OR(Calculations!$E$2="Orkney Health Board",Calculations!$E$2="Orkney Islands Local Authority"),$F84=1),0,IF(AND(OR(Calculations!$E$2="Shetland Health Board",Calculations!$E$2="Western Isles Health Board",Calculations!$E$2="Shetland Islands Local Authority",Calculations!$E$2="Eilean Siar Local Authority"),OR($F84=1,$F84=5)),0,new_ci(VALUE(LEFT(Options!$B$24,2)),$C84,$E84,$F84,2016,$I84+$J84,1,$H84,$G84*$H84,Options!$B$8))) -> 65.30152676 | M84: =IF(AND(OR(Calculations!$E$2="Orkney Health Board",Calculations!$E$2="Orkney Islands Local Authority"),$F84=1),0,IF(AND(OR(Calculations!$E$2="Shetland Health Board",Calculations!$E$2="Western Isles Health Board",Calculations!$E$2="Shetland Islands Local Authority",Calculations!$E$2="Eilean Siar Local Authority"),OR($F84=1,$F84=5)),0,new_yllv2(VALUE(LEFT(Options!$B$24,2)),$C84,$D84,$E84,$F84,2016,$I84,1,$H84,$G84*$H84,Options!$B$8))) -> 3262.5996 | N84: =IF(AND(OR(Calculations!$E$2="Orkney Health Board",Calculations!$E$2="Orkney Islands Local Authority"),$F84=1),0,IF(AND(OR(Calculations!$E$2="Shetland Health Board",Calculations!$E$2="Western Isles Health Board",Calculations!$E$2="Shetland Islands Local Authority",Calculations!$E$2="Eilean Siar Local Authority"),OR($F84=1,$F84=5)),0,new_yllv2(VALUE(LEFT(Options!$B$24,2)),$C84,$D84,$E84,$F84,2016,$I84+$J84,1,$H84,$G84*$H84,Options!$B$8))) -> 3253.974883 | O84: =IF(AND(OR(Calculations!$E$2="Orkney Health Board",Calculations!$E$2="Orkney Islands Local Authority"),$F84=1),0,IF(AND(OR(Calculations!$E$2="Shetland Health Board",Calculations!$E$2="Western Isles Health Board",Calculations!$E$2="Shetland Islands Local Authority",Calculations!$E$2="Eilean Siar Local Authority"),OR($F84=1,$F84=5)),0,hosp_count(VALUE(LEFT(Options!$B$24,2)),$C84,$E84,$F84,2016,$I84,1,$H84,$G84*$H84, Options!$B$8))) -> 5739.727444 | P84: =IF(AND(OR(Calculations!$E$2="Orkney Health Board",Calculations!$E$2="Orkney Islands Local Authority"),$F84=1),0,IF(AND(OR(Calculations!$E$2="Shetland Health Board",Calculations!$E$2="Western Isles Health Board",Calculations!$E$2="Shetland Islands Local Authority",Calculations!$E$2="Eilean Siar Local Authority"),OR($F84=1,$F84=5)),0,hosp_count(VALUE(LEFT(Options!$B$24,2)),$C84,$E84,$F84,2016,$I84+$J84,1,$H84,$G84*$H84, Options!$B$8))) -> 5729.485503 | Q84: =IF(AND(OR(Calculations!$E$2="Orkney Health Board",Calculations!$E$2="Orkney Islands Local Authority"),$F84=1),0,IF(AND(OR(Calculations!$E$2="Shetland Health Board",Calculations!$E$2="Western Isles Health Board",Calculations!$E$2="Shetland Islands Local Authority",Calculations!$E$2="Eilean Siar Local Authority"),OR($F84=1,$F84=5)),0,prem_mort(VALUE(LEFT(Options!$B$24,2)),$C84,$E84,$F84,2016,$I84,1,$H84,$G84*$H84,Options!$B$8))) -> 65.4746096 | R84: =IF(AND(OR(Calculations!$E$2="Orkney Health Board",Calculations!$E$2="Orkney Islands Local Authority"),$F84=1),0,IF(AND(OR(Calculations!$E$2="Shetland Health Board",Calculations!$E$2="Western Isles Health Board",Calculations!$E$2="Shetland Islands Local Authority",Calculations!$E$2="Eilean Siar Local Authority"),OR($F84=1,$F84=5)),0,prem_mort(VALUE(LEFT(Options!$B$24,2)),$C84,$E84,$F84,2016,$I84+$J84,1,$H84,$G84*$H84,Options!$B$8))) -> 65.30152676 | S84: 153.6962667 | T84: 153.2899689 | U84: 7658.684506 | V84: 7638.438692 | W84: 13473.5386 | X84: 13449.49649 | Y84: 153.6962667 | Z84: 153.2899689 | AA84: 922177.5999 | AB84: 919739.8135 | AC84: 45952107.04 | AD84: 45830632.15 | AE84: 80841231.6 | AF84: 80696978.91 | AG84: 922177.5999 | AH84: 919739.8135 | AI84: 6000
B85: Male 30-34 | C85: 31.981522 | D85: 78.06152 | E85: male | F85: 1 | G85: =HLOOKUP(Calculations!$E$2,'Prevalence Rates'!$C$3:$BC$249,'Prevalence Rates'!$BD85,FALSE) -> 0.4096 | H85: =HLOOKUP(Calculations!$E$2,'Population 2016'!$C$3:$BC$249,'Population 2016'!BD85,FALSE) -> 38006 | I85: 0 | J85: =HLOOKUP(Results!E$4,Targeting!$C$3:$F$249,Targeting!$G85,FALSE) -> 5856 | K85: =IF(AND(OR(Calculations!$E$2="Orkney Health Board",Calculations!$E$2="Orkney Islands Local Authority"),$F85=1),0,IF(AND(OR(Calculations!$E$2="Shetland Health Board",Calculations!$E$2="Western Isles Health Board",Calculations!$E$2="Shetland Islands Local Authority",Calculations!$E$2="Eilean Siar Local Authority"),OR($F85=1,$F85=5)),0,new_ci(VALUE(LEFT(Options!$B$24,2)),$C85,$E85,$F85,2016,$I85,1,$H85,$G85*$H85,Options!$B$8))) -> 85.31003182 | L85: =IF(AND(OR(Calculations!$E$2="Orkney Health Board",Calculations!$E$2="Orkney Islands Local Authority"),$F85=1),0,IF(AND(OR(Calculations!$E$2="Shetland Health Board",Calculations!$E$2="Western Isles Health Board",Calculations!$E$2="Shetland Islands Local Authority",Calculations!$E$2="Eilean Siar Local Authority"),OR($F85=1,$F85=5)),0,new_ci(VALUE(LEFT(Options!$B$24,2)),$C85,$E85,$F85,2016,$I85+$J85,1,$H85,$G85*$H85,Options!$B$8))) -> 85.08465136 | M85: =IF(AND(OR(Calculations!$E$2="Orkney Health Board",Calculations!$E$2="Orkney Islands Local Authority"),$F85=1),0,IF(AND(OR(Calculations!$E$2="Shetland Health Board",Calculations!$E$2="Western Isles Health Board",Calculations!$E$2="Shetland Islands Local Authority",Calculations!$E$2="Eilean Siar Local Authority"),OR($F85=1,$F85=5)),0,new_yllv2(VALUE(LEFT(Options!$B$24,2)),$C85,$D85,$E85,$F85,2016,$I85,1,$H85,$G85*$H85,Options!$B$8))) -> 3845.776064 | N85: =IF(AND(OR(Calculations!$E$2="Orkney Health Board",Calculations!$E$2="Orkney Islands Local Authority"),$F85=1),0,IF(AND(OR(Calculations!$E$2="Shetland Health Board",Calculations!$E$2="Western Isles Health Board",Calculations!$E$2="Shetland Islands Local Authority",Calculations!$E$2="Eilean Siar Local Authority"),OR($F85=1,$F85=5)),0,new_yllv2(VALUE(LEFT(Options!$B$24,2)),$C85,$D85,$E85,$F85,2016,$I85+$J85,1,$H85,$G85*$H85,Options!$B$8))) -> 3835.615913 | O85: =IF(AND(OR(Calculations!$E$2="Orkney Health Board",Calculations!$E$2="Orkney Islands Local Authority"),$F85=1),0,IF(AND(OR(Calculations!$E$2="Shetland Health Board",Calculations!$E$2="Western Isles Health Board",Calculations!$E$2="Shetland Islands Local Authority",Calculations!$E$2="Eilean Siar Local Authority"),OR($F85=1,$F85=5)),0,hosp_count(VALUE(LEFT(Options!$B$24,2)),$C85,$E85,$F85,2016,$I85,1,$H85,$G85*$H85, Options!$B$8))) -> 6119.924679 | P85: =IF(AND(OR(Calculations!$E$2="Orkney Health Board",Calculations!$E$2="Orkney Islands Local Authority"),$F85=1),0,IF(AND(OR(Calculations!$E$2="Shetland Health Board",Calculations!$E$2="Western Isles Health Board",Calculations!$E$2="Shetland Islands Local Authority",Calculations!$E$2="Eilean Siar Local Authority"),OR($F85=1,$F85=5)),0,hosp_count(VALUE(LEFT(Options!$B$24,2)),$C85,$E85,$F85,2016,$I85+$J85,1,$H85,$G85*$H85, Options!$B$8))) -> 6109.004568 | Q85: =IF(AND(OR(Calculations!$E$2="Orkney Health Board",Calculations!$E$2="Orkney Islands Local Authority"),$F85=1),0,IF(AND(OR(Calculations!$E$2="Shetland Health Board",Calculations!$E$2="Western Isles Health Board",Calculations!$E$2="Shetland Islands Local Authority",Calculations!$E$2="Eilean Siar Local Authority"),OR($F85=1,$F85=5)),0,prem_mort(VALUE(LEFT(Options!$B$24,2)),$C85,$E85,$F85,2016,$I85,1,$H85,$G85*$H85,Options!$B$8))) -> 85.31003182 | R85: =IF(AND(OR(Calculations!$E$2="Orkney Health Board",Calculations!$E$2="Orkney Islands Local Authority"),$F85=1),0,IF(AND(OR(Calculations!$E$2="Shetland Health Board",Calculations!$E$2="Western Isles Health Board",Calculations!$E$2="Shetland Islands Local Authority",Calculations!$E$2="Eilean Siar Local Authority"),OR($F85=1,$F85=5)),0,prem_mort(VALUE(LEFT(Options!$B$24,2)),$C85,$E85,$F85,2016,$I85+$J85,1,$H85,$G85*$H85,Options!$B$8))) -> 85.08465136 | S85: 224.464642 | T85: 223.8716291 | U85: 10118.86561 | V85: 10092.13259 | W85: 16102.52244 | X85: 16073.78984 | Y85: 224.464642 | Z85: 223.8716291 | AA85: 1459020.173 | AB85: 1455165.589 | AC85: 65772626.47 | AD85: 65598861.85 | AE85: 104666395.9 | AF85: 104479634 | AG85: 1459020.173 | AH85: 1455165.589 | AI85: 6500
B86: Male 35-39 | C86: 36.92601 | D86: 78.33601 | E86: male | F86: 1 | G86: =HLOOKUP(Calculations!$E$2,'Prevalence Rates'!$C$3:$BC$249,'Prevalence Rates'!$BD86,FALSE) -> 0.4741 | H86: =HLOOKUP(Calculations!$E$2,'Population 2016'!$C$3:$BC$249,'Population 2016'!BD86,FALSE) -> 32984 | I86: 0 | J86: =HLOOKUP(Results!E$4,Targeting!$C$3:$F$249,Targeting!$G86,FALSE) -> 5082 | K86: =IF(AND(OR(Calculations!$E$2="Orkney Health Board",Calculations!$E$2="Orkney Islands Local Authority"),$F86=1),0,IF(AND(OR(Calculations!$E$2="Shetland Health Board",Calculations!$E$2="Western Isles Health Board",Calculations!$E$2="Shetland Islands Local Authority",Calculations!$E$2="Eilean Siar Local Authority"),OR($F86=1,$F86=5)),0,new_ci(VALUE(LEFT(Options!$B$24,2)),$C86,$E86,$F86,2016,$I86,1,$H86,$G86*$H86,Options!$B$8))) -> 107.4811575 | L86: =IF(AND(OR(Calculations!$E$2="Orkney Health Board",Calculations!$E$2="Orkney Islands Local Authority"),$F86=1),0,IF(AND(OR(Calculations!$E$2="Shetland Health Board",Calculations!$E$2="Western Isles Health Board",Calculations!$E$2="Shetland Islands Local Authority",Calculations!$E$2="Eilean Siar Local Authority"),OR($F86=1,$F86=5)),0,new_ci(VALUE(LEFT(Options!$B$24,2)),$C86,$E86,$F86,2016,$I86+$J86,1,$H86,$G86*$H86,Options!$B$8))) -> 107.2089498 | M86: =IF(AND(OR(Calculations!$E$2="Orkney Health Board",Calculations!$E$2="Orkney Islands Local Authority"),$F86=1),0,IF(AND(OR(Calculations!$E$2="Shetland Health Board",Calculations!$E$2="Western Isles Health Board",Calculations!$E$2="Shetland Islands Local Authority",Calculations!$E$2="Eilean Siar Local Authority"),OR($F86=1,$F86=5)),0,new_yllv2(VALUE(LEFT(Options!$B$24,2)),$C86,$D86,$E86,$F86,2016,$I86,1,$H86,$G86*$H86,Options!$B$8))) -> 4343.313573 | N86: =IF(AND(OR(Calculations!$E$2="Orkney Health Board",Calculations!$E$2="Orkney Islands Local Authority"),$F86=1),0,IF(AND(OR(Calculations!$E$2="Shetland Health Board",Calculations!$E$2="Western Isles Health Board",Calculations!$E$2="Shetland Islands Local Authority",Calculations!$E$2="Eilean Siar Local Authority"),OR($F86=1,$F86=5)),0,new_yllv2(VALUE(LEFT(Options!$B$24,2)),$C86,$D86,$E86,$F86,2016,$I86+$J86,1,$H86,$G86*$H86,Options!$B$8))) -> 4332.31366 | O86: =IF(AND(OR(Calculations!$E$2="Orkney Health Board",Calculations!$E$2="Orkney Islands Local Authority"),$F86=1),0,IF(AND(OR(Calculations!$E$2="Shetland Health Board",Calculations!$E$2="Western Isles Health Board",Calculations!$E$2="Shetland Islands Local Authority",Calculations!$E$2="Eilean Siar Local Authority"),OR($F86=1,$F86=5)),0,hosp_count(VALUE(LEFT(Options!$B$24,2)),$C86,$E86,$F86,2016,$I86,1,$H86,$G86*$H86, Options!$B$8))) -> 6330.212896 | P86: =IF(AND(OR(Calculations!$E$2="Orkney Health Board",Calculations!$E$2="Orkney Islands Local Authority"),$F86=1),0,IF(AND(OR(Calculations!$E$2="Shetland Health Board",Calculations!$E$2="Western Isles Health Board",Calculations!$E$2="Shetland Islands Local Authority",Calculations!$E$2="Eilean Siar Local Authority"),OR($F86=1,$F86=5)),0,hosp_count(VALUE(LEFT(Options!$B$24,2)),$C86,$E86,$F86,2016,$I86+$J86,1,$H86,$G86*$H86, Options!$B$8))) -> 6319.202878 | Q86: =IF(AND(OR(Calculations!$E$2="Orkney Health Board",Calculations!$E$2="Orkney Islands Local Authority"),$F86=1),0,IF(AND(OR(Calculations!$E$2="Shetland Health Board",Calculations!$E$2="Western Isles Health Board",Calculations!$E$2="Shetland Islands Local Authority",Calculations!$E$2="Eilean Siar Local Authority"),OR($F86=1,$F86=5)),0,prem_mort(VALUE(LEFT(Options!$B$24,2)),$C86,$E86,$F86,2016,$I86,1,$H86,$G86*$H86,Options!$B$8))) -> 107.4811575 | R86: =IF(AND(OR(Calculations!$E$2="Orkney Health Board",Calculations!$E$2="Orkney Islands Local Authority"),$F86=1),0,IF(AND(OR(Calculations!$E$2="Shetland Health Board",Calculations!$E$2="Western Isles Health Board",Calculations!$E$2="Shetland Islands Local Authority",Calculations!$E$2="Eilean Siar Local Authority"),OR($F86=1,$F86=5)),0,prem_mort(VALUE(LEFT(Options!$B$24,2)),$C86,$E86,$F86,2016,$I86+$J86,1,$H86,$G86*$H86,Options!$B$8))) -> 107.2089498 | S86: 325.8584691 | T86: 325.0331972 | U86: 13167.94074 | V86: 13134.5915 | W86: 19191.76842 | X86: 19158.38855 | Y86: 325.8584691 | Z86: 325.0331972 | AA86: 2281009.284 | AB86: 2275232.381 | AC86: 92175585.16 | AD86: 91942140.5 | AE86: 134342378.9 | AF86: 134108719.8 | AG86: 2281009.284 | AH86: 2275232.381 | AI86: 7000
B87: Male 40-44 | C87: 42.067703 | D87: 78.9077 | E87: male | F87: 1 | G87: =HLOOKUP(Calculations!$E$2,'Prevalence Rates'!$C$3:$BC$249,'Prevalence Rates'!$BD87,FALSE) -> 0.4741 | H87: =HLOOKUP(Calculations!$E$2,'Population 2016'!$C$3:$BC$249,'Population 2016'!BD87,FALSE) -> 31623 | I87: 0 | J87: =HLOOKUP(Results!E$4,Targeting!$C$3:$F$249,Targeting!$G87,FALSE) -> 4872 | K87: =IF(AND(OR(Calculations!$E$2="Orkney Health Board",Calculations!$E$2="Orkney Islands Local Authority"),$F87=1),0,IF(AND(OR(Calculations!$E$2="Shetland Health Board",Calculations!$E$2="Western Isles Health Board",Calculations!$E$2="Shetland Islands Local Authority",Calculations!$E$2="Eilean Siar Local Authority"),OR($F87=1,$F87=5)),0,new_ci(VALUE(LEFT(Options!$B$24,2)),$C87,$E87,$F87,2016,$I87,1,$H87,$G87*$H87,Options!$B$8))) -> 151.7923623 | L87: =IF(AND(OR(Calculations!$E$2="Orkney Health Board",Calculations!$E$2="Orkney Islands Local Authority"),$F87=1),0,IF(AND(OR(Calculations!$E$2="Shetland Health Board",Calculations!$E$2="Western Isles Health Board",Calculations!$E$2="Shetland Islands Local Authority",Calculations!$E$2="Eilean Siar Local Authority"),OR($F87=1,$F87=5)),0,new_ci(VALUE(LEFT(Options!$B$24,2)),$C87,$E87,$F87,2016,$I87+$J87,1,$H87,$G87*$H87,Options!$B$8))) -> 151.4084151 | M87: =IF(AND(OR(Calculations!$E$2="Orkney Health Board",Calculations!$E$2="Orkney Islands Local Authority"),$F87=1),0,IF(AND(OR(Calculations!$E$2="Shetland Health Board",Calculations!$E$2="Western Isles Health Board",Calculations!$E$2="Shetland Islands Local Authority",Calculations!$E$2="Eilean Siar Local Authority"),OR($F87=1,$F87=5)),0,new_yllv2(VALUE(LEFT(Options!$B$24,2)),$C87,$D87,$E87,$F87,2016,$I87,1,$H87,$G87*$H87,Options!$B$8))) -> 5440.23781 | N87: =IF(AND(OR(Calculations!$E$2="Orkney Health Board",Calculations!$E$2="Orkney Islands Local Authority"),$F87=1),0,IF(AND(OR(Calculations!$E$2="Shetland Health Board",Calculations!$E$2="Western Isles Health Board",Calculations!$E$2="Shetland Islands Local Authority",Calculations!$E$2="Eilean Siar Local Authority"),OR($F87=1,$F87=5)),0,new_yllv2(VALUE(LEFT(Options!$B$24,2)),$C87,$D87,$E87,$F87,2016,$I87+$J87,1,$H87,$G87*$H87,Options!$B$8))) -> 5426.477143 | O87: =IF(AND(OR(Calculations!$E$2="Orkney Health Board",Calculations!$E$2="Orkney Islands Local Authority"),$F87=1),0,IF(AND(OR(Calculations!$E$2="Shetland Health Board",Calculations!$E$2="Western Isles Health Board",Calculations!$E$2="Shetland Islands Local Authority",Calculations!$E$2="Eilean Siar Local Authority"),OR($F87=1,$F87=5)),0,hosp_count(VALUE(LEFT(Options!$B$24,2)),$C87,$E87,$F87,2016,$I87,1,$H87,$G87*$H87, Options!$B$8))) -> 7284.154202 | P87: =IF(AND(OR(Calculations!$E$2="Orkney Health Board",Calculations!$E$2="Orkney Islands Local Authority"),$F87=1),0,IF(AND(OR(Calculations!$E$2="Shetland Health Board",Calculations!$E$2="Western Isles Health Board",Calculations!$E$2="Shetland Islands Local Authority",Calculations!$E$2="Eilean Siar Local Authority"),OR($F87=1,$F87=5)),0,hosp_count(VALUE(LEFT(Options!$B$24,2)),$C87,$E87,$F87,2016,$I87+$J87,1,$H87,$G87*$H87, Options!$B$8))) -> 7271.485803 | Q87: =IF(AND(OR(Calculations!$E$2="Orkney Health Board",Calculations!$E$2="Orkney Islands Local Authority"),$F87=1),0,IF(AND(OR(Calculations!$E$2="Shetland Health Board",Calculations!$E$2="Western Isles Health Board",Calculations!$E$2="Shetland Islands Local Authority",Calculations!$E$2="Eilean Siar Local Authority"),OR($F87=1,$F87=5)),0,prem_mort(VALUE(LEFT(Options!$B$24,2)),$C87,$E87,$F87,2016,$I87,1,$H87,$G87*$H87,Options!$B$8))) -> 151.7923623 | R87: =IF(AND(OR(Calculations!$E$2="Orkney Health Board",Calculations!$E$2="Orkney Islands Local Authority"),$F87=1),0,IF(AND(OR(Calculations!$E$2="Shetland Health Board",Calculations!$E$2="Western Isles Health Board",Calculations!$E$2="Shetland Islands Local Authority",Calculations!$E$2="Eilean Siar Local Authority"),OR($F87=1,$F87=5)),0,prem_mort(VALUE(LEFT(Options!$B$24,2)),$C87,$E87,$F87,2016,$I87+$J87,1,$H87,$G87*$H87,Options!$B$8))) -> 151.4084151 | S87: 480.0062053 | T87: 478.7920662 | U87: 17203.42096 | V87: 17159.90622 | W87: 23034.35538 | X87: 22994.29467 | Y87: 480.0062053 | Z87: 478.7920662 | AA87: 3360043.437 | AB87: 3351544.463 | AC87: 120423946.7 | AD87: 120119343.5 | AE87: 161240487.7 | AF87: 160960062.7 | AG87: 3360043.437 | AH87: 3351544.463 | AI87: 7000
B88: Male 45-49 | C88: 47.038155 | D88: 79.41815 | E88: male | F88: 1 | G88: =HLOOKUP(Calculations!$E$2,'Prevalence Rates'!$C$3:$BC$249,'Prevalence Rates'!$BD88,FALSE) -> 0.4347 | H88: =HLOOKUP(Calculations!$E$2,'Population 2016'!$C$3:$BC$249,'Population 2016'!BD88,FALSE) -> 35878 | I88: 0 | J88: =HLOOKUP(Results!E$4,Targeting!$C$3:$F$249,Targeting!$G88,FALSE) -> 5528 | K88: =IF(AND(OR(Calculations!$E$2="Orkney Health Board",Calculations!$E$2="Orkney Islands Local Authority"),$F88=1),0,IF(AND(OR(Calculations!$E$2="Shetland Health Board",Calculations!$E$2="Western Isles Health Board",Calculations!$E$2="Shetland Islands Local Authority",Calculations!$E$2="Eilean Siar Local Authority"),OR($F88=1,$F88=5)),0,new_ci(VALUE(LEFT(Options!$B$24,2)),$C88,$E88,$F88,2016,$I88,1,$H88,$G88*$H88,Options!$B$8))) -> 250.3338635 | L88: =IF(AND(OR(Calculations!$E$2="Orkney Health Board",Calculations!$E$2="Orkney Islands Local Authority"),$F88=1),0,IF(AND(OR(Calculations!$E$2="Shetland Health Board",Calculations!$E$2="Western Isles Health Board",Calculations!$E$2="Shetland Islands Local Authority",Calculations!$E$2="Eilean Siar Local Authority"),OR($F88=1,$F88=5)),0,new_ci(VALUE(LEFT(Options!$B$24,2)),$C88,$E88,$F88,2016,$I88+$J88,1,$H88,$G88*$H88,Options!$B$8))) -> 249.6857194 | M88: =IF(AND(OR(Calculations!$E$2="Orkney Health Board",Calculations!$E$2="Orkney Islands Local Authority"),$F88=1),0,IF(AND(OR(Calculations!$E$2="Shetland Health Board",Calculations!$E$2="Western Isles Health Board",Calculations!$E$2="Shetland Islands Local Authority",Calculations!$E$2="Eilean Siar Local Authority"),OR($F88=1,$F88=5)),0,new_yllv2(VALUE(LEFT(Options!$B$24,2)),$C88,$D88,$E88,$F88,2016,$I88,1,$H88,$G88*$H88,Options!$B$8))) -> 7855.475386 | N88: =IF(AND(OR(Calculations!$E$2="Orkney Health Board",Calculations!$E$2="Orkney Islands Local Authority"),$F88=1),0,IF(AND(OR(Calculations!$E$2="Shetland Health Board",Calculations!$E$2="Western Isles Health Board",Calculations!$E$2="Shetland Islands Local Authority",Calculations!$E$2="Eilean Siar Local Authority"),OR($F88=1,$F88=5)),0,new_yllv2(VALUE(LEFT(Options!$B$24,2)),$C88,$D88,$E88,$F88,2016,$I88+$J88,1,$H88,$G88*$H88,Options!$B$8))) -> 7835.136625 | O88: =IF(AND(OR(Calculations!$E$2="Orkney Health Board",Calculations!$E$2="Orkney Islands Local Authority"),$F88=1),0,IF(AND(OR(Calculations!$E$2="Shetland Health Board",Calculations!$E$2="Western Isles Health Board",Calculations!$E$2="Shetland Islands Local Authority",Calculations!$E$2="Eilean Siar Local Authority"),OR($F88=1,$F88=5)),0,hosp_count(VALUE(LEFT(Options!$B$24,2)),$C88,$E88,$F88,2016,$I88,1,$H88,$G88*$H88, Options!$B$8))) -> 9858.835372 | P88: =IF(AND(OR(Calculations!$E$2="Orkney Health Board",Calculations!$E$2="Orkney Islands Local Authority"),$F88=1),0,IF(AND(OR(Calculations!$E$2="Shetland Health Board",Calculations!$E$2="Western Isles Health Board",Calculations!$E$2="Shetland Islands Local Authority",Calculations!$E$2="Eilean Siar Local Authority"),OR($F88=1,$F88=5)),0,hosp_count(VALUE(LEFT(Options!$B$24,2)),$C88,$E88,$F88,2016,$I88+$J88,1,$H88,$G88*$H88, Options!$B$8))) -> 9841.419443 | Q88: =IF(AND(OR(Calculations!$E$2="Orkney Health Board",Calculations!$E$2="Orkney Islands Local Authority"),$F88=1),0,IF(AND(OR(Calculations!$E$2="Shetland Health Board",Calculations!$E$2="Western Isles Health Board",Calculations!$E$2="Shetland Islands Local Authority",Calculations!$E$2="Eilean Siar Local Authority"),OR($F88=1,$F88=5)),0,prem_mort(VALUE(LEFT(Options!$B$24,2)),$C88,$E88,$F88,2016,$I88,1,$H88,$G88*$H88,Options!$B$8))) -> 250.3338635 | R88: =IF(AND(OR(Calculations!$E$2="Orkney Health Board",Calculations!$E$2="Orkney Islands Local Authority"),$F88=1),0,IF(AND(OR(Calculations!$E$2="Shetland Health Board",Calculations!$E$2="Western Isles Health Board",Calculations!$E$2="Shetland Islands Local Authority",Calculations!$E$2="Eilean Siar Local Authority"),OR($F88=1,$F88=5)),0,prem_mort(VALUE(LEFT(Options!$B$24,2)),$C88,$E88,$F88,2016,$I88+$J88,1,$H88,$G88*$H88,Options!$B$8))) -> 249.6857194 | S88: 697.7363943 | T88: 695.9298717 | U88: 21894.96456 | V88: 21838.27589 | W88: 27478.77633 | X88: 27430.23425 | Y88: 697.7363943 | Z88: 695.9298717 | AA88: 4884154.76 | AB88: 4871509.102 | AC88: 153264751.9 | AD88: 152867931.2 | AE88: 192351434.3 | AF88: 192011639.7 | AG88: 4884154.76 | AH88: 4871509.102 | AI88: 7000
B89: Male 50-54 | C89: 51.998646 | D89: 79.98865 | E89: male | F89: 1 | G89: =HLOOKUP(Calculations!$E$2,'Prevalence Rates'!$C$3:$BC$249,'Prevalence Rates'!$BD89,FALSE) -> 0.4347 | H89: =HLOOKUP(Calculations!$E$2,'Population 2016'!$C$3:$BC$249,'Population 2016'!BD89,FALSE) -> 36922 | I89: 0 | J89: =HLOOKUP(Results!E$4,Targeting!$C$3:$F$249,Targeting!$G89,FALSE) -> 5689 | K89: =IF(AND(OR(Calculations!$E$2="Orkney Health Board",Calculations!$E$2="Orkney Islands Local Authority"),$F89=1),0,IF(AND(OR(Calculations!$E$2="Shetland Health Board",Calculations!$E$2="Western Isles Health Board",Calculations!$E$2="Shetland Islands Local Authority",Calculations!$E$2="Eilean Siar Local Authority"),OR($F89=1,$F89=5)),0,new_ci(VALUE(LEFT(Options!$B$24,2)),$C89,$E89,$F89,2016,$I89,1,$H89,$G89*$H89,Options!$B$8))) -> 373.9917078 | L89: =IF(AND(OR(Calculations!$E$2="Orkney Health Board",Calculations!$E$2="Orkney Islands Local Authority"),$F89=1),0,IF(AND(OR(Calculations!$E$2="Shetland Health Board",Calculations!$E$2="Western Isles Health Board",Calculations!$E$2="Shetland Islands Local Authority",Calculations!$E$2="Eilean Siar Local Authority"),OR($F89=1,$F89=5)),0,new_ci(VALUE(LEFT(Options!$B$24,2)),$C89,$E89,$F89,2016,$I89+$J89,1,$H89,$G89*$H89,Options!$B$8))) -> 373.0258567 | M89: =IF(AND(OR(Calculations!$E$2="Orkney Health Board",Calculations!$E$2="Orkney Islands Local Authority"),$F89=1),0,IF(AND(OR(Calculations!$E$2="Shetland Health Board",Calculations!$E$2="Western Isles Health Board",Calculations!$E$2="Shetland Islands Local Authority",Calculations!$E$2="Eilean Siar Local Authority"),OR($F89=1,$F89=5)),0,new_yllv2(VALUE(LEFT(Options!$B$24,2)),$C89,$D89,$E89,$F89,2016,$I89,1,$H89,$G89*$H89,Options!$B$8))) -> 10094.03769 | N89: =IF(AND(OR(Calculations!$E$2="Orkney Health Board",Calculations!$E$2="Orkney Islands Local Authority"),$F89=1),0,IF(AND(OR(Calculations!$E$2="Shetland Health Board",Calculations!$E$2="Western Isles Health Board",Calculations!$E$2="Shetland Islands Local Authority",Calculations!$E$2="Eilean Siar Local Authority"),OR($F89=1,$F89=5)),0,new_yllv2(VALUE(LEFT(Options!$B$24,2)),$C89,$D89,$E89,$F89,2016,$I89+$J89,1,$H89,$G89*$H89,Options!$B$8))) -> 10067.96936 | O89: =IF(AND(OR(Calculations!$E$2="Orkney Health Board",Calculations!$E$2="Orkney Islands Local Authority"),$F89=1),0,IF(AND(OR(Calculations!$E$2="Shetland Health Board",Calculations!$E$2="Western Isles Health Board",Calculations!$E$2="Shetland Islands Local Authority",Calculations!$E$2="Eilean Siar Local Authority"),OR($F89=1,$F89=5)),0,hosp_count(VALUE(LEFT(Options!$B$24,2)),$C89,$E89,$F89,2016,$I89,1,$H89,$G89*$H89, Options!$B$8))) -> 12099.02518 | P89: =IF(AND(OR(Calculations!$E$2="Orkney Health Board",Calculations!$E$2="Orkney Islands Local Authority"),$F89=1),0,IF(AND(OR(Calculations!$E$2="Shetland Health Board",Calculations!$E$2="Western Isles Health Board",Calculations!$E$2="Shetland Islands Local Authority",Calculations!$E$2="Eilean Siar Local Authority"),OR($F89=1,$F89=5)),0,hosp_count(VALUE(LEFT(Options!$B$24,2)),$C89,$E89,$F89,2016,$I89+$J89,1,$H89,$G89*$H89, Options!$B$8))) -> 12077.65135 | Q89: =IF(AND(OR(Calculations!$E$2="Orkney Health Board",Calculations!$E$2="Orkney Islands Local Authority"),$F89=1),0,IF(AND(OR(Calculations!$E$2="Shetland Health Board",Calculations!$E$2="Western Isles Health Board",Calculations!$E$2="Shetland Islands Local Authority",Calculations!$E$2="Eilean Siar Local Authority"),OR($F89=1,$F89=5)),0,prem_mort(VALUE(LEFT(Options!$B$24,2)),$C89,$E89,$F89,2016,$I89,1,$H89,$G89*$H89,Options!$B$8))) -> 373.9917078 | R89: =IF(AND(OR(Calculations!$E$2="Orkney Health Board",Calculations!$E$2="Orkney Islands Local Authority"),$F89=1),0,IF(AND(OR(Calculations!$E$2="Shetland Health Board",Calculations!$E$2="Western Isles Health Board",Calculations!$E$2="Shetland Islands Local Authority",Calculations!$E$2="Eilean Siar Local Authority"),OR($F89=1,$F89=5)),0,prem_mort(VALUE(LEFT(Options!$B$24,2)),$C89,$E89,$F89,2016,$I89+$J89,1,$H89,$G89*$H89,Options!$B$8))) -> 373.0258567 | S89: 1012.923752 | T89: 1010.307829 | U89: 27338.81613 | V89: 27268.21235 | W89: 32769.14897 | X89: 32711.25983 | Y89: 1012.923752 | Z89: 1010.307829 | AA89: 7090466.266 | AB89: 7072154.805 | AC89: 191371712.9 | AD89: 190877486.5 | AE89: 229384042.8 | AF89: 228978818.8 | AG89: 7090466.266 | AH89: 7072154.805 | AI89: 7000
B90: Male 55-59 | C90: 56.950867 | D90: 80.66087 | E90: male | F90: 1 | G90: =HLOOKUP(Calculations!$E$2,'Prevalence Rates'!$C$3:$BC$249,'Prevalence Rates'!$BD90,FALSE) -> 0.4326 | H90: =HLOOKUP(Calculations!$E$2,'Population 2016'!$C$3:$BC$249,'Population 2016'!BD90,FALSE) -> 33251 | I90: 0 | J90: =HLOOKUP(Results!E$4,Targeting!$C$3:$F$249,Targeting!$G90,FALSE) -> 5123 | K90: =IF(AND(OR(Calculations!$E$2="Orkney Health Board",Calculations!$E$2="Orkney Islands Local Authority"),$F90=1),0,IF(AND(OR(Calculations!$E$2="Shetland Health Board",Calculations!$E$2="Western Isles Health Board",Calculations!$E$2="Shetland Islands Local Authority",Calculations!$E$2="Eilean Siar Local Authority"),OR($F90=1,$F90=5)),0,new_ci(VALUE(LEFT(Options!$B$24,2)),$C90,$E90,$F90,2016,$I90,1,$H90,$G90*$H90,Options!$B$8))) -> 488.2620915 | L90: =IF(AND(OR(Calculations!$E$2="Orkney Health Board",Calculations!$E$2="Orkney Islands Local Authority"),$F90=1),0,IF(AND(OR(Calculations!$E$2="Shetland Health Board",Calculations!$E$2="Western Isles Health Board",Calculations!$E$2="Shetland Islands Local Authority",Calculations!$E$2="Eilean Siar Local Authority"),OR($F90=1,$F90=5)),0,new_ci(VALUE(LEFT(Options!$B$24,2)),$C90,$E90,$F90,2016,$I90+$J90,1,$H90,$G90*$H90,Options!$B$8))) -> 487.0042387 | M90: =IF(AND(OR(Calculations!$E$2="Orkney Health Board",Calculations!$E$2="Orkney Islands Local Authority"),$F90=1),0,IF(AND(OR(Calculations!$E$2="Shetland Health Board",Calculations!$E$2="Western Isles Health Board",Calculations!$E$2="Shetland Islands Local Authority",Calculations!$E$2="Eilean Siar Local Authority"),OR($F90=1,$F90=5)),0,new_yllv2(VALUE(LEFT(Options!$B$24,2)),$C90,$D90,$E90,$F90,2016,$I90,1,$H90,$G90*$H90,Options!$B$8))) -> 11088.43356 | N90: =IF(AND(OR(Calculations!$E$2="Orkney Health Board",Calculations!$E$2="Orkney Islands Local Authority"),$F90=1),0,IF(AND(OR(Calculations!$E$2="Shetland Health Board",Calculations!$E$2="Western Isles Health Board",Calculations!$E$2="Shetland Islands Local Authority",Calculations!$E$2="Eilean Siar Local Authority"),OR($F90=1,$F90=5)),0,new_yllv2(VALUE(LEFT(Options!$B$24,2)),$C90,$D90,$E90,$F90,2016,$I90+$J90,1,$H90,$G90*$H90,Options!$B$8))) -> 11059.86772 | O90: =IF(AND(OR(Calculations!$E$2="Orkney Health Board",Calculations!$E$2="Orkney Islands Local Authority"),$F90=1),0,IF(AND(OR(Calculations!$E$2="Shetland Health Board",Calculations!$E$2="Western Isles Health Board",Calculations!$E$2="Shetland Islands Local Authority",Calculations!$E$2="Eilean Siar Local Authority"),OR($F90=1,$F90=5)),0,hosp_count(VALUE(LEFT(Options!$B$24,2)),$C90,$E90,$F90,2016,$I90,1,$H90,$G90*$H90, Options!$B$8))) -> 12990.03024 | P90: =IF(AND(OR(Calculations!$E$2="Orkney Health Board",Calculations!$E$2="Orkney Islands Local Authority"),$F90=1),0,IF(AND(OR(Calculations!$E$2="Shetland Health Board",Calculations!$E$2="Western Isles Health Board",Calculations!$E$2="Shetland Islands Local Authority",Calculations!$E$2="Eilean Siar Local Authority"),OR($F90=1,$F90=5)),0,hosp_count(VALUE(LEFT(Options!$B$24,2)),$C90,$E90,$F90,2016,$I90+$J90,1,$H90,$G90*$H90, Options!$B$8))) -> 12967.06488 | Q90: =IF(AND(OR(Calculations!$E$2="Orkney Health Board",Calculations!$E$2="Orkney Islands Local Authority"),$F90=1),0,IF(AND(OR(Calculations!$E$2="Shetland Health Board",Calculations!$E$2="Western Isles Health Board",Calculations!$E$2="Shetland Islands Local Authority",Calculations!$E$2="Eilean Siar Local Authority"),OR($F90=1,$F90=5)),0,prem_mort(VALUE(LEFT(Options!$B$24,2)),$C90,$E90,$F90,2016,$I90,1,$H90,$G90*$H90,Options!$B$8))) -> 488.2620915 | R90: =IF(AND(OR(Calculations!$E$2="Orkney Health Board",Calculations!$E$2="Orkney Islands Local Authority"),$F90=1),0,IF(AND(OR(Calculations!$E$2="Shetland Health Board",Calculations!$E$2="Western Isles Health Board",Calculations!$E$2="Shetland Islands Local Authority",Calculations!$E$2="Eilean Siar Local Authority"),OR($F90=1,$F90=5)),0,prem_mort(VALUE(LEFT(Options!$B$24,2)),$C90,$E90,$F90,2016,$I90+$J90,1,$H90,$G90*$H90,Options!$B$8))) -> 487.0042387 | S90: 1468.413255 | T90: 1464.630353 | U90: 33347.66943 | V90: 33261.75972 | W90: 39066.58519 | X90: 38997.5185 | Y90: 1468.413255 | Z90: 1464.630353 | AA90: 9544686.159 | AB90: 9520097.296 | AC90: 216759851.3 | AD90: 216201438.1 | AE90: 253932803.7 | AF90: 253483870.2 | AG90: 9544686.159 | AH90: 9520097.296 | AI90: 6500
B91: Male 60-64 | C91: 61.942989 | D91: 81.61299 | E91: male | F91: 1 | G91: =HLOOKUP(Calculations!$E$2,'Prevalence Rates'!$C$3:$BC$249,'Prevalence Rates'!$BD91,FALSE) -> 0.4326 | H91: =HLOOKUP(Calculations!$E$2,'Population 2016'!$C$3:$BC$249,'Population 2016'!BD91,FALSE) -> 27358 | I91: 0 | J91: =HLOOKUP(Results!E$4,Targeting!$C$3:$F$249,Targeting!$G91,FALSE) -> 4215 | K91: =IF(AND(OR(Calculations!$E$2="Orkney Health Board",Calculations!$E$2="Orkney Islands Local Authority"),$F91=1),0,IF(AND(OR(Calculations!$E$2="Shetland Health Board",Calculations!$E$2="Western Isles Health Board",Calculations!$E$2="Shetland Islands Local Authority",Calculations!$E$2="Eilean Siar Local Authority"),OR($F91=1,$F91=5)),0,new_ci(VALUE(LEFT(Options!$B$24,2)),$C91,$E91,$F91,2016,$I91,1,$H91,$G91*$H91,Options!$B$8))) -> 583.4446364 | L91: =IF(AND(OR(Calculations!$E$2="Orkney Health Board",Calculations!$E$2="Orkney Islands Local Authority"),$F91=1),0,IF(AND(OR(Calculations!$E$2="Shetland Health Board",Calculations!$E$2="Western Isles Health Board",Calculations!$E$2="Shetland Islands Local Authority",Calculations!$E$2="Eilean Siar Local Authority"),OR($F91=1,$F91=5)),0,new_ci(VALUE(LEFT(Options!$B$24,2)),$C91,$E91,$F91,2016,$I91+$J91,1,$H91,$G91*$H91,Options!$B$8))) -> 581.9498263 | M91: =IF(AND(OR(Calculations!$E$2="Orkney Health Board",Calculations!$E$2="Orkney Islands Local Authority"),$F91=1),0,IF(AND(OR(Calculations!$E$2="Shetland Health Board",Calculations!$E$2="Western Isles Health Board",Calculations!$E$2="Shetland Islands Local Authority",Calculations!$E$2="Eilean Siar Local Authority"),OR($F91=1,$F91=5)),0,new_yllv2(VALUE(LEFT(Options!$B$24,2)),$C91,$D91,$E91,$F91,2016,$I91,1,$H91,$G91*$H91,Options!$B$8))) -> 10892.91195 | N91: =IF(AND(OR(Calculations!$E$2="Orkney Health Board",Calculations!$E$2="Orkney Islands Local Authority"),$F91=1),0,IF(AND(OR(Calculations!$E$2="Shetland Health Board",Calculations!$E$2="Western Isles Health Board",Calculations!$E$2="Shetland Islands Local Authority",Calculations!$E$2="Eilean Siar Local Authority"),OR($F91=1,$F91=5)),0,new_yllv2(VALUE(LEFT(Options!$B$24,2)),$C91,$D91,$E91,$F91,2016,$I91+$J91,1,$H91,$G91*$H91,Options!$B$8))) -> 10865.00384 | O91: =IF(AND(OR(Calculations!$E$2="Orkney Health Board",Calculations!$E$2="Orkney Islands Local Authority"),$F91=1),0,IF(AND(OR(Calculations!$E$2="Shetland Health Board",Calculations!$E$2="Western Isles Health Board",Calculations!$E$2="Shetland Islands Local Authority",Calculations!$E$2="Eilean Siar Local Authority"),OR($F91=1,$F91=5)),0,hosp_count(VALUE(LEFT(Options!$B$24,2)),$C91,$E91,$F91,2016,$I91,1,$H91,$G91*$H91, Options!$B$8))) -> 12759.83838 | P91: =IF(AND(OR(Calculations!$E$2="Orkney Health Board",Calculations!$E$2="Orkney Islands Local Authority"),$F91=1),0,IF(AND(OR(Calculations!$E$2="Shetland Health Board",Calculations!$E$2="Western Isles Health Board",Calculations!$E$2="Shetland Islands Local Authority",Calculations!$E$2="Eilean Siar Local Authority"),OR($F91=1,$F91=5)),0,hosp_count(VALUE(LEFT(Options!$B$24,2)),$C91,$E91,$F91,2016,$I91+$J91,1,$H91,$G91*$H91, Options!$B$8))) -> 12737.28031 | Q91: =IF(AND(OR(Calculations!$E$2="Orkney Health Board",Calculations!$E$2="Orkney Islands Local Authority"),$F91=1),0,IF(AND(OR(Calculations!$E$2="Shetland Health Board",Calculations!$E$2="Western Isles Health Board",Calculations!$E$2="Shetland Islands Local Authority",Calculations!$E$2="Eilean Siar Local Authority"),OR($F91=1,$F91=5)),0,prem_mort(VALUE(LEFT(Options!$B$24,2)),$C91,$E91,$F91,2016,$I91,1,$H91,$G91*$H91,Options!$B$8))) -> 583.4446364 | R91: =IF(AND(OR(Calculations!$E$2="Orkney Health Board",Calculations!$E$2="Orkney Islands Local Authority"),$F91=1),0,IF(AND(OR(Calculations!$E$2="Shetland Health Board",Calculations!$E$2="Western Isles Health Board",Calculations!$E$2="Shetland Islands Local Authority",Calculations!$E$2="Eilean Siar Local Authority"),OR($F91=1,$F91=5)),0,prem_mort(VALUE(LEFT(Options!$B$24,2)),$C91,$E91,$F91,2016,$I91+$J91,1,$H91,$G91*$H91,Options!$B$8))) -> 581.9498263 | S91: 2132.62898 | T91: 2127.165093 | U91: 39816.18519 | V91: 39714.17442 | W91: 46640.24555 | X91: 46557.79043 | Y91: 2132.62898 | Z91: 2127.165093 | AA91: 12795773.88 | AB91: 12762990.56 | AC91: 238897111.2 | AD91: 238285046.5 | AE91: 279841473.3 | AF91: 279346742.6 | AG91: 12795773.88 | AH91: 12762990.56 | AI91: 6000
B92: Male 65-69 | C92: 67.05442 | D92: 82.95442 | E92: male | F92: 1 | G92: =HLOOKUP(Calculations!$E$2,'Prevalence Rates'!$C$3:$BC$249,'Prevalence Rates'!$BD92,FALSE) -> 0.3095 | H92: =HLOOKUP(Calculations!$E$2,'Population 2016'!$C$3:$BC$249,'Population 2016'!BD92,FALSE) -> 25567 | I92: 0 | J92: =HLOOKUP(Results!E$4,Targeting!$C$3:$F$249,Targeting!$G92,FALSE) -> 3939 | K92: =IF(AND(OR(Calculations!$E$2="Orkney Health Board",Calculations!$E$2="Orkney Islands Local Authority"),$F92=1),0,IF(AND(OR(Calculations!$E$2="Shetland Health Board",Calculations!$E$2="Western Isles Health Board",Calculations!$E$2="Shetland Islands Local Authority",Calculations!$E$2="Eilean Siar Local Authority"),OR($F92=1,$F92=5)),0,new_ci(VALUE(LEFT(Options!$B$24,2)),$C92,$E92,$F92,2016,$I92,1,$H92,$G92*$H92,Options!$B$8))) -> 797.5414113 | L92: =IF(AND(OR(Calculations!$E$2="Orkney Health Board",Calculations!$E$2="Orkney Islands Local Authority"),$F92=1),0,IF(AND(OR(Calculations!$E$2="Shetland Health Board",Calculations!$E$2="Western Isles Health Board",Calculations!$E$2="Shetland Islands Local Authority",Calculations!$E$2="Eilean Siar Local Authority"),OR($F92=1,$F92=5)),0,new_ci(VALUE(LEFT(Options!$B$24,2)),$C92,$E92,$F92,2016,$I92+$J92,1,$H92,$G92*$H92,Options!$B$8))) -> 795.3474072 | M92: =IF(AND(OR(Calculations!$E$2="Orkney Health Board",Calculations!$E$2="Orkney Islands Local Authority"),$F92=1),0,IF(AND(OR(Calculations!$E$2="Shetland Health Board",Calculations!$E$2="Western Isles Health Board",Calculations!$E$2="Shetland Islands Local Authority",Calculations!$E$2="Eilean Siar Local Authority"),OR($F92=1,$F92=5)),0,new_yllv2(VALUE(LEFT(Options!$B$24,2)),$C92,$D92,$E92,$F92,2016,$I92,1,$H92,$G92*$H92,Options!$B$8))) -> 11883.36703 | N92: =IF(AND(OR(Calculations!$E$2="Orkney Health Board",Calculations!$E$2="Orkney Islands Local Authority"),$F92=1),0,IF(AND(OR(Calculations!$E$2="Shetland Health Board",Calculations!$E$2="Western Isles Health Board",Calculations!$E$2="Shetland Islands Local Authority",Calculations!$E$2="Eilean Siar Local Authority"),OR($F92=1,$F92=5)),0,new_yllv2(VALUE(LEFT(Options!$B$24,2)),$C92,$D92,$E92,$F92,2016,$I92+$J92,1,$H92,$G92*$H92,Options!$B$8))) -> 11850.67637 | O92: =IF(AND(OR(Calculations!$E$2="Orkney Health Board",Calculations!$E$2="Orkney Islands Local Authority"),$F92=1),0,IF(AND(OR(Calculations!$E$2="Shetland Health Board",Calculations!$E$2="Western Isles Health Board",Calculations!$E$2="Shetland Islands Local Authority",Calculations!$E$2="Eilean Siar Local Authority"),OR($F92=1,$F92=5)),0,hosp_count(VALUE(LEFT(Options!$B$24,2)),$C92,$E92,$F92,2016,$I92,1,$H92,$G92*$H92, Options!$B$8))) -> 14296.67907 | P92: =IF(AND(OR(Calculations!$E$2="Orkney Health Board",Calculations!$E$2="Orkney Islands Local Authority"),$F92=1),0,IF(AND(OR(Calculations!$E$2="Shetland Health Board",Calculations!$E$2="Western Isles Health Board",Calculations!$E$2="Shetland Islands Local Authority",Calculations!$E$2="Eilean Siar Local Authority"),OR($F92=1,$F92=5)),0,hosp_count(VALUE(LEFT(Options!$B$24,2)),$C92,$E92,$F92,2016,$I92+$J92,1,$H92,$G92*$H92, Options!$B$8))) -> 14270.10417 | Q92: =IF(AND(OR(Calculations!$E$2="Orkney Health Board",Calculations!$E$2="Orkney Islands Local Authority"),$F92=1),0,IF(AND(OR(Calculations!$E$2="Shetland Health Board",Calculations!$E$2="Western Isles Health Board",Calculations!$E$2="Shetland Islands Local Authority",Calculations!$E$2="Eilean Siar Local Authority"),OR($F92=1,$F92=5)),0,prem_mort(VALUE(LEFT(Options!$B$24,2)),$C92,$E92,$F92,2016,$I92,1,$H92,$G92*$H92,Options!$B$8))) -> 797.5414113 | R92: =IF(AND(OR(Calculations!$E$2="Orkney Health Board",Calculations!$E$2="Orkney Islands Local Authority"),$F92=1),0,IF(AND(OR(Calculations!$E$2="Shetland Health Board",Calculations!$E$2="Western Isles Health Board",Calculations!$E$2="Shetland Islands Local Authority",Calculations!$E$2="Eilean Siar Local Authority"),OR($F92=1,$F92=5)),0,prem_mort(VALUE(LEFT(Options!$B$24,2)),$C92,$E92,$F92,2016,$I92+$J92,1,$H92,$G92*$H92,Options!$B$8))) -> 795.3474072 | S92: 3119.417262 | T92: 3110.835871 | U92: 46479.3172 | V92: 46351.45448 | W92: 55918.48504 | X92: 55814.54285 | Y92: 3119.417262 | Z92: 3110.835871 | AA92: 17156794.94 | AB92: 17109597.29 | AC92: 255636244.6 | AD92: 254932999.6 | AE92: =W92*$AI92 -> 307551667.7 | AF92: =X92*$AI92 -> 306979985.7 | AG92: =Y92*$AI92 -> 17156794.94 | AH92: =Z92*$AI92 -> 17109597.29 | AI92: 5500
B93: Male 70-74 | C93: 71.891098 | D93: 84.3411 | E93: male | F93: 1 | G93: =HLOOKUP(Calculations!$E$2,'Prevalence Rates'!$C$3:$BC$249,'Prevalence Rates'!$BD93,FALSE) -> 0.3095 | H93: =HLOOKUP(Calculations!$E$2,'Population 2016'!$C$3:$BC$249,'Population 2016'!BD93,FALSE) -> 18358 | I93: 0 | J93: =HLOOKUP(Results!E$4,Targeting!$C$3:$F$249,Targeting!$G93,FALSE) -> 2828 | K93: =IF(AND(OR(Calculations!$E$2="Orkney Health Board",Calculations!$E$2="Orkney Islands Local Authority"),$F93=1),0,IF(AND(OR(Calculations!$E$2="Shetland Health Board",Calculations!$E$2="Western Isles Health Board",Calculations!$E$2="Shetland Islands Local Authority",Calculations!$E$2="Eilean Siar Local Authority"),OR($F93=1,$F93=5)),0,new_ci(VALUE(LEFT(Options!$B$24,2)),$C93,$E93,$F93,2016,$I93,1,$H93,$G93*$H93,Options!$B$8))) -> 818.7638128 | L93: =IF(AND(OR(Calculations!$E$2="Orkney Health Board",Calculations!$E$2="Orkney Islands Local Authority"),$F93=1),0,IF(AND(OR(Calculations!$E$2="Shetland Health Board",Calculations!$E$2="Western Isles Health Board",Calculations!$E$2="Shetland Islands Local Authority",Calculations!$E$2="Eilean Siar Local Authority"),OR($F93=1,$F93=5)),0,new_ci(VALUE(LEFT(Options!$B$24,2)),$C93,$E93,$F93,2016,$I93+$J93,1,$H93,$G93*$H93,Options!$B$8))) -> 816.5407933 | M93: =IF(AND(OR(Calculations!$E$2="Orkney Health Board",Calculations!$E$2="Orkney Islands Local Authority"),$F93=1),0,IF(AND(OR(Calculations!$E$2="Shetland Health Board",Calculations!$E$2="Western Isles Health Board",Calculations!$E$2="Shetland Islands Local Authority",Calculations!$E$2="Eilean Siar Local Authority"),OR($F93=1,$F93=5)),0,new_yllv2(VALUE(LEFT(Options!$B$24,2)),$C93,$D93,$E93,$F93,2016,$I93,1,$H93,$G93*$H93,Options!$B$8))) -> 9374.847294 | N93: =IF(AND(OR(Calculations!$E$2="Orkney Health Board",Calculations!$E$2="Orkney Islands Local Authority"),$F93=1),0,IF(AND(OR(Calculations!$E$2="Shetland Health Board",Calculations!$E$2="Western Isles Health Board",Calculations!$E$2="Shetland Islands Local Authority",Calculations!$E$2="Eilean Siar Local Authority"),OR($F93=1,$F93=5)),0,new_yllv2(VALUE(LEFT(Options!$B$24,2)),$C93,$D93,$E93,$F93,2016,$I93+$J93,1,$H93,$G93*$H93,Options!$B$8))) -> 9349.393716 | O93: =IF(AND(OR(Calculations!$E$2="Orkney Health Board",Calculations!$E$2="Orkney Islands Local Authority"),$F93=1),0,IF(AND(OR(Calculations!$E$2="Shetland Health Board",Calculations!$E$2="Western Isles Health Board",Calculations!$E$2="Shetland Islands Local Authority",Calculations!$E$2="Eilean Siar Local Authority"),OR($F93=1,$F93=5)),0,hosp_count(VALUE(LEFT(Options!$B$24,2)),$C93,$E93,$F93,2016,$I93,1,$H93,$G93*$H93, Options!$B$8))) -> 12188.20958 | P93: =IF(AND(OR(Calculations!$E$2="Orkney Health Board",Calculations!$E$2="Orkney Islands Local Authority"),$F93=1),0,IF(AND(OR(Calculations!$E$2="Shetland Health Board",Calculations!$E$2="Western Isles Health Board",Calculations!$E$2="Shetland Islands Local Authority",Calculations!$E$2="Eilean Siar Local Authority"),OR($F93=1,$F93=5)),0,hosp_count(VALUE(LEFT(Options!$B$24,2)),$C93,$E93,$F93,2016,$I93+$J93,1,$H93,$G93*$H93, Options!$B$8))) -> 12165.55666 | Q93: =IF(AND(OR(Calculations!$E$2="Orkney Health Board",Calculations!$E$2="Orkney Islands Local Authority"),$F93=1),0,IF(AND(OR(Calculations!$E$2="Shetland Health Board",Calculations!$E$2="Western Isles Health Board",Calculations!$E$2="Shetland Islands Local Authority",Calculations!$E$2="Eilean Siar Local Authority"),OR($F93=1,$F93=5)),0,prem_mort(VALUE(LEFT(Options!$B$24,2)),$C93,$E93,$F93,2016,$I93,1,$H93,$G93*$H93,Options!$B$8))) -> 818.7638128 | R93: =IF(AND(OR(Calculations!$E$2="Orkney Health Board",Calculations!$E$2="Orkney Islands Local Authority"),$F93=1),0,IF(AND(OR(Calculations!$E$2="Shetland Health Board",Calculations!$E$2="Western Isles Health Board",Calculations!$E$2="Shetland Islands Local Authority",Calculations!$E$2="Eilean Siar Local Authority"),OR($F93=1,$F93=5)),0,prem_mort(VALUE(LEFT(Options!$B$24,2)),$C93,$E93,$F93,2016,$I93+$J93,1,$H93,$G93*$H93,Options!$B$8))) -> 816.5407933 | S93: 4459.983728 | T93: 4447.87446 | U93: 51066.82261 | V93: 50928.17146 | W93: 66391.81602 | X93: 66268.42066 | Y93: 4459.983728 | Z93: 4447.87446 | AA93: 22299918.64 | AB93: 22239372.3 | AC93: 255334113 | AD93: 254640857.3 | AE93: 331959080.1 | AF93: 331342103.3 | AG93: 22299918.64 | AH93: 22239372.3 | AI93: 5000
B94: Male 75-79 | C94: 76.9077 | D94: 86.3577 | E94: male | F94: 1 | G94: =HLOOKUP(Calculations!$E$2,'Prevalence Rates'!$C$3:$BC$249,'Prevalence Rates'!$BD94,FALSE) -> 0.1705 | H94: =HLOOKUP(Calculations!$E$2,'Population 2016'!$C$3:$BC$249,'Population 2016'!BD94,FALSE) -> 13914 | I94: 0 | J94: =HLOOKUP(Results!E$4,Targeting!$C$3:$F$249,Targeting!$G94,FALSE) -> 2144 | K94: =IF(AND(OR(Calculations!$E$2="Orkney Health Board",Calculations!$E$2="Orkney Islands Local Authority"),$F94=1),0,IF(AND(OR(Calculations!$E$2="Shetland Health Board",Calculations!$E$2="Western Isles Health Board",Calculations!$E$2="Shetland Islands Local Authority",Calculations!$E$2="Eilean Siar Local Authority"),OR($F94=1,$F94=5)),0,new_ci(VALUE(LEFT(Options!$B$24,2)),$C94,$E94,$F94,2016,$I94,1,$H94,$G94*$H94,Options!$B$8))) -> 896.5408972 | L94: =IF(AND(OR(Calculations!$E$2="Orkney Health Board",Calculations!$E$2="Orkney Islands Local Authority"),$F94=1),0,IF(AND(OR(Calculations!$E$2="Shetland Health Board",Calculations!$E$2="Western Isles Health Board",Calculations!$E$2="Shetland Islands Local Authority",Calculations!$E$2="Eilean Siar Local Authority"),OR($F94=1,$F94=5)),0,new_ci(VALUE(LEFT(Options!$B$24,2)),$C94,$E94,$F94,2016,$I94+$J94,1,$H94,$G94*$H94,Options!$B$8))) -> 893.9242822 | M94: =IF(AND(OR(Calculations!$E$2="Orkney Health Board",Calculations!$E$2="Orkney Islands Local Authority"),$F94=1),0,IF(AND(OR(Calculations!$E$2="Shetland Health Board",Calculations!$E$2="Western Isles Health Board",Calculations!$E$2="Shetland Islands Local Authority",Calculations!$E$2="Eilean Siar Local Authority"),OR($F94=1,$F94=5)),0,new_yllv2(VALUE(LEFT(Options!$B$24,2)),$C94,$D94,$E94,$F94,2016,$I94,1,$H94,$G94*$H94,Options!$B$8))) -> 7575.770581 | N94: =IF(AND(OR(Calculations!$E$2="Orkney Health Board",Calculations!$E$2="Orkney Islands Local Authority"),$F94=1),0,IF(AND(OR(Calculations!$E$2="Shetland Health Board",Calculations!$E$2="Western Isles Health Board",Calculations!$E$2="Shetland Islands Local Authority",Calculations!$E$2="Eilean Siar Local Authority"),OR($F94=1,$F94=5)),0,new_yllv2(VALUE(LEFT(Options!$B$24,2)),$C94,$D94,$E94,$F94,2016,$I94+$J94,1,$H94,$G94*$H94,Options!$B$8))) -> 7553.660185 | O94: =IF(AND(OR(Calculations!$E$2="Orkney Health Board",Calculations!$E$2="Orkney Islands Local Authority"),$F94=1),0,IF(AND(OR(Calculations!$E$2="Shetland Health Board",Calculations!$E$2="Western Isles Health Board",Calculations!$E$2="Shetland Islands Local Authority",Calculations!$E$2="Eilean Siar Local Authority"),OR($F94=1,$F94=5)),0,hosp_count(VALUE(LEFT(Options!$B$24,2)),$C94,$E94,$F94,2016,$I94,1,$H94,$G94*$H94, Options!$B$8))) -> 11038.22627 | P94: =IF(AND(OR(Calculations!$E$2="Orkney Health Board",Calculations!$E$2="Orkney Islands Local Authority"),$F94=1),0,IF(AND(OR(Calculations!$E$2="Shetland Health Board",Calculations!$E$2="Western Isles Health Board",Calculations!$E$2="Shetland Islands Local Authority",Calculations!$E$2="Eilean Siar Local Authority"),OR($F94=1,$F94=5)),0,hosp_count(VALUE(LEFT(Options!$B$24,2)),$C94,$E94,$F94,2016,$I94+$J94,1,$H94,$G94*$H94, Options!$B$8))) -> 11016.43949 | Q94: =IF(AND(OR(Calculations!$E$2="Orkney Health Board",Calculations!$E$2="Orkney Islands Local Authority"),$F94=1),0,IF(AND(OR(Calculations!$E$2="Shetland Health Board",Calculations!$E$2="Western Isles Health Board",Calculations!$E$2="Shetland Islands Local Authority",Calculations!$E$2="Eilean Siar Local Authority"),OR($F94=1,$F94=5)),0,prem_mort(VALUE(LEFT(Options!$B$24,2)),$C94,$E94,$F94,2016,$I94,1,$H94,$G94*$H94,Options!$B$8))) -> 0 | R94: =IF(AND(OR(Calculations!$E$2="Orkney Health Board",Calculations!$E$2="Orkney Islands Local Authority"),$F94=1),0,IF(AND(OR(Calculations!$E$2="Shetland Health Board",Calculations!$E$2="Western Isles Health Board",Calculations!$E$2="Shetland Islands Local Authority",Calculations!$E$2="Eilean Siar Local Authority"),OR($F94=1,$F94=5)),0,prem_mort(VALUE(LEFT(Options!$B$24,2)),$C94,$E94,$F94,2016,$I94+$J94,1,$H94,$G94*$H94,Options!$B$8))) -> 0 | S94: 6443.444712 | T94: 6424.639084 | U94: 54447.10782 | V94: 54288.20026 | W94: 79331.79723 | X94: 79175.21554 | Y94: 0 | Z94: 0 | AA94: 25773778.85 | AB94: 25698556.34 | AC94: 217788431.3 | AD94: 217152801.1 | AE94: 317327188.9 | AF94: 316700862.2 | AG94: 0 | AH94: 0 | AI94: 4000
B95: Male 80-84 | C95: 81.797089 | D95: 88.62709 | E95: male | F95: 1 | G95: =HLOOKUP(Calculations!$E$2,'Prevalence Rates'!$C$3:$BC$249,'Prevalence Rates'!$BD95,FALSE) -> 0.1705 | H95: =HLOOKUP(Calculations!$E$2,'Population 2016'!$C$3:$BC$249,'Population 2016'!BD95,FALSE) -> 9236 | I95: 0 | J95: =HLOOKUP(Results!E$4,Targeting!$C$3:$F$249,Targeting!$G95,FALSE) -> 1423 | K95: =IF(AND(OR(Calculations!$E$2="Orkney Health Board",Calculations!$E$2="Orkney Islands Local Authority"),$F95=1),0,IF(AND(OR(Calculations!$E$2="Shetland Health Board",Calculations!$E$2="Western Isles Health Board",Calculations!$E$2="Shetland Islands Local Authority",Calculations!$E$2="Eilean Siar Local Authority"),OR($F95=1,$F95=5)),0,new_ci(VALUE(LEFT(Options!$B$24,2)),$C95,$E95,$F95,2016,$I95,1,$H95,$G95*$H95,Options!$B$8))) -> 847.2829607 | L95: =IF(AND(OR(Calculations!$E$2="Orkney Health Board",Calculations!$E$2="Orkney Islands Local Authority"),$F95=1),0,IF(AND(OR(Calculations!$E$2="Shetland Health Board",Calculations!$E$2="Western Isles Health Board",Calculations!$E$2="Shetland Islands Local Authority",Calculations!$E$2="Eilean Siar Local Authority"),OR($F95=1,$F95=5)),0,new_ci(VALUE(LEFT(Options!$B$24,2)),$C95,$E95,$F95,2016,$I95+$J95,1,$H95,$G95*$H95,Options!$B$8))) -> 844.8905714 | M95: =IF(AND(OR(Calculations!$E$2="Orkney Health Board",Calculations!$E$2="Orkney Islands Local Authority"),$F95=1),0,IF(AND(OR(Calculations!$E$2="Shetland Health Board",Calculations!$E$2="Western Isles Health Board",Calculations!$E$2="Shetland Islands Local Authority",Calculations!$E$2="Eilean Siar Local Authority"),OR($F95=1,$F95=5)),0,new_yllv2(VALUE(LEFT(Options!$B$24,2)),$C95,$D95,$E95,$F95,2016,$I95,1,$H95,$G95*$H95,Options!$B$8))) -> 4939.660508 | N95: =IF(AND(OR(Calculations!$E$2="Orkney Health Board",Calculations!$E$2="Orkney Islands Local Authority"),$F95=1),0,IF(AND(OR(Calculations!$E$2="Shetland Health Board",Calculations!$E$2="Western Isles Health Board",Calculations!$E$2="Shetland Islands Local Authority",Calculations!$E$2="Eilean Siar Local Authority"),OR($F95=1,$F95=5)),0,new_yllv2(VALUE(LEFT(Options!$B$24,2)),$C95,$D95,$E95,$F95,2016,$I95+$J95,1,$H95,$G95*$H95,Options!$B$8))) -> 4925.712876 | O95: =IF(AND(OR(Calculations!$E$2="Orkney Health Board",Calculations!$E$2="Orkney Islands Local Authority"),$F95=1),0,IF(AND(OR(Calculations!$E$2="Shetland Health Board",Calculations!$E$2="Western Isles Health Board",Calculations!$E$2="Shetland Islands Local Authority",Calculations!$E$2="Eilean Siar Local Authority"),OR($F95=1,$F95=5)),0,hosp_count(VALUE(LEFT(Options!$B$24,2)),$C95,$E95,$F95,2016,$I95,1,$H95,$G95*$H95, Options!$B$8))) -> 8715.71314 | P95: =IF(AND(OR(Calculations!$E$2="Orkney Health Board",Calculations!$E$2="Orkney Islands Local Authority"),$F95=1),0,IF(AND(OR(Calculations!$E$2="Shetland Health Board",Calculations!$E$2="Western Isles Health Board",Calculations!$E$2="Shetland Islands Local Authority",Calculations!$E$2="Eilean Siar Local Authority"),OR($F95=1,$F95=5)),0,hosp_count(VALUE(LEFT(Options!$B$24,2)),$C95,$E95,$F95,2016,$I95+$J95,1,$H95,$G95*$H95, Options!$B$8))) -> 8698.512492 | Q95: =IF(AND(OR(Calculations!$E$2="Orkney Health Board",Calculations!$E$2="Orkney Islands Local Authority"),$F95=1),0,IF(AND(OR(Calculations!$E$2="Shetland Health Board",Calculations!$E$2="Western Isles Health Board",Calculations!$E$2="Shetland Islands Local Authority",Calculations!$E$2="Eilean Siar Local Authority"),OR($F95=1,$F95=5)),0,prem_mort(VALUE(LEFT(Options!$B$24,2)),$C95,$E95,$F95,2016,$I95,1,$H95,$G95*$H95,Options!$B$8))) -> 0 | R95: =IF(AND(OR(Calculations!$E$2="Orkney Health Board",Calculations!$E$2="Orkney Islands Local Authority"),$F95=1),0,IF(AND(OR(Calculations!$E$2="Shetland Health Board",Calculations!$E$2="Western Isles Health Board",Calculations!$E$2="Shetland Islands Local Authority",Calculations!$E$2="Eilean Siar Local Authority"),OR($F95=1,$F95=5)),0,prem_mort(VALUE(LEFT(Options!$B$24,2)),$C95,$E95,$F95,2016,$I95+$J95,1,$H95,$G95*$H95,Options!$B$8))) -> 0 | S95: 9173.700311 | T95: 9147.797438 | U95: 53482.68198 | V95: 53331.66821 | W95: 94366.75119 | X95: 94180.51637 | Y95: 0 | Z95: 0 | AA95: 22934250.78 | AB95: 22869493.6 | AC95: 133706705 | AD95: 133329170.5 | AE95: 235916878 | AF95: 235451290.9 | AG95: 0 | AH95: 0 | AI95: 2500
B96: Male 85-89 | C96: 86.630753 | D96: 91.42075 | E96: male | F96: 1 | G96: =HLOOKUP(Calculations!$E$2,'Prevalence Rates'!$C$3:$BC$249,'Prevalence Rates'!$BD96,FALSE) -> 0.1705 | H96: =HLOOKUP(Calculations!$E$2,'Population 2016'!$C$3:$BC$249,'Population 2016'!BD96,FALSE) -> 4449 | I96: 0 | J96: =HLOOKUP(Results!E$4,Targeting!$C$3:$F$249,Targeting!$G96,FALSE) -> 685 | K96: =IF(AND(OR(Calculations!$E$2="Orkney Health Board",Calculations!$E$2="Orkney Islands Local Authority"),$F96=1),0,IF(AND(OR(Calculations!$E$2="Shetland Health Board",Calculations!$E$2="Western Isles Health Board",Calculations!$E$2="Shetland Islands Local Authority",Calculations!$E$2="Eilean Siar Local Authority"),OR($F96=1,$F96=5)),0,new_ci(VALUE(LEFT(Options!$B$24,2)),$C96,$E96,$F96,2016,$I96,1,$H96,$G96*$H96,Options!$B$8))) -> 574.8527254 | L96: =IF(AND(OR(Calculations!$E$2="Orkney Health Board",Calculations!$E$2="Orkney Islands Local Authority"),$F96=1),0,IF(AND(OR(Calculations!$E$2="Shetland Health Board",Calculations!$E$2="Western Isles Health Board",Calculations!$E$2="Shetland Islands Local Authority",Calculations!$E$2="Eilean Siar Local Authority"),OR($F96=1,$F96=5)),0,new_ci(VALUE(LEFT(Options!$B$24,2)),$C96,$E96,$F96,2016,$I96+$J96,1,$H96,$G96*$H96,Options!$B$8))) -> 573.305503 | M96: =IF(AND(OR(Calculations!$E$2="Orkney Health Board",Calculations!$E$2="Orkney Islands Local Authority"),$F96=1),0,IF(AND(OR(Calculations!$E$2="Shetland Health Board",Calculations!$E$2="Western Isles Health Board",Calculations!$E$2="Shetland Islands Local Authority",Calculations!$E$2="Eilean Siar Local Authority"),OR($F96=1,$F96=5)),0,new_yllv2(VALUE(LEFT(Options!$B$24,2)),$C96,$D96,$E96,$F96,2016,$I96,1,$H96,$G96*$H96,Options!$B$8))) -> 2178.690105 | N96: =IF(AND(OR(Calculations!$E$2="Orkney Health Board",Calculations!$E$2="Orkney Islands Local Authority"),$F96=1),0,IF(AND(OR(Calculations!$E$2="Shetland Health Board",Calculations!$E$2="Western Isles Health Board",Calculations!$E$2="Shetland Islands Local Authority",Calculations!$E$2="Eilean Siar Local Authority"),OR($F96=1,$F96=5)),0,new_yllv2(VALUE(LEFT(Options!$B$24,2)),$C96,$D96,$E96,$F96,2016,$I96+$J96,1,$H96,$G96*$H96,Options!$B$8))) -> 2172.826136 | O96: =IF(AND(OR(Calculations!$E$2="Orkney Health Board",Calculations!$E$2="Orkney Islands Local Authority"),$F96=1),0,IF(AND(OR(Calculations!$E$2="Shetland Health Board",Calculations!$E$2="Western Isles Health Board",Calculations!$E$2="Shetland Islands Local Authority",Calculations!$E$2="Eilean Siar Local Authority"),OR($F96=1,$F96=5)),0,hosp_count(VALUE(LEFT(Options!$B$24,2)),$C96,$E96,$F96,2016,$I96,1,$H96,$G96*$H96, Options!$B$8))) -> 4984.184367 | P96: =IF(AND(OR(Calculations!$E$2="Orkney Health Board",Calculations!$E$2="Orkney Islands Local Authority"),$F96=1),0,IF(AND(OR(Calculations!$E$2="Shetland Health Board",Calculations!$E$2="Western Isles Health Board",Calculations!$E$2="Shetland Islands Local Authority",Calculations!$E$2="Eilean Siar Local Authority"),OR($F96=1,$F96=5)),0,hosp_count(VALUE(LEFT(Options!$B$24,2)),$C96,$E96,$F96,2016,$I96+$J96,1,$H96,$G96*$H96, Options!$B$8))) -> 4974.354601 | Q96: =IF(AND(OR(Calculations!$E$2="Orkney Health Board",Calculations!$E$2="Orkney Islands Local Authority"),$F96=1),0,IF(AND(OR(Calculations!$E$2="Shetland Health Board",Calculations!$E$2="Western Isles Health Board",Calculations!$E$2="Shetland Islands Local Authority",Calculations!$E$2="Eilean Siar Local Authority"),OR($F96=1,$F96=5)),0,prem_mort(VALUE(LEFT(Options!$B$24,2)),$C96,$E96,$F96,2016,$I96,1,$H96,$G96*$H96,Options!$B$8))) -> 0 | R96: =IF(AND(OR(Calculations!$E$2="Orkney Health Board",Calculations!$E$2="Orkney Islands Local Authority"),$F96=1),0,IF(AND(OR(Calculations!$E$2="Shetland Health Board",Calculations!$E$2="Western Isles Health Board",Calculations!$E$2="Shetland Islands Local Authority",Calculations!$E$2="Eilean Siar Local Authority"),OR($F96=1,$F96=5)),0,prem_mort(VALUE(LEFT(Options!$B$24,2)),$C96,$E96,$F96,2016,$I96+$J96,1,$H96,$G96*$H96,Options!$B$8))) -> 0 | S96: 12920.94236 | T96: 12886.1655 | U96: 48970.33277 | V96: 48838.52858 | W96: 112029.3182 | X96: 111808.3749 | Y96: 0 | Z96: 0 | AA96: 19381413.53 | AB96: 19329248.25 | AC96: 73455499.15 | AD96: 73257792.87 | AE96: 168043977.3 | AF96: 167712562.4 | AG96: 0 | AH96: 0 | AI96: 1500
B97: Male 90+ | C97: 92.215477 | D97: 95.51548 | E97: male | F97: 1 | G97: =HLOOKUP(Calculations!$E$2,'Prevalence Rates'!$C$3:$BC$249,'Prevalence Rates'!$BD97,FALSE) -> 0.1705 | H97: =HLOOKUP(Calculations!$E$2,'Population 2016'!$C$3:$BC$249,'Population 2016'!BD97,FALSE) -> 1916 | I97: 0 | J97: =HLOOKUP(Results!E$4,Targeting!$C$3:$F$249,Targeting!$G97,FALSE) -> 295 | K97: =IF(AND(OR(Calculations!$E$2="Orkney Health Board",Calculations!$E$2="Orkney Islands Local Authority"),$F97=1),0,IF(AND(OR(Calculations!$E$2="Shetland Health Board",Calculations!$E$2="Western Isles Health Board",Calculations!$E$2="Shetland Islands Local Authority",Calculations!$E$2="Eilean Siar Local Authority"),OR($F97=1,$F97=5)),0,new_ci(VALUE(LEFT(Options!$B$24,2)),$C97,$E97,$F97,2016,$I97,1,$H97,$G97*$H97,Options!$B$8))) -> 363.3653417 | L97: =IF(AND(OR(Calculations!$E$2="Orkney Health Board",Calculations!$E$2="Orkney Islands Local Authority"),$F97=1),0,IF(AND(OR(Calculations!$E$2="Shetland Health Board",Calculations!$E$2="Western Isles Health Board",Calculations!$E$2="Shetland Islands Local Authority",Calculations!$E$2="Eilean Siar Local Authority"),OR($F97=1,$F97=5)),0,new_ci(VALUE(LEFT(Options!$B$24,2)),$C97,$E97,$F97,2016,$I97+$J97,1,$H97,$G97*$H97,Options!$B$8))) -> 362.4639631 | M97: =IF(AND(OR(Calculations!$E$2="Orkney Health Board",Calculations!$E$2="Orkney Islands Local Authority"),$F97=1),0,IF(AND(OR(Calculations!$E$2="Shetland Health Board",Calculations!$E$2="Western Isles Health Board",Calculations!$E$2="Shetland Islands Local Authority",Calculations!$E$2="Eilean Siar Local Authority"),OR($F97=1,$F97=5)),0,new_yllv2(VALUE(LEFT(Options!$B$24,2)),$C97,$D97,$E97,$F97,2016,$I97,1,$H97,$G97*$H97,Options!$B$8))) -> 835.741376 | N97: =IF(AND(OR(Calculations!$E$2="Orkney Health Board",Calculations!$E$2="Orkney Islands Local Authority"),$F97=1),0,IF(AND(OR(Calculations!$E$2="Shetland Health Board",Calculations!$E$2="Western Isles Health Board",Calculations!$E$2="Shetland Islands Local Authority",Calculations!$E$2="Eilean Siar Local Authority"),OR($F97=1,$F97=5)),0,new_yllv2(VALUE(LEFT(Options!$B$24,2)),$C97,$D97,$E97,$F97,2016,$I97+$J97,1,$H97,$G97*$H97,Options!$B$8))) -> 833.6682025 | O97: =IF(AND(OR(Calculations!$E$2="Orkney Health Board",Calculations!$E$2="Orkney Islands Local Authority"),$F97=1),0,IF(AND(OR(Calculations!$E$2="Shetland Health Board",Calculations!$E$2="Western Isles Health Board",Calculations!$E$2="Shetland Islands Local Authority",Calculations!$E$2="Eilean Siar Local Authority"),OR($F97=1,$F97=5)),0,hosp_count(VALUE(LEFT(Options!$B$24,2)),$C97,$E97,$F97,2016,$I97,1,$H97,$G97*$H97, Options!$B$8))) -> 2617.084529 | P97: =IF(AND(OR(Calculations!$E$2="Orkney Health Board",Calculations!$E$2="Orkney Islands Local Authority"),$F97=1),0,IF(AND(OR(Calculations!$E$2="Shetland Health Board",Calculations!$E$2="Western Isles Health Board",Calculations!$E$2="Shetland Islands Local Authority",Calculations!$E$2="Eilean Siar Local Authority"),OR($F97=1,$F97=5)),0,hosp_count(VALUE(LEFT(Options!$B$24,2)),$C97,$E97,$F97,2016,$I97+$J97,1,$H97,$G97*$H97, Options!$B$8))) -> 2611.923157 | Q97: =IF(AND(OR(Calculations!$E$2="Orkney Health Board",Calculations!$E$2="Orkney Islands Local Authority"),$F97=1),0,IF(AND(OR(Calculations!$E$2="Shetland Health Board",Calculations!$E$2="Western Isles Health Board",Calculations!$E$2="Shetland Islands Local Authority",Calculations!$E$2="Eilean Siar Local Authority"),OR($F97=1,$F97=5)),0,prem_mort(VALUE(LEFT(Options!$B$24,2)),$C97,$E97,$F97,2016,$I97,1,$H97,$G97*$H97,Options!$B$8))) -> 0 | R97: =IF(AND(OR(Calculations!$E$2="Orkney Health Board",Calculations!$E$2="Orkney Islands Local Authority"),$F97=1),0,IF(AND(OR(Calculations!$E$2="Shetland Health Board",Calculations!$E$2="Western Isles Health Board",Calculations!$E$2="Shetland Islands Local Authority",Calculations!$E$2="Eilean Siar Local Authority"),OR($F97=1,$F97=5)),0,prem_mort(VALUE(LEFT(Options!$B$24,2)),$C97,$E97,$F97,2016,$I97+$J97,1,$H97,$G97*$H97,Options!$B$8))) -> 0 | S97: 18964.78819 | T97: 18917.74338 | U97: 43619.06973 | V97: 43510.86652 | W97: 136591.0506 | X97: 136321.6679 | Y97: 0 | Z97: 0 | AA97: 18964788.19 | AB97: 18917743.38 | AC97: 43619069.73 | AD97: 43510866.52 | AE97: 136591050.6 | AF97: 136321667.9 | AG97: 0 | AH97: 0 | AI97: 1000
B98: Female 0-4 | C98: 2.0384007 | D98: 81.468401 | E98: female | F98: 2 | G98: =HLOOKUP(Calculations!$E$2,'Prevalence Rates'!$C$3:$BC$249,'Prevalence Rates'!$BD98,FALSE) -> 0 | H98: =HLOOKUP(Calculations!$E$2,'Population 2016'!$C$3:$BC$249,'Population 2016'!BD98,FALSE) -> 0 | I98: 0 | J98: =HLOOKUP(Results!E$4,Targeting!$C$3:$F$249,Targeting!$G98,FALSE) -> 0 | K98: =IF(AND(OR(Calculations!$E$2="Orkney Health Board",Calculations!$E$2="Orkney Islands Local Authority"),$F98=1),0,IF(AND(OR(Calculations!$E$2="Shetland Health Board",Calculations!$E$2="Western Isles Health Board",Calculations!$E$2="Shetland Islands Local Authority",Calculations!$E$2="Eilean Siar Local Authority"),OR($F98=1,$F98=5)),0,new_ci(VALUE(LEFT(Options!$B$24,2)),$C98,$E98,$F98,2016,$I98,1,$H98,$G98*$H98,Options!$B$8))) ->  | L98: =IF(AND(OR(Calculations!$E$2="Orkney Health Board",Calculations!$E$2="Orkney Islands Local Authority"),$F98=1),0,IF(AND(OR(Calculations!$E$2="Shetland Health Board",Calculations!$E$2="Western Isles Health Board",Calculations!$E$2="Shetland Islands Local Authority",Calculations!$E$2="Eilean Siar Local Authority"),OR($F98=1,$F98=5)),0,new_ci(VALUE(LEFT(Options!$B$24,2)),$C98,$E98,$F98,2016,$I98+$J98,1,$H98,$G98*$H98,Options!$B$8))) ->  | M98: =IF(AND(OR(Calculations!$E$2="Orkney Health Board",Calculations!$E$2="Orkney Islands Local Authority"),$F98=1),0,IF(AND(OR(Calculations!$E$2="Shetland Health Board",Calculations!$E$2="Western Isles Health Board",Calculations!$E$2="Shetland Islands Local Authority",Calculations!$E$2="Eilean Siar Local Authority"),OR($F98=1,$F98=5)),0,new_yllv2(VALUE(LEFT(Options!$B$24,2)),$C98,$D98,$E98,$F98,2016,$I98,1,$H98,$G98*$H98,Options!$B$8))) ->  | N98: =IF(AND(OR(Calculations!$E$2="Orkney Health Board",Calculations!$E$2="Orkney Islands Local Authority"),$F98=1),0,IF(AND(OR(Calculations!$E$2="Shetland Health Board",Calculations!$E$2="Western Isles Health Board",Calculations!$E$2="Shetland Islands Local Authority",Calculations!$E$2="Eilean Siar Local Authority"),OR($F98=1,$F98=5)),0,new_yllv2(VALUE(LEFT(Options!$B$24,2)),$C98,$D98,$E98,$F98,2016,$I98+$J98,1,$H98,$G98*$H98,Options!$B$8))) ->  | O98: =IF(AND(OR(Calculations!$E$2="Orkney Health Board",Calculations!$E$2="Orkney Islands Local Authority"),$F98=1),0,IF(AND(OR(Calculations!$E$2="Shetland Health Board",Calculations!$E$2="Western Isles Health Board",Calculations!$E$2="Shetland Islands Local Authority",Calculations!$E$2="Eilean Siar Local Authority"),OR($F98=1,$F98=5)),0,hosp_count(VALUE(LEFT(Options!$B$24,2)),$C98,$E98,$F98,2016,$I98,1,$H98,$G98*$H98, Options!$B$8))) ->  | P98: =IF(AND(OR(Calculations!$E$2="Orkney Health Board",Calculations!$E$2="Orkney Islands Local Authority"),$F98=1),0,IF(AND(OR(Calculations!$E$2="Shetland Health Board",Calculations!$E$2="Western Isles Health Board",Calculations!$E$2="Shetland Islands Local Authority",Calculations!$E$2="Eilean Siar Local Authority"),OR($F98=1,$F98=5)),0,hosp_count(VALUE(LEFT(Options!$B$24,2)),$C98,$E98,$F98,2016,$I98+$J98,1,$H98,$G98*$H98, Options!$B$8))) ->  | Q98: =IF(AND(OR(Calculations!$E$2="Orkney Health Board",Calculations!$E$2="Orkney Islands Local Authority"),$F98=1),0,IF(AND(OR(Calculations!$E$2="Shetland Health Board",Calculations!$E$2="Western Isles Health Board",Calculations!$E$2="Shetland Islands Local Authority",Calculations!$E$2="Eilean Siar Local Authority"),OR($F98=1,$F98=5)),0,prem_mort(VALUE(LEFT(Options!$B$24,2)),$C98,$E98,$F98,2016,$I98,1,$H98,$G98*$H98,Options!$B$8))) ->  | R98: =IF(AND(OR(Calculations!$E$2="Orkney Health Board",Calculations!$E$2="Orkney Islands Local Authority"),$F98=1),0,IF(AND(OR(Calculations!$E$2="Shetland Health Board",Calculations!$E$2="Western Isles Health Board",Calculations!$E$2="Shetland Islands Local Authority",Calculations!$E$2="Eilean Siar Local Authority"),OR($F98=1,$F98=5)),0,prem_mort(VALUE(LEFT(Options!$B$24,2)),$C98,$E98,$F98,2016,$I98+$J98,1,$H98,$G98*$H98,Options!$B$8))) ->  | AI98: 5000
B99: Female 5-9 | C99: 6.9792795 | D99: 81.43928 | E99: female | F99: 2 | G99: =HLOOKUP(Calculations!$E$2,'Prevalence Rates'!$C$3:$BC$249,'Prevalence Rates'!$BD99,FALSE) -> 0 | H99: =HLOOKUP(Calculations!$E$2,'Population 2016'!$C$3:$BC$249,'Population 2016'!BD99,FALSE) -> 0 | I99: 0 | J99: =HLOOKUP(Results!E$4,Targeting!$C$3:$F$249,Targeting!$G99,FALSE) -> 0 | K99: =IF(AND(OR(Calculations!$E$2="Orkney Health Board",Calculations!$E$2="Orkney Islands Local Authority"),$F99=1),0,IF(AND(OR(Calculations!$E$2="Shetland Health Board",Calculations!$E$2="Western Isles Health Board",Calculations!$E$2="Shetland Islands Local Authority",Calculations!$E$2="Eilean Siar Local Authority"),OR($F99=1,$F99=5)),0,new_ci(VALUE(LEFT(Options!$B$24,2)),$C99,$E99,$F99,2016,$I99,1,$H99,$G99*$H99,Options!$B$8))) ->  | L99: =IF(AND(OR(Calculations!$E$2="Orkney Health Board",Calculations!$E$2="Orkney Islands Local Authority"),$F99=1),0,IF(AND(OR(Calculations!$E$2="Shetland Health Board",Calculations!$E$2="Western Isles Health Board",Calculations!$E$2="Shetland Islands Local Authority",Calculations!$E$2="Eilean Siar Local Authority"),OR($F99=1,$F99=5)),0,new_ci(VALUE(LEFT(Options!$B$24,2)),$C99,$E99,$F99,2016,$I99+$J99,1,$H99,$G99*$H99,Options!$B$8))) ->  | M99: =IF(AND(OR(Calculations!$E$2="Orkney Health Board",Calculations!$E$2="Orkney Islands Local Authority"),$F99=1),0,IF(AND(OR(Calculations!$E$2="Shetland Health Board",Calculations!$E$2="Western Isles Health Board",Calculations!$E$2="Shetland Islands Local Authority",Calculations!$E$2="Eilean Siar Local Authority"),OR($F99=1,$F99=5)),0,new_yllv2(VALUE(LEFT(Options!$B$24,2)),$C99,$D99,$E99,$F99,2016,$I99,1,$H99,$G99*$H99,Options!$B$8))) ->  | N99: =IF(AND(OR(Calculations!$E$2="Orkney Health Board",Calculations!$E$2="Orkney Islands Local Authority"),$F99=1),0,IF(AND(OR(Calculations!$E$2="Shetland Health Board",Calculations!$E$2="Western Isles Health Board",Calculations!$E$2="Shetland Islands Local Authority",Calculations!$E$2="Eilean Siar Local Authority"),OR($F99=1,$F99=5)),0,new_yllv2(VALUE(LEFT(Options!$B$24,2)),$C99,$D99,$E99,$F99,2016,$I99+$J99,1,$H99,$G99*$H99,Options!$B$8))) ->  | O99: =IF(AND(OR(Calculations!$E$2="Orkney Health Board",Calculations!$E$2="Orkney Islands Local Authority"),$F99=1),0,IF(AND(OR(Calculations!$E$2="Shetland Health Board",Calculations!$E$2="Western Isles Health Board",Calculations!$E$2="Shetland Islands Local Authority",Calculations!$E$2="Eilean Siar Local Authority"),OR($F99=1,$F99=5)),0,hosp_count(VALUE(LEFT(Options!$B$24,2)),$C99,$E99,$F99,2016,$I99,1,$H99,$G99*$H99, Options!$B$8))) ->  | P99: =IF(AND(OR(Calculations!$E$2="Orkney Health Board",Calculations!$E$2="Orkney Islands Local Authority"),$F99=1),0,IF(AND(OR(Calculations!$E$2="Shetland Health Board",Calculations!$E$2="Western Isles Health Board",Calculations!$E$2="Shetland Islands Local Authority",Calculations!$E$2="Eilean Siar Local Authority"),OR($F99=1,$F99=5)),0,hosp_count(VALUE(LEFT(Options!$B$24,2)),$C99,$E99,$F99,2016,$I99+$J99,1,$H99,$G99*$H99, Options!$B$8))) ->  | Q99: =IF(AND(OR(Calculations!$E$2="Orkney Health Board",Calculations!$E$2="Orkney Islands Local Authority"),$F99=1),0,IF(AND(OR(Calculations!$E$2="Shetland Health Board",Calculations!$E$2="Western Isles Health Board",Calculations!$E$2="Shetland Islands Local Authority",Calculations!$E$2="Eilean Siar Local Authority"),OR($F99=1,$F99=5)),0,prem_mort(VALUE(LEFT(Options!$B$24,2)),$C99,$E99,$F99,2016,$I99,1,$H99,$G99*$H99,Options!$B$8))) ->  | R99: =IF(AND(OR(Calculations!$E$2="Orkney Health Board",Calculations!$E$2="Orkney Islands Local Authority"),$F99=1),0,IF(AND(OR(Calculations!$E$2="Shetland Health Board",Calculations!$E$2="Western Isles Health Board",Calculations!$E$2="Shetland Islands Local Authority",Calculations!$E$2="Eilean Siar Local Authority"),OR($F99=1,$F99=5)),0,prem_mort(VALUE(LEFT(Options!$B$24,2)),$C99,$E99,$F99,2016,$I99+$J99,1,$H99,$G99*$H99,Options!$B$8))) ->  | AI99: 5500
B100: Female 10-15 | C100: 12.478312 | D100: 81.94831 | E100: female | F100: 2 | G100: =HLOOKUP(Calculations!$E$2,'Prevalence Rates'!$C$3:$BC$249,'Prevalence Rates'!$BD100,FALSE) -> 0 | H100: =HLOOKUP(Calculations!$E$2,'Population 2016'!$C$3:$BC$249,'Population 2016'!BD100,FALSE) -> 0 | I100: 0 | J100: =HLOOKUP(Results!E$4,Targeting!$C$3:$F$249,Targeting!$G100,FALSE) -> 0 | K100: =IF(AND(OR(Calculations!$E$2="Orkney Health Board",Calculations!$E$2="Orkney Islands Local Authority"),$F100=1),0,IF(AND(OR(Calculations!$E$2="Shetland Health Board",Calculations!$E$2="Western Isles Health Board",Calculations!$E$2="Shetland Islands Local Authority",Calculations!$E$2="Eilean Siar Local Authority"),OR($F100=1,$F100=5)),0,new_ci(VALUE(LEFT(Options!$B$24,2)),$C100,$E100,$F100,2016,$I100,1,$H100,$G100*$H100,Options!$B$8))) ->  | L100: =IF(AND(OR(Calculations!$E$2="Orkney Health Board",Calculations!$E$2="Orkney Islands Local Authority"),$F100=1),0,IF(AND(OR(Calculations!$E$2="Shetland Health Board",Calculations!$E$2="Western Isles Health Board",Calculations!$E$2="Shetland Islands Local Authority",Calculations!$E$2="Eilean Siar Local Authority"),OR($F100=1,$F100=5)),0,new_ci(VALUE(LEFT(Options!$B$24,2)),$C100,$E100,$F100,2016,$I100+$J100,1,$H100,$G100*$H100,Options!$B$8))) ->  | M100: =IF(AND(OR(Calculations!$E$2="Orkney Health Board",Calculations!$E$2="Orkney Islands Local Authority"),$F100=1),0,IF(AND(OR(Calculations!$E$2="Shetland Health Board",Calculations!$E$2="Western Isles Health Board",Calculations!$E$2="Shetland Islands Local Authority",Calculations!$E$2="Eilean Siar Local Authority"),OR($F100=1,$F100=5)),0,new_yllv2(VALUE(LEFT(Options!$B$24,2)),$C100,$D100,$E100,$F100,2016,$I100,1,$H100,$G100*$H100,Options!$B$8))) ->  | N100: =IF(AND(OR(Calculations!$E$2="Orkney Health Board",Calculations!$E$2="Orkney Islands Local Authority"),$F100=1),0,IF(AND(OR(Calculations!$E$2="Shetland Health Board",Calculations!$E$2="Western Isles Health Board",Calculations!$E$2="Shetland Islands Local Authority",Calculations!$E$2="Eilean Siar Local Authority"),OR($F100=1,$F100=5)),0,new_yllv2(VALUE(LEFT(Options!$B$24,2)),$C100,$D100,$E100,$F100,2016,$I100+$J100,1,$H100,$G100*$H100,Options!$B$8))) ->  | O100: =IF(AND(OR(Calculations!$E$2="Orkney Health Board",Calculations!$E$2="Orkney Islands Local Authority"),$F100=1),0,IF(AND(OR(Calculations!$E$2="Shetland Health Board",Calculations!$E$2="Western Isles Health Board",Calculations!$E$2="Shetland Islands Local Authority",Calculations!$E$2="Eilean Siar Local Authority"),OR($F100=1,$F100=5)),0,hosp_count(VALUE(LEFT(Options!$B$24,2)),$C100,$E100,$F100,2016,$I100,1,$H100,$G100*$H100, Options!$B$8))) ->  | P100: =IF(AND(OR(Calculations!$E$2="Orkney Health Board",Calculations!$E$2="Orkney Islands Local Authority"),$F100=1),0,IF(AND(OR(Calculations!$E$2="Shetland Health Board",Calculations!$E$2="Western Isles Health Board",Calculations!$E$2="Shetland Islands Local Authority",Calculations!$E$2="Eilean Siar Local Authority"),OR($F100=1,$F100=5)),0,hosp_count(VALUE(LEFT(Options!$B$24,2)),$C100,$E100,$F100,2016,$I100+$J100,1,$H100,$G100*$H100, Options!$B$8))) ->  | Q100: =IF(AND(OR(Calculations!$E$2="Orkney Health Board",Calculations!$E$2="Orkney Islands Local Authority"),$F100=1),0,IF(AND(OR(Calculations!$E$2="Shetland Health Board",Calculations!$E$2="Western Isles Health Board",Calculations!$E$2="Shetland Islands Local Authority",Calculations!$E$2="Eilean Siar Local Authority"),OR($F100=1,$F100=5)),0,prem_mort(VALUE(LEFT(Options!$B$24,2)),$C100,$E100,$F100,2016,$I100,1,$H100,$G100*$H100,Options!$B$8))) ->  | R100: =IF(AND(OR(Calculations!$E$2="Orkney Health Board",Calculations!$E$2="Orkney Islands Local Authority"),$F100=1),0,IF(AND(OR(Calculations!$E$2="Shetland Health Board",Calculations!$E$2="Western Isles Health Board",Calculations!$E$2="Shetland Islands Local Authority",Calculations!$E$2="Eilean Siar Local Authority"),OR($F100=1,$F100=5)),0,prem_mort(VALUE(LEFT(Options!$B$24,2)),$C100,$E100,$F100,2016,$I100+$J100,1,$H100,$G100*$H100,Options!$B$8))) ->  | AI100: 6600
A101: SIMD Q2 | B101: Female 16-19 | C101: 17.570053 | D101: 81.10005 | E101: female | F101: 2 | G101: =HLOOKUP(Calculations!$E$2,'Prevalence Rates'!$C$3:$BC$249,'Prevalence Rates'!$BD101,FALSE) -> 0.2637 | H101: =HLOOKUP(Calculations!$E$2,'Population 2016'!$C$3:$BC$249,'Population 2016'!BD101,FALSE) -> 23121 | I101: 0 | J101: =HLOOKUP(Results!E$4,Targeting!$C$3:$F$249,Targeting!$G101,FALSE) -> 3562 | K101: =IF(AND(OR(Calculations!$E$2="Orkney Health Board",Calculations!$E$2="Orkney Islands Local Authority"),$F101=1),0,IF(AND(OR(Calculations!$E$2="Shetland Health Board",Calculations!$E$2="Western Isles Health Board",Calculations!$E$2="Shetland Islands Local Authority",Calculations!$E$2="Eilean Siar Local Authority"),OR($F101=1,$F101=5)),0,new_ci(VALUE(LEFT(Options!$B$24,2)),$C101,$E101,$F101,2016,$I101,1,$H101,$G101*$H101,Options!$B$8))) -> 5.147428818 | L101: =IF(AND(OR(Calculations!$E$2="Orkney Health Board",Calculations!$E$2="Orkney Islands Local Authority"),$F101=1),0,IF(AND(OR(Calculations!$E$2="Shetland Health Board",Calculations!$E$2="Western Isles Health Board",Calculations!$E$2="Shetland Islands Local Authority",Calculations!$E$2="Eilean Siar Local Authority"),OR($F101=1,$F101=5)),0,new_ci(VALUE(LEFT(Options!$B$24,2)),$C101,$E101,$F101,2016,$I101+$J101,1,$H101,$G101*$H101,Options!$B$8))) -> 5.125557425 | M101: =IF(AND(OR(Calculations!$E$2="Orkney Health Board",Calculations!$E$2="Orkney Islands Local Authority"),$F101=1),0,IF(AND(OR(Calculations!$E$2="Shetland Health Board",Calculations!$E$2="Western Isles Health Board",Calculations!$E$2="Shetland Islands Local Authority",Calculations!$E$2="Eilean Siar Local Authority"),OR($F101=1,$F101=5)),0,new_yllv2(VALUE(LEFT(Options!$B$24,2)),$C101,$D101,$E101,$F101,2016,$I101,1,$H101,$G101*$H101,Options!$B$8))) -> 321.8687085 | N101: =IF(AND(OR(Calculations!$E$2="Orkney Health Board",Calculations!$E$2="Orkney Islands Local Authority"),$F101=1),0,IF(AND(OR(Calculations!$E$2="Shetland Health Board",Calculations!$E$2="Western Isles Health Board",Calculations!$E$2="Shetland Islands Local Authority",Calculations!$E$2="Eilean Siar Local Authority"),OR($F101=1,$F101=5)),0,new_yllv2(VALUE(LEFT(Options!$B$24,2)),$C101,$D101,$E101,$F101,2016,$I101+$J101,1,$H101,$G101*$H101,Options!$B$8))) -> 320.5010904 | O101: =IF(AND(OR(Calculations!$E$2="Orkney Health Board",Calculations!$E$2="Orkney Islands Local Authority"),$F101=1),0,IF(AND(OR(Calculations!$E$2="Shetland Health Board",Calculations!$E$2="Western Isles Health Board",Calculations!$E$2="Shetland Islands Local Authority",Calculations!$E$2="Eilean Siar Local Authority"),OR($F101=1,$F101=5)),0,hosp_count(VALUE(LEFT(Options!$B$24,2)),$C101,$E101,$F101,2016,$I101,1,$H101,$G101*$H101, Options!$B$8))) -> 2679.139383 | P101: =IF(AND(OR(Calculations!$E$2="Orkney Health Board",Calculations!$E$2="Orkney Islands Local Authority"),$F101=1),0,IF(AND(OR(Calculations!$E$2="Shetland Health Board",Calculations!$E$2="Western Isles Health Board",Calculations!$E$2="Shetland Islands Local Authority",Calculations!$E$2="Eilean Siar Local Authority"),OR($F101=1,$F101=5)),0,hosp_count(VALUE(LEFT(Options!$B$24,2)),$C101,$E101,$F101,2016,$I101+$J101,1,$H101,$G101*$H101, Options!$B$8))) -> 2672.164549 | Q101: =IF(AND(OR(Calculations!$E$2="Orkney Health Board",Calculations!$E$2="Orkney Islands Local Authority"),$F101=1),0,IF(AND(OR(Calculations!$E$2="Shetland Health Board",Calculations!$E$2="Western Isles Health Board",Calculations!$E$2="Shetland Islands Local Authority",Calculations!$E$2="Eilean Siar Local Authority"),OR($F101=1,$F101=5)),0,prem_mort(VALUE(LEFT(Options!$B$24,2)),$C101,$E101,$F101,2016,$I101,1,$H101,$G101*$H101,Options!$B$8))) -> 5.147428818 | R101: =IF(AND(OR(Calculations!$E$2="Orkney Health Board",Calculations!$E$2="Orkney Islands Local Authority"),$F101=1),0,IF(AND(OR(Calculations!$E$2="Shetland Health Board",Calculations!$E$2="Western Isles Health Board",Calculations!$E$2="Shetland Islands Local Authority",Calculations!$E$2="Eilean Siar Local Authority"),OR($F101=1,$F101=5)),0,prem_mort(VALUE(LEFT(Options!$B$24,2)),$C101,$E101,$F101,2016,$I101+$J101,1,$H101,$G101*$H101,Options!$B$8))) -> 5.125557425 | S101: 22.26300254 | T101: 22.16840719 | U101: 1392.105482 | V101: 1386.190435 | W101: 11587.47192 | X101: 11557.30526 | Y101: 22.26300254 | Z101: 22.16840719 | AA101: 97957.21118 | AB101: 97540.99162 | AC101: 6125264.121 | AD101: 6099237.913 | AE101: 50984876.45 | AF101: 50852143.13 | AG101: 97957.21118 | AH101: 97540.99162 | AI101: 4400
B102: Female 20-24 | C102: 22.077057 | D102: 81.66706 | E102: female | F102: 2 | G102: =HLOOKUP(Calculations!$E$2,'Prevalence Rates'!$C$3:$BC$249,'Prevalence Rates'!$BD102,FALSE) -> 0.2637 | H102: =HLOOKUP(Calculations!$E$2,'Population 2016'!$C$3:$BC$249,'Population 2016'!BD102,FALSE) -> 36899 | I102: 0 | J102: =HLOOKUP(Results!E$4,Targeting!$C$3:$F$249,Targeting!$G102,FALSE) -> 5685 | K102: =IF(AND(OR(Calculations!$E$2="Orkney Health Board",Calculations!$E$2="Orkney Islands Local Authority"),$F102=1),0,IF(AND(OR(Calculations!$E$2="Shetland Health Board",Calculations!$E$2="Western Isles Health Board",Calculations!$E$2="Shetland Islands Local Authority",Calculations!$E$2="Eilean Siar Local Authority"),OR($F102=1,$F102=5)),0,new_ci(VALUE(LEFT(Options!$B$24,2)),$C102,$E102,$F102,2016,$I102,1,$H102,$G102*$H102,Options!$B$8))) -> 12.05192388 | L102: =IF(AND(OR(Calculations!$E$2="Orkney Health Board",Calculations!$E$2="Orkney Islands Local Authority"),$F102=1),0,IF(AND(OR(Calculations!$E$2="Shetland Health Board",Calculations!$E$2="Western Isles Health Board",Calculations!$E$2="Shetland Islands Local Authority",Calculations!$E$2="Eilean Siar Local Authority"),OR($F102=1,$F102=5)),0,new_ci(VALUE(LEFT(Options!$B$24,2)),$C102,$E102,$F102,2016,$I102+$J102,1,$H102,$G102*$H102,Options!$B$8))) -> 12.00071624 | M102: =IF(AND(OR(Calculations!$E$2="Orkney Health Board",Calculations!$E$2="Orkney Islands Local Authority"),$F102=1),0,IF(AND(OR(Calculations!$E$2="Shetland Health Board",Calculations!$E$2="Western Isles Health Board",Calculations!$E$2="Shetland Islands Local Authority",Calculations!$E$2="Eilean Siar Local Authority"),OR($F102=1,$F102=5)),0,new_yllv2(VALUE(LEFT(Options!$B$24,2)),$C102,$D102,$E102,$F102,2016,$I102,1,$H102,$G102*$H102,Options!$B$8))) -> 706.1222564 | N102: =IF(AND(OR(Calculations!$E$2="Orkney Health Board",Calculations!$E$2="Orkney Islands Local Authority"),$F102=1),0,IF(AND(OR(Calculations!$E$2="Shetland Health Board",Calculations!$E$2="Western Isles Health Board",Calculations!$E$2="Shetland Islands Local Authority",Calculations!$E$2="Eilean Siar Local Authority"),OR($F102=1,$F102=5)),0,new_yllv2(VALUE(LEFT(Options!$B$24,2)),$C102,$D102,$E102,$F102,2016,$I102+$J102,1,$H102,$G102*$H102,Options!$B$8))) -> 703.1220008 | O102: =IF(AND(OR(Calculations!$E$2="Orkney Health Board",Calculations!$E$2="Orkney Islands Local Authority"),$F102=1),0,IF(AND(OR(Calculations!$E$2="Shetland Health Board",Calculations!$E$2="Western Isles Health Board",Calculations!$E$2="Shetland Islands Local Authority",Calculations!$E$2="Eilean Siar Local Authority"),OR($F102=1,$F102=5)),0,hosp_count(VALUE(LEFT(Options!$B$24,2)),$C102,$E102,$F102,2016,$I102,1,$H102,$G102*$H102, Options!$B$8))) -> 4788.927841 | P102: =IF(AND(OR(Calculations!$E$2="Orkney Health Board",Calculations!$E$2="Orkney Islands Local Authority"),$F102=1),0,IF(AND(OR(Calculations!$E$2="Shetland Health Board",Calculations!$E$2="Western Isles Health Board",Calculations!$E$2="Shetland Islands Local Authority",Calculations!$E$2="Eilean Siar Local Authority"),OR($F102=1,$F102=5)),0,hosp_count(VALUE(LEFT(Options!$B$24,2)),$C102,$E102,$F102,2016,$I102+$J102,1,$H102,$G102*$H102, Options!$B$8))) -> 4776.459593 | Q102: =IF(AND(OR(Calculations!$E$2="Orkney Health Board",Calculations!$E$2="Orkney Islands Local Authority"),$F102=1),0,IF(AND(OR(Calculations!$E$2="Shetland Health Board",Calculations!$E$2="Western Isles Health Board",Calculations!$E$2="Shetland Islands Local Authority",Calculations!$E$2="Eilean Siar Local Authority"),OR($F102=1,$F102=5)),0,prem_mort(VALUE(LEFT(Options!$B$24,2)),$C102,$E102,$F102,2016,$I102,1,$H102,$G102*$H102,Options!$B$8))) -> 12.05192388 | R102: =IF(AND(OR(Calculations!$E$2="Orkney Health Board",Calculations!$E$2="Orkney Islands Local Authority"),$F102=1),0,IF(AND(OR(Calculations!$E$2="Shetland Health Board",Calculations!$E$2="Western Isles Health Board",Calculations!$E$2="Shetland Islands Local Authority",Calculations!$E$2="Eilean Siar Local Authority"),OR($F102=1,$F102=5)),0,prem_mort(VALUE(LEFT(Options!$B$24,2)),$C102,$E102,$F102,2016,$I102+$J102,1,$H102,$G102*$H102,Options!$B$8))) -> 12.00071624 | S102: 32.66192548 | T102: 32.52314763 | U102: 1913.662312 | V102: 1905.531317 | W102: 12978.47595 | X102: 12944.68574 | Y102: 32.66192548 | Z102: 32.52314763 | AA102: 195971.5529 | AB102: 195138.8858 | AC102: 11481973.87 | AD102: 11433187.9 | AE102: 77870855.7 | AF102: 77668114.46 | AG102: 195971.5529 | AH102: 195138.8858 | AI102: 6000
B103: Female 25-29 | C103: 26.975187 | D103: 81.64519 | E103: female | F103: 2 | G103: =HLOOKUP(Calculations!$E$2,'Prevalence Rates'!$C$3:$BC$249,'Prevalence Rates'!$BD103,FALSE) -> 0.2801 | H103: =HLOOKUP(Calculations!$E$2,'Population 2016'!$C$3:$BC$249,'Population 2016'!BD103,FALSE) -> 40610 | I103: 0 | J103: =HLOOKUP(Results!E$4,Targeting!$C$3:$F$249,Targeting!$G103,FALSE) -> 6257 | K103: =IF(AND(OR(Calculations!$E$2="Orkney Health Board",Calculations!$E$2="Orkney Islands Local Authority"),$F103=1),0,IF(AND(OR(Calculations!$E$2="Shetland Health Board",Calculations!$E$2="Western Isles Health Board",Calculations!$E$2="Shetland Islands Local Authority",Calculations!$E$2="Eilean Siar Local Authority"),OR($F103=1,$F103=5)),0,new_ci(VALUE(LEFT(Options!$B$24,2)),$C103,$E103,$F103,2016,$I103,1,$H103,$G103*$H103,Options!$B$8))) -> 20.11708557 | L103: =IF(AND(OR(Calculations!$E$2="Orkney Health Board",Calculations!$E$2="Orkney Islands Local Authority"),$F103=1),0,IF(AND(OR(Calculations!$E$2="Shetland Health Board",Calculations!$E$2="Western Isles Health Board",Calculations!$E$2="Shetland Islands Local Authority",Calculations!$E$2="Eilean Siar Local Authority"),OR($F103=1,$F103=5)),0,new_ci(VALUE(LEFT(Options!$B$24,2)),$C103,$E103,$F103,2016,$I103+$J103,1,$H103,$G103*$H103,Options!$B$8))) -> 20.03253473 | M103: =IF(AND(OR(Calculations!$E$2="Orkney Health Board",Calculations!$E$2="Orkney Islands Local Authority"),$F103=1),0,IF(AND(OR(Calculations!$E$2="Shetland Health Board",Calculations!$E$2="Western Isles Health Board",Calculations!$E$2="Shetland Islands Local Authority",Calculations!$E$2="Eilean Siar Local Authority"),OR($F103=1,$F103=5)),0,new_yllv2(VALUE(LEFT(Options!$B$24,2)),$C103,$D103,$E103,$F103,2016,$I103,1,$H103,$G103*$H103,Options!$B$8))) -> 1079.684043 | N103: =IF(AND(OR(Calculations!$E$2="Orkney Health Board",Calculations!$E$2="Orkney Islands Local Authority"),$F103=1),0,IF(AND(OR(Calculations!$E$2="Shetland Health Board",Calculations!$E$2="Western Isles Health Board",Calculations!$E$2="Shetland Islands Local Authority",Calculations!$E$2="Eilean Siar Local Authority"),OR($F103=1,$F103=5)),0,new_yllv2(VALUE(LEFT(Options!$B$24,2)),$C103,$D103,$E103,$F103,2016,$I103+$J103,1,$H103,$G103*$H103,Options!$B$8))) -> 1075.146199 | O103: =IF(AND(OR(Calculations!$E$2="Orkney Health Board",Calculations!$E$2="Orkney Islands Local Authority"),$F103=1),0,IF(AND(OR(Calculations!$E$2="Shetland Health Board",Calculations!$E$2="Western Isles Health Board",Calculations!$E$2="Shetland Islands Local Authority",Calculations!$E$2="Eilean Siar Local Authority"),OR($F103=1,$F103=5)),0,hosp_count(VALUE(LEFT(Options!$B$24,2)),$C103,$E103,$F103,2016,$I103,1,$H103,$G103*$H103, Options!$B$8))) -> 5961.621382 | P103: =IF(AND(OR(Calculations!$E$2="Orkney Health Board",Calculations!$E$2="Orkney Islands Local Authority"),$F103=1),0,IF(AND(OR(Calculations!$E$2="Shetland Health Board",Calculations!$E$2="Western Isles Health Board",Calculations!$E$2="Shetland Islands Local Authority",Calculations!$E$2="Eilean Siar Local Authority"),OR($F103=1,$F103=5)),0,hosp_count(VALUE(LEFT(Options!$B$24,2)),$C103,$E103,$F103,2016,$I103+$J103,1,$H103,$G103*$H103, Options!$B$8))) -> 5946.22066 | Q103: =IF(AND(OR(Calculations!$E$2="Orkney Health Board",Calculations!$E$2="Orkney Islands Local Authority"),$F103=1),0,IF(AND(OR(Calculations!$E$2="Shetland Health Board",Calculations!$E$2="Western Isles Health Board",Calculations!$E$2="Shetland Islands Local Authority",Calculations!$E$2="Eilean Siar Local Authority"),OR($F103=1,$F103=5)),0,prem_mort(VALUE(LEFT(Options!$B$24,2)),$C103,$E103,$F103,2016,$I103,1,$H103,$G103*$H103,Options!$B$8))) -> 20.11708557 | R103: =IF(AND(OR(Calculations!$E$2="Orkney Health Board",Calculations!$E$2="Orkney Islands Local Authority"),$F103=1),0,IF(AND(OR(Calculations!$E$2="Shetland Health Board",Calculations!$E$2="Western Isles Health Board",Calculations!$E$2="Shetland Islands Local Authority",Calculations!$E$2="Eilean Siar Local Authority"),OR($F103=1,$F103=5)),0,prem_mort(VALUE(LEFT(Options!$B$24,2)),$C103,$E103,$F103,2016,$I103+$J103,1,$H103,$G103*$H103,Options!$B$8))) -> 20.03253473 | S103: 49.53727056 | T103: 49.32906853 | U103: 2658.665459 | V103: 2647.491256 | W103: 14680.1807 | X103: 14642.25723 | Y103: 49.53727056 | Z103: 49.32906853 | AA103: 297223.6233 | AB103: 295974.4112 | AC103: 15951992.76 | AD103: 15884947.54 | AE103: 88081084.2 | AF103: 87853543.36 | AG103: 297223.6233 | AH103: 295974.4112 | AI103: 6000
B104: Female 30-34 | C104: 31.999905 | D104: 81.7999 | E104: female | F104: 2 | G104: =HLOOKUP(Calculations!$E$2,'Prevalence Rates'!$C$3:$BC$249,'Prevalence Rates'!$BD104,FALSE) -> 0.2801 | H104: =HLOOKUP(Calculations!$E$2,'Population 2016'!$C$3:$BC$249,'Population 2016'!BD104,FALSE) -> 38102 | I104: 0 | J104: =HLOOKUP(Results!E$4,Targeting!$C$3:$F$249,Targeting!$G104,FALSE) -> 5871 | K104: =IF(AND(OR(Calculations!$E$2="Orkney Health Board",Calculations!$E$2="Orkney Islands Local Authority"),$F104=1),0,IF(AND(OR(Calculations!$E$2="Shetland Health Board",Calculations!$E$2="Western Isles Health Board",Calculations!$E$2="Shetland Islands Local Authority",Calculations!$E$2="Eilean Siar Local Authority"),OR($F104=1,$F104=5)),0,new_ci(VALUE(LEFT(Options!$B$24,2)),$C104,$E104,$F104,2016,$I104,1,$H104,$G104*$H104,Options!$B$8))) -> 28.93501683 | L104: =IF(AND(OR(Calculations!$E$2="Orkney Health Board",Calculations!$E$2="Orkney Islands Local Authority"),$F104=1),0,IF(AND(OR(Calculations!$E$2="Shetland Health Board",Calculations!$E$2="Western Isles Health Board",Calculations!$E$2="Shetland Islands Local Authority",Calculations!$E$2="Eilean Siar Local Authority"),OR($F104=1,$F104=5)),0,new_ci(VALUE(LEFT(Options!$B$24,2)),$C104,$E104,$F104,2016,$I104+$J104,1,$H104,$G104*$H104,Options!$B$8))) -> 28.8134249 | M104: =IF(AND(OR(Calculations!$E$2="Orkney Health Board",Calculations!$E$2="Orkney Islands Local Authority"),$F104=1),0,IF(AND(OR(Calculations!$E$2="Shetland Health Board",Calculations!$E$2="Western Isles Health Board",Calculations!$E$2="Shetland Islands Local Authority",Calculations!$E$2="Eilean Siar Local Authority"),OR($F104=1,$F104=5)),0,new_yllv2(VALUE(LEFT(Options!$B$24,2)),$C104,$D104,$E104,$F104,2016,$I104,1,$H104,$G104*$H104,Options!$B$8))) -> 1412.028677 | N104: =IF(AND(OR(Calculations!$E$2="Orkney Health Board",Calculations!$E$2="Orkney Islands Local Authority"),$F104=1),0,IF(AND(OR(Calculations!$E$2="Shetland Health Board",Calculations!$E$2="Western Isles Health Board",Calculations!$E$2="Shetland Islands Local Authority",Calculations!$E$2="Eilean Siar Local Authority"),OR($F104=1,$F104=5)),0,new_yllv2(VALUE(LEFT(Options!$B$24,2)),$C104,$D104,$E104,$F104,2016,$I104+$J104,1,$H104,$G104*$H104,Options!$B$8))) -> 1406.094991 | O104: =IF(AND(OR(Calculations!$E$2="Orkney Health Board",Calculations!$E$2="Orkney Islands Local Authority"),$F104=1),0,IF(AND(OR(Calculations!$E$2="Shetland Health Board",Calculations!$E$2="Western Isles Health Board",Calculations!$E$2="Shetland Islands Local Authority",Calculations!$E$2="Eilean Siar Local Authority"),OR($F104=1,$F104=5)),0,hosp_count(VALUE(LEFT(Options!$B$24,2)),$C104,$E104,$F104,2016,$I104,1,$H104,$G104*$H104, Options!$B$8))) -> 6347.018148 | P104: =IF(AND(OR(Calculations!$E$2="Orkney Health Board",Calculations!$E$2="Orkney Islands Local Authority"),$F104=1),0,IF(AND(OR(Calculations!$E$2="Shetland Health Board",Calculations!$E$2="Western Isles Health Board",Calculations!$E$2="Shetland Islands Local Authority",Calculations!$E$2="Eilean Siar Local Authority"),OR($F104=1,$F104=5)),0,hosp_count(VALUE(LEFT(Options!$B$24,2)),$C104,$E104,$F104,2016,$I104+$J104,1,$H104,$G104*$H104, Options!$B$8))) -> 6330.620651 | Q104: =IF(AND(OR(Calculations!$E$2="Orkney Health Board",Calculations!$E$2="Orkney Islands Local Authority"),$F104=1),0,IF(AND(OR(Calculations!$E$2="Shetland Health Board",Calculations!$E$2="Western Isles Health Board",Calculations!$E$2="Shetland Islands Local Authority",Calculations!$E$2="Eilean Siar Local Authority"),OR($F104=1,$F104=5)),0,prem_mort(VALUE(LEFT(Options!$B$24,2)),$C104,$E104,$F104,2016,$I104,1,$H104,$G104*$H104,Options!$B$8))) -> 28.93501683 | R104: =IF(AND(OR(Calculations!$E$2="Orkney Health Board",Calculations!$E$2="Orkney Islands Local Authority"),$F104=1),0,IF(AND(OR(Calculations!$E$2="Shetland Health Board",Calculations!$E$2="Western Isles Health Board",Calculations!$E$2="Shetland Islands Local Authority",Calculations!$E$2="Eilean Siar Local Authority"),OR($F104=1,$F104=5)),0,prem_mort(VALUE(LEFT(Options!$B$24,2)),$C104,$E104,$F104,2016,$I104+$J104,1,$H104,$G104*$H104,Options!$B$8))) -> 28.8134249 | S104: 75.94093967 | T104: 75.62181749 | U104: 3705.917476 | V104: 3690.344316 | W104: 16657.96585 | X104: 16614.93006 | Y104: 75.94093967 | Z104: 75.62181749 | AA104: 493616.1079 | AB104: 491541.8137 | AC104: 24088463.6 | AD104: 23987238.05 | AE104: 108276778 | AF104: 107997045.4 | AG104: 493616.1079 | AH104: 491541.8137 | AI104: 6500
B105: Female 35-39 | C105: 36.918118 | D105: 81.89812 | E105: female | F105: 2 | G105: =HLOOKUP(Calculations!$E$2,'Prevalence Rates'!$C$3:$BC$249,'Prevalence Rates'!$BD105,FALSE) -> 0.303 | H105: =HLOOKUP(Calculations!$E$2,'Population 2016'!$C$3:$BC$249,'Population 2016'!BD105,FALSE) -> 33014 | I105: 0 | J105: =HLOOKUP(Results!E$4,Targeting!$C$3:$F$249,Targeting!$G105,FALSE) -> 5087 | K105: =IF(AND(OR(Calculations!$E$2="Orkney Health Board",Calculations!$E$2="Orkney Islands Local Authority"),$F105=1),0,IF(AND(OR(Calculations!$E$2="Shetland Health Board",Calculations!$E$2="Western Isles Health Board",Calculations!$E$2="Shetland Islands Local Authority",Calculations!$E$2="Eilean Siar Local Authority"),OR($F105=1,$F105=5)),0,new_ci(VALUE(LEFT(Options!$B$24,2)),$C105,$E105,$F105,2016,$I105,1,$H105,$G105*$H105,Options!$B$8))) -> 38.08489356 | L105: =IF(AND(OR(Calculations!$E$2="Orkney Health Board",Calculations!$E$2="Orkney Islands Local Authority"),$F105=1),0,IF(AND(OR(Calculations!$E$2="Shetland Health Board",Calculations!$E$2="Western Isles Health Board",Calculations!$E$2="Shetland Islands Local Authority",Calculations!$E$2="Eilean Siar Local Authority"),OR($F105=1,$F105=5)),0,new_ci(VALUE(LEFT(Options!$B$24,2)),$C105,$E105,$F105,2016,$I105+$J105,1,$H105,$G105*$H105,Options!$B$8))) -> 37.92726472 | M105: =IF(AND(OR(Calculations!$E$2="Orkney Health Board",Calculations!$E$2="Orkney Islands Local Authority"),$F105=1),0,IF(AND(OR(Calculations!$E$2="Shetland Health Board",Calculations!$E$2="Western Isles Health Board",Calculations!$E$2="Shetland Islands Local Authority",Calculations!$E$2="Eilean Siar Local Authority"),OR($F105=1,$F105=5)),0,new_yllv2(VALUE(LEFT(Options!$B$24,2)),$C105,$D105,$E105,$F105,2016,$I105,1,$H105,$G105*$H105,Options!$B$8))) -> 1674.973695 | N105: =IF(AND(OR(Calculations!$E$2="Orkney Health Board",Calculations!$E$2="Orkney Islands Local Authority"),$F105=1),0,IF(AND(OR(Calculations!$E$2="Shetland Health Board",Calculations!$E$2="Western Isles Health Board",Calculations!$E$2="Shetland Islands Local Authority",Calculations!$E$2="Eilean Siar Local Authority"),OR($F105=1,$F105=5)),0,new_yllv2(VALUE(LEFT(Options!$B$24,2)),$C105,$D105,$E105,$F105,2016,$I105+$J105,1,$H105,$G105*$H105,Options!$B$8))) -> 1668.041178 | O105: =IF(AND(OR(Calculations!$E$2="Orkney Health Board",Calculations!$E$2="Orkney Islands Local Authority"),$F105=1),0,IF(AND(OR(Calculations!$E$2="Shetland Health Board",Calculations!$E$2="Western Isles Health Board",Calculations!$E$2="Shetland Islands Local Authority",Calculations!$E$2="Eilean Siar Local Authority"),OR($F105=1,$F105=5)),0,hosp_count(VALUE(LEFT(Options!$B$24,2)),$C105,$E105,$F105,2016,$I105,1,$H105,$G105*$H105, Options!$B$8))) -> 6223.679334 | P105: =IF(AND(OR(Calculations!$E$2="Orkney Health Board",Calculations!$E$2="Orkney Islands Local Authority"),$F105=1),0,IF(AND(OR(Calculations!$E$2="Shetland Health Board",Calculations!$E$2="Western Isles Health Board",Calculations!$E$2="Shetland Islands Local Authority",Calculations!$E$2="Eilean Siar Local Authority"),OR($F105=1,$F105=5)),0,hosp_count(VALUE(LEFT(Options!$B$24,2)),$C105,$E105,$F105,2016,$I105+$J105,1,$H105,$G105*$H105, Options!$B$8))) -> 6207.774093 | Q105: =IF(AND(OR(Calculations!$E$2="Orkney Health Board",Calculations!$E$2="Orkney Islands Local Authority"),$F105=1),0,IF(AND(OR(Calculations!$E$2="Shetland Health Board",Calculations!$E$2="Western Isles Health Board",Calculations!$E$2="Shetland Islands Local Authority",Calculations!$E$2="Eilean Siar Local Authority"),OR($F105=1,$F105=5)),0,prem_mort(VALUE(LEFT(Options!$B$24,2)),$C105,$E105,$F105,2016,$I105,1,$H105,$G105*$H105,Options!$B$8))) -> 38.08489356 | R105: =IF(AND(OR(Calculations!$E$2="Orkney Health Board",Calculations!$E$2="Orkney Islands Local Authority"),$F105=1),0,IF(AND(OR(Calculations!$E$2="Shetland Health Board",Calculations!$E$2="Western Isles Health Board",Calculations!$E$2="Shetland Islands Local Authority",Calculations!$E$2="Eilean Siar Local Authority"),OR($F105=1,$F105=5)),0,prem_mort(VALUE(LEFT(Options!$B$24,2)),$C105,$E105,$F105,2016,$I105+$J105,1,$H105,$G105*$H105,Options!$B$8))) -> 37.92726472 | S105: 115.3598278 | T105: 114.8823672 | U105: 5073.525458 | V105: 5052.526741 | W105: 18851.63668 | X105: 18803.45942 | Y105: 115.3598278 | Z105: 114.8823672 | AA105: 807518.7947 | AB105: 804176.5707 | AC105: 35514678.21 | AD105: 35367687.19 | AE105: 131961456.8 | AF105: 131624215.9 | AG105: 807518.7947 | AH105: 804176.5707 | AI105: 7000
B106: Female 40-44 | C106: 42.077438 | D106: 82.30744 | E106: female | F106: 2 | G106: =HLOOKUP(Calculations!$E$2,'Prevalence Rates'!$C$3:$BC$249,'Prevalence Rates'!$BD106,FALSE) -> 0.303 | H106: =HLOOKUP(Calculations!$E$2,'Population 2016'!$C$3:$BC$249,'Population 2016'!BD106,FALSE) -> 33442 | I106: 0 | J106: =HLOOKUP(Results!E$4,Targeting!$C$3:$F$249,Targeting!$G106,FALSE) -> 5153 | K106: =IF(AND(OR(Calculations!$E$2="Orkney Health Board",Calculations!$E$2="Orkney Islands Local Authority"),$F106=1),0,IF(AND(OR(Calculations!$E$2="Shetland Health Board",Calculations!$E$2="Western Isles Health Board",Calculations!$E$2="Shetland Islands Local Authority",Calculations!$E$2="Eilean Siar Local Authority"),OR($F106=1,$F106=5)),0,new_ci(VALUE(LEFT(Options!$B$24,2)),$C106,$E106,$F106,2016,$I106,1,$H106,$G106*$H106,Options!$B$8))) -> 59.8101559 | L106: =IF(AND(OR(Calculations!$E$2="Orkney Health Board",Calculations!$E$2="Orkney Islands Local Authority"),$F106=1),0,IF(AND(OR(Calculations!$E$2="Shetland Health Board",Calculations!$E$2="Western Isles Health Board",Calculations!$E$2="Shetland Islands Local Authority",Calculations!$E$2="Eilean Siar Local Authority"),OR($F106=1,$F106=5)),0,new_ci(VALUE(LEFT(Options!$B$24,2)),$C106,$E106,$F106,2016,$I106+$J106,1,$H106,$G106*$H106,Options!$B$8))) -> 59.56274645 | M106: =IF(AND(OR(Calculations!$E$2="Orkney Health Board",Calculations!$E$2="Orkney Islands Local Authority"),$F106=1),0,IF(AND(OR(Calculations!$E$2="Shetland Health Board",Calculations!$E$2="Western Isles Health Board",Calculations!$E$2="Shetland Islands Local Authority",Calculations!$E$2="Eilean Siar Local Authority"),OR($F106=1,$F106=5)),0,new_yllv2(VALUE(LEFT(Options!$B$24,2)),$C106,$D106,$E106,$F106,2016,$I106,1,$H106,$G106*$H106,Options!$B$8))) -> 2346.352535 | N106: =IF(AND(OR(Calculations!$E$2="Orkney Health Board",Calculations!$E$2="Orkney Islands Local Authority"),$F106=1),0,IF(AND(OR(Calculations!$E$2="Shetland Health Board",Calculations!$E$2="Western Isles Health Board",Calculations!$E$2="Shetland Islands Local Authority",Calculations!$E$2="Eilean Siar Local Authority"),OR($F106=1,$F106=5)),0,new_yllv2(VALUE(LEFT(Options!$B$24,2)),$C106,$D106,$E106,$F106,2016,$I106+$J106,1,$H106,$G106*$H106,Options!$B$8))) -> 2336.646662 | O106: =IF(AND(OR(Calculations!$E$2="Orkney Health Board",Calculations!$E$2="Orkney Islands Local Authority"),$F106=1),0,IF(AND(OR(Calculations!$E$2="Shetland Health Board",Calculations!$E$2="Western Isles Health Board",Calculations!$E$2="Shetland Islands Local Authority",Calculations!$E$2="Eilean Siar Local Authority"),OR($F106=1,$F106=5)),0,hosp_count(VALUE(LEFT(Options!$B$24,2)),$C106,$E106,$F106,2016,$I106,1,$H106,$G106*$H106, Options!$B$8))) -> 7177.98054 | P106: =IF(AND(OR(Calculations!$E$2="Orkney Health Board",Calculations!$E$2="Orkney Islands Local Authority"),$F106=1),0,IF(AND(OR(Calculations!$E$2="Shetland Health Board",Calculations!$E$2="Western Isles Health Board",Calculations!$E$2="Shetland Islands Local Authority",Calculations!$E$2="Eilean Siar Local Authority"),OR($F106=1,$F106=5)),0,hosp_count(VALUE(LEFT(Options!$B$24,2)),$C106,$E106,$F106,2016,$I106+$J106,1,$H106,$G106*$H106, Options!$B$8))) -> 7159.636304 | Q106: =IF(AND(OR(Calculations!$E$2="Orkney Health Board",Calculations!$E$2="Orkney Islands Local Authority"),$F106=1),0,IF(AND(OR(Calculations!$E$2="Shetland Health Board",Calculations!$E$2="Western Isles Health Board",Calculations!$E$2="Shetland Islands Local Authority",Calculations!$E$2="Eilean Siar Local Authority"),OR($F106=1,$F106=5)),0,prem_mort(VALUE(LEFT(Options!$B$24,2)),$C106,$E106,$F106,2016,$I106,1,$H106,$G106*$H106,Options!$B$8))) -> 59.8101559 | R106: =IF(AND(OR(Calculations!$E$2="Orkney Health Board",Calculations!$E$2="Orkney Islands Local Authority"),$F106=1),0,IF(AND(OR(Calculations!$E$2="Shetland Health Board",Calculations!$E$2="Western Isles Health Board",Calculations!$E$2="Shetland Islands Local Authority",Calculations!$E$2="Eilean Siar Local Authority"),OR($F106=1,$F106=5)),0,prem_mort(VALUE(LEFT(Options!$B$24,2)),$C106,$E106,$F106,2016,$I106+$J106,1,$H106,$G106*$H106,Options!$B$8))) -> 59.56274645 | S106: 178.8474251 | T106: 178.1076086 | U106: 7016.184844 | V106: 6987.16184 | W106: 21463.96908 | X106: 21409.1152 | Y106: 178.8474251 | Z106: 178.1076086 | AA106: 1251931.976 | AB106: 1246753.26 | AC106: 49113293.91 | AD106: 48910132.88 | AE106: 150247783.6 | AF106: 149863806.4 | AG106: 1251931.976 | AH106: 1246753.26 | AI106: 7000
B107: Female 45-49 | C107: 47.025772 | D107: 82.58577 | E107: female | F107: 2 | G107: =HLOOKUP(Calculations!$E$2,'Prevalence Rates'!$C$3:$BC$249,'Prevalence Rates'!$BD107,FALSE) -> 0.3128 | H107: =HLOOKUP(Calculations!$E$2,'Population 2016'!$C$3:$BC$249,'Population 2016'!BD107,FALSE) -> 39170 | I107: 0 | J107: =HLOOKUP(Results!E$4,Targeting!$C$3:$F$249,Targeting!$G107,FALSE) -> 6035 | K107: =IF(AND(OR(Calculations!$E$2="Orkney Health Board",Calculations!$E$2="Orkney Islands Local Authority"),$F107=1),0,IF(AND(OR(Calculations!$E$2="Shetland Health Board",Calculations!$E$2="Western Isles Health Board",Calculations!$E$2="Shetland Islands Local Authority",Calculations!$E$2="Eilean Siar Local Authority"),OR($F107=1,$F107=5)),0,new_ci(VALUE(LEFT(Options!$B$24,2)),$C107,$E107,$F107,2016,$I107,1,$H107,$G107*$H107,Options!$B$8))) -> 106.6594975 | L107: =IF(AND(OR(Calculations!$E$2="Orkney Health Board",Calculations!$E$2="Orkney Islands Local Authority"),$F107=1),0,IF(AND(OR(Calculations!$E$2="Shetland Health Board",Calculations!$E$2="Western Isles Health Board",Calculations!$E$2="Shetland Islands Local Authority",Calculations!$E$2="Eilean Siar Local Authority"),OR($F107=1,$F107=5)),0,new_ci(VALUE(LEFT(Options!$B$24,2)),$C107,$E107,$F107,2016,$I107+$J107,1,$H107,$G107*$H107,Options!$B$8))) -> 106.2214579 | M107: =IF(AND(OR(Calculations!$E$2="Orkney Health Board",Calculations!$E$2="Orkney Islands Local Authority"),$F107=1),0,IF(AND(OR(Calculations!$E$2="Shetland Health Board",Calculations!$E$2="Western Isles Health Board",Calculations!$E$2="Shetland Islands Local Authority",Calculations!$E$2="Eilean Siar Local Authority"),OR($F107=1,$F107=5)),0,new_yllv2(VALUE(LEFT(Options!$B$24,2)),$C107,$D107,$E107,$F107,2016,$I107,1,$H107,$G107*$H107,Options!$B$8))) -> 3686.152019 | N107: =IF(AND(OR(Calculations!$E$2="Orkney Health Board",Calculations!$E$2="Orkney Islands Local Authority"),$F107=1),0,IF(AND(OR(Calculations!$E$2="Shetland Health Board",Calculations!$E$2="Western Isles Health Board",Calculations!$E$2="Shetland Islands Local Authority",Calculations!$E$2="Eilean Siar Local Authority"),OR($F107=1,$F107=5)),0,new_yllv2(VALUE(LEFT(Options!$B$24,2)),$C107,$D107,$E107,$F107,2016,$I107+$J107,1,$H107,$G107*$H107,Options!$B$8))) -> 3671.013371 | O107: =IF(AND(OR(Calculations!$E$2="Orkney Health Board",Calculations!$E$2="Orkney Islands Local Authority"),$F107=1),0,IF(AND(OR(Calculations!$E$2="Shetland Health Board",Calculations!$E$2="Western Isles Health Board",Calculations!$E$2="Shetland Islands Local Authority",Calculations!$E$2="Eilean Siar Local Authority"),OR($F107=1,$F107=5)),0,hosp_count(VALUE(LEFT(Options!$B$24,2)),$C107,$E107,$F107,2016,$I107,1,$H107,$G107*$H107, Options!$B$8))) -> 9521.815112 | P107: =IF(AND(OR(Calculations!$E$2="Orkney Health Board",Calculations!$E$2="Orkney Islands Local Authority"),$F107=1),0,IF(AND(OR(Calculations!$E$2="Shetland Health Board",Calculations!$E$2="Western Isles Health Board",Calculations!$E$2="Shetland Islands Local Authority",Calculations!$E$2="Eilean Siar Local Authority"),OR($F107=1,$F107=5)),0,hosp_count(VALUE(LEFT(Options!$B$24,2)),$C107,$E107,$F107,2016,$I107+$J107,1,$H107,$G107*$H107, Options!$B$8))) -> 9497.595285 | Q107: =IF(AND(OR(Calculations!$E$2="Orkney Health Board",Calculations!$E$2="Orkney Islands Local Authority"),$F107=1),0,IF(AND(OR(Calculations!$E$2="Shetland Health Board",Calculations!$E$2="Western Isles Health Board",Calculations!$E$2="Shetland Islands Local Authority",Calculations!$E$2="Eilean Siar Local Authority"),OR($F107=1,$F107=5)),0,prem_mort(VALUE(LEFT(Options!$B$24,2)),$C107,$E107,$F107,2016,$I107,1,$H107,$G107*$H107,Options!$B$8))) -> 106.6594975 | R107: =IF(AND(OR(Calculations!$E$2="Orkney Health Board",Calculations!$E$2="Orkney Islands Local Authority"),$F107=1),0,IF(AND(OR(Calculations!$E$2="Shetland Health Board",Calculations!$E$2="Western Isles Health Board",Calculations!$E$2="Shetland Islands Local Authority",Calculations!$E$2="Eilean Siar Local Authority"),OR($F107=1,$F107=5)),0,prem_mort(VALUE(LEFT(Options!$B$24,2)),$C107,$E107,$F107,2016,$I107+$J107,1,$H107,$G107*$H107,Options!$B$8))) -> 106.2214579 | S107: 272.2989468 | T107: 271.180643 | U107: 9410.651058 | V107: 9372.00248 | W107: 24308.94846 | X107: 24247.11587 | Y107: 272.2989468 | Z107: 271.180643 | AA107: 1906092.628 | AB107: 1898264.501 | AC107: 65874557.41 | AD107: 65604017.36 | AE107: 170162639.2 | AF107: 169729811.1 | AG107: 1906092.628 | AH107: 1898264.501 | AI107: 7000
B108: Female 50-54 | C108: 51.990826 | D108: 82.98083 | E108: female | F108: 2 | G108: =HLOOKUP(Calculations!$E$2,'Prevalence Rates'!$C$3:$BC$249,'Prevalence Rates'!$BD108,FALSE) -> 0.3128 | H108: =HLOOKUP(Calculations!$E$2,'Population 2016'!$C$3:$BC$249,'Population 2016'!BD108,FALSE) -> 40518 | I108: 0 | J108: =HLOOKUP(Results!E$4,Targeting!$C$3:$F$249,Targeting!$G108,FALSE) -> 6243 | K108: =IF(AND(OR(Calculations!$E$2="Orkney Health Board",Calculations!$E$2="Orkney Islands Local Authority"),$F108=1),0,IF(AND(OR(Calculations!$E$2="Shetland Health Board",Calculations!$E$2="Western Isles Health Board",Calculations!$E$2="Shetland Islands Local Authority",Calculations!$E$2="Eilean Siar Local Authority"),OR($F108=1,$F108=5)),0,new_ci(VALUE(LEFT(Options!$B$24,2)),$C108,$E108,$F108,2016,$I108,1,$H108,$G108*$H108,Options!$B$8))) -> 168.1736587 | L108: =IF(AND(OR(Calculations!$E$2="Orkney Health Board",Calculations!$E$2="Orkney Islands Local Authority"),$F108=1),0,IF(AND(OR(Calculations!$E$2="Shetland Health Board",Calculations!$E$2="Western Isles Health Board",Calculations!$E$2="Shetland Islands Local Authority",Calculations!$E$2="Eilean Siar Local Authority"),OR($F108=1,$F108=5)),0,new_ci(VALUE(LEFT(Options!$B$24,2)),$C108,$E108,$F108,2016,$I108+$J108,1,$H108,$G108*$H108,Options!$B$8))) -> 167.4838259 | M108: =IF(AND(OR(Calculations!$E$2="Orkney Health Board",Calculations!$E$2="Orkney Islands Local Authority"),$F108=1),0,IF(AND(OR(Calculations!$E$2="Shetland Health Board",Calculations!$E$2="Western Isles Health Board",Calculations!$E$2="Shetland Islands Local Authority",Calculations!$E$2="Eilean Siar Local Authority"),OR($F108=1,$F108=5)),0,new_yllv2(VALUE(LEFT(Options!$B$24,2)),$C108,$D108,$E108,$F108,2016,$I108,1,$H108,$G108*$H108,Options!$B$8))) -> 5043.528697 | N108: =IF(AND(OR(Calculations!$E$2="Orkney Health Board",Calculations!$E$2="Orkney Islands Local Authority"),$F108=1),0,IF(AND(OR(Calculations!$E$2="Shetland Health Board",Calculations!$E$2="Western Isles Health Board",Calculations!$E$2="Shetland Islands Local Authority",Calculations!$E$2="Eilean Siar Local Authority"),OR($F108=1,$F108=5)),0,new_yllv2(VALUE(LEFT(Options!$B$24,2)),$C108,$D108,$E108,$F108,2016,$I108+$J108,1,$H108,$G108*$H108,Options!$B$8))) -> 5022.84061 | O108: =IF(AND(OR(Calculations!$E$2="Orkney Health Board",Calculations!$E$2="Orkney Islands Local Authority"),$F108=1),0,IF(AND(OR(Calculations!$E$2="Shetland Health Board",Calculations!$E$2="Western Isles Health Board",Calculations!$E$2="Shetland Islands Local Authority",Calculations!$E$2="Eilean Siar Local Authority"),OR($F108=1,$F108=5)),0,hosp_count(VALUE(LEFT(Options!$B$24,2)),$C108,$E108,$F108,2016,$I108,1,$H108,$G108*$H108, Options!$B$8))) -> 11159.71138 | P108: =IF(AND(OR(Calculations!$E$2="Orkney Health Board",Calculations!$E$2="Orkney Islands Local Authority"),$F108=1),0,IF(AND(OR(Calculations!$E$2="Shetland Health Board",Calculations!$E$2="Western Isles Health Board",Calculations!$E$2="Shetland Islands Local Authority",Calculations!$E$2="Eilean Siar Local Authority"),OR($F108=1,$F108=5)),0,hosp_count(VALUE(LEFT(Options!$B$24,2)),$C108,$E108,$F108,2016,$I108+$J108,1,$H108,$G108*$H108, Options!$B$8))) -> 11131.32396 | Q108: =IF(AND(OR(Calculations!$E$2="Orkney Health Board",Calculations!$E$2="Orkney Islands Local Authority"),$F108=1),0,IF(AND(OR(Calculations!$E$2="Shetland Health Board",Calculations!$E$2="Western Isles Health Board",Calculations!$E$2="Shetland Islands Local Authority",Calculations!$E$2="Eilean Siar Local Authority"),OR($F108=1,$F108=5)),0,prem_mort(VALUE(LEFT(Options!$B$24,2)),$C108,$E108,$F108,2016,$I108,1,$H108,$G108*$H108,Options!$B$8))) -> 168.1736587 | R108: =IF(AND(OR(Calculations!$E$2="Orkney Health Board",Calculations!$E$2="Orkney Islands Local Authority"),$F108=1),0,IF(AND(OR(Calculations!$E$2="Shetland Health Board",Calculations!$E$2="Western Isles Health Board",Calculations!$E$2="Shetland Islands Local Authority",Calculations!$E$2="Eilean Siar Local Authority"),OR($F108=1,$F108=5)),0,prem_mort(VALUE(LEFT(Options!$B$24,2)),$C108,$E108,$F108,2016,$I108+$J108,1,$H108,$G108*$H108,Options!$B$8))) -> 167.4838259 | S108: 415.059131 | T108: 413.3565969 | U108: 12447.625 | V108: 12396.56599 | W108: 27542.60176 | X108: 27472.54051 | Y108: 415.059131 | Z108: 413.3565969 | AA108: 2905413.917 | AB108: 2893496.178 | AC108: 87133374.99 | AD108: 86775961.96 | AE108: 192798212.3 | AF108: 192307783.6 | AG108: 2905413.917 | AH108: 2893496.178 | AI108: 7000
B109: Female 55-59 | C109: 56.953041 | D109: 83.47304 | E109: female | F109: 2 | G109: =HLOOKUP(Calculations!$E$2,'Prevalence Rates'!$C$3:$BC$249,'Prevalence Rates'!$BD109,FALSE) -> 0.293 | H109: =HLOOKUP(Calculations!$E$2,'Population 2016'!$C$3:$BC$249,'Population 2016'!BD109,FALSE) -> 37275 | I109: 0 | J109: =HLOOKUP(Results!E$4,Targeting!$C$3:$F$249,Targeting!$G109,FALSE) -> 5743 | K109: =IF(AND(OR(Calculations!$E$2="Orkney Health Board",Calculations!$E$2="Orkney Islands Local Authority"),$F109=1),0,IF(AND(OR(Calculations!$E$2="Shetland Health Board",Calculations!$E$2="Western Isles Health Board",Calculations!$E$2="Shetland Islands Local Authority",Calculations!$E$2="Eilean Siar Local Authority"),OR($F109=1,$F109=5)),0,new_ci(VALUE(LEFT(Options!$B$24,2)),$C109,$E109,$F109,2016,$I109,1,$H109,$G109*$H109,Options!$B$8))) -> 235.6736339 | L109: =IF(AND(OR(Calculations!$E$2="Orkney Health Board",Calculations!$E$2="Orkney Islands Local Authority"),$F109=1),0,IF(AND(OR(Calculations!$E$2="Shetland Health Board",Calculations!$E$2="Western Isles Health Board",Calculations!$E$2="Shetland Islands Local Authority",Calculations!$E$2="Eilean Siar Local Authority"),OR($F109=1,$F109=5)),0,new_ci(VALUE(LEFT(Options!$B$24,2)),$C109,$E109,$F109,2016,$I109+$J109,1,$H109,$G109*$H109,Options!$B$8))) -> 234.6965756 | M109: =IF(AND(OR(Calculations!$E$2="Orkney Health Board",Calculations!$E$2="Orkney Islands Local Authority"),$F109=1),0,IF(AND(OR(Calculations!$E$2="Shetland Health Board",Calculations!$E$2="Western Isles Health Board",Calculations!$E$2="Shetland Islands Local Authority",Calculations!$E$2="Eilean Siar Local Authority"),OR($F109=1,$F109=5)),0,new_yllv2(VALUE(LEFT(Options!$B$24,2)),$C109,$D109,$E109,$F109,2016,$I109,1,$H109,$G109*$H109,Options!$B$8))) -> 6014.390902 | N109: =IF(AND(OR(Calculations!$E$2="Orkney Health Board",Calculations!$E$2="Orkney Islands Local Authority"),$F109=1),0,IF(AND(OR(Calculations!$E$2="Shetland Health Board",Calculations!$E$2="Western Isles Health Board",Calculations!$E$2="Shetland Islands Local Authority",Calculations!$E$2="Eilean Siar Local Authority"),OR($F109=1,$F109=5)),0,new_yllv2(VALUE(LEFT(Options!$B$24,2)),$C109,$D109,$E109,$F109,2016,$I109+$J109,1,$H109,$G109*$H109,Options!$B$8))) -> 5989.456375 | O109: =IF(AND(OR(Calculations!$E$2="Orkney Health Board",Calculations!$E$2="Orkney Islands Local Authority"),$F109=1),0,IF(AND(OR(Calculations!$E$2="Shetland Health Board",Calculations!$E$2="Western Isles Health Board",Calculations!$E$2="Shetland Islands Local Authority",Calculations!$E$2="Eilean Siar Local Authority"),OR($F109=1,$F109=5)),0,hosp_count(VALUE(LEFT(Options!$B$24,2)),$C109,$E109,$F109,2016,$I109,1,$H109,$G109*$H109, Options!$B$8))) -> 11631.35715 | P109: =IF(AND(OR(Calculations!$E$2="Orkney Health Board",Calculations!$E$2="Orkney Islands Local Authority"),$F109=1),0,IF(AND(OR(Calculations!$E$2="Shetland Health Board",Calculations!$E$2="Western Isles Health Board",Calculations!$E$2="Shetland Islands Local Authority",Calculations!$E$2="Eilean Siar Local Authority"),OR($F109=1,$F109=5)),0,hosp_count(VALUE(LEFT(Options!$B$24,2)),$C109,$E109,$F109,2016,$I109+$J109,1,$H109,$G109*$H109, Options!$B$8))) -> 11601.49416 | Q109: =IF(AND(OR(Calculations!$E$2="Orkney Health Board",Calculations!$E$2="Orkney Islands Local Authority"),$F109=1),0,IF(AND(OR(Calculations!$E$2="Shetland Health Board",Calculations!$E$2="Western Isles Health Board",Calculations!$E$2="Shetland Islands Local Authority",Calculations!$E$2="Eilean Siar Local Authority"),OR($F109=1,$F109=5)),0,prem_mort(VALUE(LEFT(Options!$B$24,2)),$C109,$E109,$F109,2016,$I109,1,$H109,$G109*$H109,Options!$B$8))) -> 235.6736339 | R109: =IF(AND(OR(Calculations!$E$2="Orkney Health Board",Calculations!$E$2="Orkney Islands Local Authority"),$F109=1),0,IF(AND(OR(Calculations!$E$2="Shetland Health Board",Calculations!$E$2="Western Isles Health Board",Calculations!$E$2="Shetland Islands Local Authority",Calculations!$E$2="Eilean Siar Local Authority"),OR($F109=1,$F109=5)),0,prem_mort(VALUE(LEFT(Options!$B$24,2)),$C109,$E109,$F109,2016,$I109+$J109,1,$H109,$G109*$H109,Options!$B$8))) -> 234.6965756 | S109: 632.2565632 | T109: 629.635347 | U109: 16135.18686 | V109: 16068.29343 | W109: 31204.17746 | X109: 31124.06213 | Y109: 632.2565632 | Z109: 629.635347 | AA109: 4109667.66 | AB109: 4092629.756 | AC109: 104878714.6 | AD109: 104443907.3 | AE109: 202827153.5 | AF109: 202306403.9 | AG109: 4109667.66 | AH109: 4092629.756 | AI109: 6500
